{"text_format":"1","workbook":"xlsx","n_sheets":4,"sheets":["Stock Monthly","FF Monthly","Stock Weekly","FF Weekly"],"not_rendered":{"charts":0,"images":3,"macros":1,"external_links":0,"defined_names":2,"comments":0,"pivot_tables":0},"unopened":[],"bounds":{"document_bytes":16777216,"sheet_cells":100000,"rows_first":2000,"rows_last":500,"rows_between":2000,"halvings":0,"cell_chars":16384,"cell_head_chars":4096},"cells_cut":0,"cells_raw":0,"read":"whole","date_system":"1900"}

{"sheet":"Stock Monthly","index":0,"n_rows":0,"n_cols":0,"rows_kept":0,"cut":false,"hidden":false,"merged":[]}

{"sheet":"FF Monthly","index":1,"n_rows":1200,"n_cols":18,"rows_kept":1200,"cut":false,"hidden":false,"merged":[]}
[null,"Rm-Rf","SMB","HML","Rf","Rm-Rf %","SMB %","HML %","Rf %"]
[null,null,null,null,null,{"$f":"IF(A2>0,B2/100,\" \")","v":" "},{"$f":"IF(A2>0,C2/100,\" \")","v":" "},{"$f":"IF(A2>0,D2/100,\" \")","v":" "},{"$f":"IF(A2>0,E2/100,\" \")","v":" "}]
[null,null,null,null,null,{"$f":"IF(A3>0,B3/100,\" \")","v":" "},{"$f":"IF(A3>0,C3/100,\" \")","v":" "},{"$f":"IF(A3>0,D3/100,\" \")","v":" "},{"$f":"IF(A3>0,E3/100,\" \")","v":" "}]
[null,null,null,null,null," "," "," "," "]
[null,null,null,null,null," "," "," "," "]
[null,null,null,null,null," "," "," "," "]
[null,null,null,null,null," "," "," "," "]
[null,null,null,null,null," "," "," "," "]
[null,null,null,null,null," "," "," "," "]
[null,null,null,null,null," "," "," "," "]
[null,null,null,null,null," "," "," "," "]
[null,null,null,null,null," "," "," "," "]
[null,null,null,null,null," "," "," "," "]
[null,null,null,null,null," "," "," "," "]
[null,null,null,null,null," "," "," "," "]
[null,null,null,null,null," "," "," "," "]
[null,null,null,null,null," "," "," "," "]
[null,null,null,null,null," "," "," "," "]
[null,null,null,null,null," "," "," "," "]
[null,null,null,null,null," "," "," "," "]
[null,null,null,null,null," "," "," "," "]
[null,null,null,null,null," "," "," "," "]
[null,null,null,null,null," "," "," "," "]
[null,null,null,null,null," "," "," "," "]
[null,null,null,null,null," "," "," "," "]
[null,null,null,null,null," "," "," "," "]
[null,null,null,null,null," "," "," "," "]
[null,null,null,null,null," "," "," "," "]
[null,null,null,null,null," "," "," "," "]
[null,null,null,null,null," "," "," "," "]
[null,null,null,null,null," "," "," "," "]
[null,null,null,null,null," "," "," "," "]
[null,null,null,null,null," "," "," "," "]
[null,null,null,null,null," "," "," "," "]
[null,null,null,null,null," "," "," "," "]
[null,null,null,null,null," "," "," "," "]
[null,null,null,null,null," "," "," "," "]
[null,null,null,null,null," "," "," "," "]
[null,null,null,null,null," "," "," "," "]
[null,null,null,null,null," "," "," "," "]
[null,null,null,null,null," "," "," "," "]
[null,null,null,null,null," "," "," "," "]
[null,null,null,null,null," "," "," "," "]
[null,null,null,null,null," "," "," "," "]
[null,null,null,null,null," "," "," "," "]
[null,null,null,null,null," "," "," "," "]
[null,null,null,null,null," "," "," "," "]
[null,null,null,null,null," "," "," "," "]
[null,null,null,null,null," "," "," "," "]
[null,null,null,null,null," "," "," "," "]
[null,null,null,null,null," "," "," "," "]
[null,null,null,null,null," "," "," "," "]
[null,null,null,null,null," "," "," "," "]
[null,null,null,null,null," "," "," "," "]
[null,null,null,null,null," "," "," "," "]
[null,null,null,null,null," "," "," "," "]
[null,null,null,null,null," "," "," "," "]
[null,null,null,null,null," "," "," "," "]
[null,null,null,null,null," "," "," "," "]
[null,null,null,null,null," "," "," "," "]
[null,null,null,null,null," "," "," "," "]
[null,null,null,null,null," "," "," "," "]
[null,null,null,null,null," "," "," "," "]
[null,null,null,null,null," "," "," "," "]
[null,null,null,null,null," "," "," "," "]
[null,null,null,null,null," "," "," "," "]
[null,null,null,null,null,{"$f":"IF(A67>0,B67/100,\" \")","v":" "},{"$f":"IF(A67>0,C67/100,\" \")","v":" "},{"$f":"IF(A67>0,D67/100,\" \")","v":" "},{"$f":"IF(A67>0,E67/100,\" \")","v":" "}]
[null,null,null,null,null," "," "," "," "]
[null,null,null,null,null," "," "," "," "]
[null,null,null,null,null," "," "," "," "]
[null,null,null,null,null," "," "," "," "]
[null,null,null,null,null," "," "," "," "]
[null,null,null,null,null," "," "," "," "]
[null,null,null,null,null," "," "," "," "]
[null,null,null,null,null," "," "," "," "]
[null,null,null,null,null," "," "," "," "]
[null,null,null,null,null," "," "," "," "]
[null,null,null,null,null," "," "," "," "]
[null,null,null,null,null," "," "," "," "]
[null,null,null,null,null," "," "," "," "]
[null,null,null,null,null," "," "," "," "]
[null,null,null,null,null," "," "," "," "]
[null,null,null,null,null," "," "," "," "]
[null,null,null,null,null," "," "," "," "]
[null,null,null,null,null," "," "," "," "]
[null,null,null,null,null," "," "," "," "]
[null,null,null,null,null," "," "," "," "]
[null,null,null,null,null," "," "," "," "]
[null,null,null,null,null," "," "," "," "]
[null,null,null,null,null," "," "," "," "]
[null,null,null,null,null," "," "," "," "]
[null,null,null,null,null," "," "," "," "]
[null,null,null,null,null," "," "," "," "]
[null,null,null,null,null," "," "," "," "]
[null,null,null,null,null," "," "," "," "]
[null,null,null,null,null," "," "," "," "]
[null,null,null,null,null," "," "," "," "]
[null,null,null,null,null," "," "," "," "]
[null,null,null,null,null," "," "," "," "]
[null,null,null,null,null," "," "," "," "]
[null,null,null,null,null," "," "," "," "]
[null,null,null,null,null," "," "," "," "]
[null,null,null,null,null," "," "," "," "]
[null,null,null,null,null," "," "," "," "]
[null,null,null,null,null," "," "," "," "]
[null,null,null,null,null," "," "," "," "]
[null,null,null,null,null," "," "," "," "]
[null,null,null,null,null," "," "," "," "]
[null,null,null,null,null," "," "," "," "]
[null,null,null,null,null," "," "," "," "]
[null,null,null,null,null," "," "," "," "]
[null,null,null,null,null," "," "," "," "]
[null,null,null,null,null," "," "," "," "]
[null,null,null,null,null," "," "," "," "]
[null,null,null,null,null," "," "," "," "]
[null,null,null,null,null," "," "," "," "]
[null,null,null,null,null," "," "," "," "]
[null,null,null,null,null," "," "," "," "]
[null,null,null,null,null," "," "," "," "]
[null,null,null,null,null," "," "," "," "]
[null,null,null,null,null," "," "," "," "]
[null,null,null,null,null," "," "," "," "]
[null,null,null,null,null," "," "," "," "]
[null,null,null,null,null," "," "," "," "]
[null,null,null,null,null," "," "," "," "]
[null,null,null,null,null," "," "," "," "]
[null,null,null,null,null," "," "," "," "]
[null,null,null,null,null," "," "," "," "]
[null,null,null,null,null," "," "," "," "]
[null,null,null,null,null," "," "," "," "]
[null,null,null,null,null,{"$f":"IF(A131>0,B131/100,\" \")","v":" "},{"$f":"IF(A131>0,C131/100,\" \")","v":" "},{"$f":"IF(A131>0,D131/100,\" \")","v":" "},{"$f":"IF(A131>0,E131/100,\" \")","v":" "}]
[null,null,null,null,null," "," "," "," "]
[null,null,null,null,null," "," "," "," "]
[null,null,null,null,null," "," "," "," "]
[null,null,null,null,null," "," "," "," "]
[null,null,null,null,null," "," "," "," "]
[null,null,null,null,null," "," "," "," "]
[null,null,null,null,null," "," "," "," "]
[null,null,null,null,null," "," "," "," "]
[null,null,null,null,null," "," "," "," "]
[null,null,null,null,null," "," "," "," "]
[null,null,null,null,null," "," "," "," "]
[null,null,null,null,null," "," "," "," "]
[null,null,null,null,null," "," "," "," "]
[null,null,null,null,null," "," "," "," "]
[null,null,null,null,null," "," "," "," "]
[null,null,null,null,null," "," "," "," "]
[null,null,null,null,null," "," "," "," "]
[null,null,null,null,null," "," "," "," "]
[null,null,null,null,null," "," "," "," "]
[null,null,null,null,null," "," "," "," "]
[null,null,null,null,null," "," "," "," "]
[null,null,null,null,null," "," "," "," "]
[null,null,null,null,null," "," "," "," "]
[null,null,null,null,null," "," "," "," "]
[null,null,null,null,null," "," "," "," "]
[null,null,null,null,null," "," "," "," "]
[null,null,null,null,null," "," "," "," "]
[null,null,null,null,null," "," "," "," "]
[null,null,null,null,null," "," "," "," "]
[null,null,null,null,null," "," "," "," "]
[null,null,null,null,null," "," "," "," "]
[null,null,null,null,null," "," "," "," "]
[null,null,null,null,null," "," "," "," "]
[null,null,null,null,null," "," "," "," "]
[null,null,null,null,null," "," "," "," "]
[null,null,null,null,null," "," "," "," "]
[null,null,null,null,null," "," "," "," "]
[null,null,null,null,null," "," "," "," "]
[null,null,null,null,null," "," "," "," "]
[null,null,null,null,null," "," "," "," "]
[null,null,null,null,null," "," "," "," "]
[null,null,null,null,null," "," "," "," "]
[null,null,null,null,null," "," "," "," "]
[null,null,null,null,null," "," "," "," "]
[null,null,null,null,null," "," "," "," "]
[null,null,null,null,null," "," "," "," "]
[null,null,null,null,null," "," "," "," "]
[null,null,null,null,null," "," "," "," "]
[null,null,null,null,null," "," "," "," "]
[null,null,null,null,null," "," "," "," "]
[null,null,null,null,null," "," "," "," "]
[null,null,null,null,null," "," "," "," "]
[null,null,null,null,null," "," "," "," "]
[null,null,null,null,null," "," "," "," "]
[null,null,null,null,null," "," "," "," "]
[null,null,null,null,null," "," "," "," "]
[null,null,null,null,null," "," "," "," "]
[null,null,null,null,null," "," "," "," "]
[null,null,null,null,null," "," "," "," "]
[null,null,null,null,null," "," "," "," "]
[null,null,null,null,null," "," "," "," "]
[null,null,null,null,null," "," "," "," "]
[null,null,null,null,null," "," "," "," "]
[null,null,null,null,null,{"$f":"IF(A195>0,B195/100,\" \")","v":" "},{"$f":"IF(A195>0,C195/100,\" \")","v":" "},{"$f":"IF(A195>0,D195/100,\" \")","v":" "},{"$f":"IF(A195>0,E195/100,\" \")","v":" "}]
[null,null,null,null,null," "," "," "," "]
[null,null,null,null,null," "," "," "," "]
[null,null,null,null,null," "," "," "," "]
[null,null,null,null,null," "," "," "," "]
[null,null,null,null,null," "," "," "," "]
[null,null,null,null,null," "," "," "," "]
[null,null,null,null,null," "," "," "," "]
[null,null,null,null,null," "," "," "," "]
[null,null,null,null,null," "," "," "," "]
[null,null,null,null,null," "," "," "," "]
[null,null,null,null,null," "," "," "," "]
[null,null,null,null,null," "," "," "," "]
[null,null,null,null,null," "," "," "," "]
[null,null,null,null,null," "," "," "," "]
[null,null,null,null,null," "," "," "," "]
[null,null,null,null,null," "," "," "," "]
[null,null,null,null,null," "," "," "," "]
[null,null,null,null,null," "," "," "," "]
[null,null,null,null,null," "," "," "," "]
[null,null,null,null,null," "," "," "," "]
[null,null,null,null,null," "," "," "," "]
[null,null,null,null,null," "," "," "," "]
[null,null,null,null,null," "," "," "," "]
[null,null,null,null,null," "," "," "," "]
[null,null,null,null,null," "," "," "," "]
[null,null,null,null,null," "," "," "," "]
[null,null,null,null,null," "," "," "," "]
[null,null,null,null,null," "," "," "," "]
[null,null,null,null,null," "," "," "," "]
[null,null,null,null,null," "," "," "," "]
[null,null,null,null,null," "," "," "," "]
[null,null,null,null,null," "," "," "," "]
[null,null,null,null,null," "," "," "," "]
[null,null,null,null,null," "," "," "," "]
[null,null,null,null,null," "," "," "," "]
[null,null,null,null,null," "," "," "," "]
[null,null,null,null,null," "," "," "," "]
[null,null,null,null,null," "," "," "," "]
[null,null,null,null,null," "," "," "," "]
[null,null,null,null,null," "," "," "," "]
[null,null,null,null,null," "," "," "," "]
[null,null,null,null,null," "," "," "," "]
[null,null,null,null,null," "," "," "," "]
[null,null,null,null,null," "," "," "," "]
[null,null,null,null,null," "," "," "," "]
[null,null,null,null,null," "," "," "," "]
[null,null,null,null,null," "," "," "," "]
[null,null,null,null,null," "," "," "," "]
[null,null,null,null,null," "," "," "," "]
[null,null,null,null,null," "," "," "," "]
[null,null,null,null,null," "," "," "," "]
[null,null,null,null,null," "," "," "," "]
[null,null,null,null,null," "," "," "," "]
[null,null,null,null,null," "," "," "," "]
[null,null,null,null,null," "," "," "," "]
[null,null,null,null,null," "," "," "," "]
[null,null,null,null,null," "," "," "," "]
[null,null,null,null,null," "," "," "," "]
[null,null,null,null,null," "," "," "," "]
[null,null,null,null,null," "," "," "," "]
[null,null,null,null,null," "," "," "," "]
[null,null,null,null,null," "," "," "," "]
[null,null,null,null,null," "," "," "," "]
[null,null,null,null,null,{"$f":"IF(A259>0,B259/100,\" \")","v":" "},{"$f":"IF(A259>0,C259/100,\" \")","v":" "},{"$f":"IF(A259>0,D259/100,\" \")","v":" "},{"$f":"IF(A259>0,E259/100,\" \")","v":" "}]
[null,null,null,null,null," "," "," "," "]
[null,null,null,null,null," "," "," "," "]
[null,null,null,null,null," "," "," "," "]
[null,null,null,null,null," "," "," "," "]
[null,null,null,null,null," "," "," "," "]
[null,null,null,null,null," "," "," "," "]
[null,null,null,null,null," "," "," "," "]
[null,null,null,null,null," "," "," "," "]
[null,null,null,null,null," "," "," "," "]
[null,null,null,null,null," "," "," "," "]
[null,null,null,null,null," "," "," "," "]
[null,null,null,null,null," "," "," "," "]
[null,null,null,null,null," "," "," "," "]
[null,null,null,null,null," "," "," "," "]
[null,null,null,null,null," "," "," "," "]
[null,null,null,null,null," "," "," "," "]
[null,null,null,null,null," "," "," "," "]
[null,null,null,null,null," "," "," "," "]
[null,null,null,null,null," "," "," "," "]
[null,null,null,null,null," "," "," "," "]
[null,null,null,null,null," "," "," "," "]
[null,null,null,null,null," "," "," "," "]
[null,null,null,null,null," "," "," "," "]
[null,null,null,null,null," "," "," "," "]
[null,null,null,null,null," "," "," "," "]
[null,null,null,null,null," "," "," "," "]
[null,null,null,null,null," "," "," "," "]
[null,null,null,null,null," "," "," "," "]
[null,null,null,null,null," "," "," "," "]
[null,null,null,null,null," "," "," "," "]
[null,null,null,null,null," "," "," "," "]
[null,null,null,null,null," "," "," "," "]
[null,null,null,null,null," "," "," "," "]
[null,null,null,null,null," "," "," "," "]
[null,null,null,null,null," "," "," "," "]
[null,null,null,null,null," "," "," "," "]
[null,null,null,null,null," "," "," "," "]
[null,null,null,null,null," "," "," "," "]
[null,null,null,null,null," "," "," "," "]
[null,null,null,null,null," "," "," "," "]
[null,null,null,null,null," "," "," "," "]
[null,null,null,null,null," "," "," "," "]
[null,null,null,null,null," "," "," "," "]
[null,null,null,null,null," "," "," "," "]
[null,null,null,null,null," "," "," "," "]
[null,null,null,null,null," "," "," "," "]
[null,null,null,null,null," "," "," "," "]
[null,null,null,null,null," "," "," "," "]
[null,null,null,null,null," "," "," "," "]
[null,null,null,null,null," "," "," "," "]
[null,null,null,null,null," "," "," "," "]
[null,null,null,null,null," "," "," "," "]
[null,null,null,null,null," "," "," "," "]
[null,null,null,null,null," "," "," "," "]
[null,null,null,null,null," "," "," "," "]
[null,null,null,null,null," "," "," "," "]
[null,null,null,null,null," "," "," "," "]
[null,null,null,null,null," "," "," "," "]
[null,null,null,null,null," "," "," "," "]
[null,null,null,null,null," "," "," "," "]
[null,null,null,null,null," "," "," "," "]
[null,null,null,null,null," "," "," "," "]
[null,null,null,null,null," "," "," "," "]
[null,null,null,null,null,{"$f":"IF(A323>0,B323/100,\" \")","v":" "},{"$f":"IF(A323>0,C323/100,\" \")","v":" "},{"$f":"IF(A323>0,D323/100,\" \")","v":" "},{"$f":"IF(A323>0,E323/100,\" \")","v":" "}]
[null,null,null,null,null," "," "," "," "]
[null,null,null,null,null," "," "," "," "]
[null,null,null,null,null," "," "," "," "]
[null,null,null,null,null," "," "," "," "]
[null,null,null,null,null," "," "," "," "]
[null,null,null,null,null," "," "," "," "]
[null,null,null,null,null," "," "," "," "]
[null,null,null,null,null," "," "," "," "]
[null,null,null,null,null," "," "," "," "]
[null,null,null,null,null," "," "," "," "]
[null,null,null,null,null," "," "," "," "]
[null,null,null,null,null," "," "," "," "]
[null,null,null,null,null," "," "," "," "]
[null,null,null,null,null," "," "," "," "]
[null,null,null,null,null," "," "," "," "]
[null,null,null,null,null," "," "," "," "]
[null,null,null,null,null," "," "," "," "]
[null,null,null,null,null," "," "," "," "]
[null,null,null,null,null," "," "," "," "]
[null,null,null,null,null," "," "," "," "]
[null,null,null,null,null," "," "," "," "]
[null,null,null,null,null," "," "," "," "]
[null,null,null,null,null," "," "," "," "]
[null,null,null,null,null," "," "," "," "]
[null,null,null,null,null," "," "," "," "]
[null,null,null,null,null," "," "," "," "]
[null,null,null,null,null," "," "," "," "]
[null,null,null,null,null," "," "," "," "]
[null,null,null,null,null," "," "," "," "]
[null,null,null,null,null," "," "," "," "]
[null,null,null,null,null," "," "," "," "]
[null,null,null,null,null," "," "," "," "]
[null,null,null,null,null," "," "," "," "]
[null,null,null,null,null," "," "," "," "]
[null,null,null,null,null," "," "," "," "]
[null,null,null,null,null," "," "," "," "]
[null,null,null,null,null," "," "," "," "]
[null,null,null,null,null," "," "," "," "]
[null,null,null,null,null," "," "," "," "]
[null,null,null,null,null," "," "," "," "]
[null,null,null,null,null," "," "," "," "]
[null,null,null,null,null," "," "," "," "]
[null,null,null,null,null," "," "," "," "]
[null,null,null,null,null," "," "," "," "]
[null,null,null,null,null," "," "," "," "]
[null,null,null,null,null," "," "," "," "]
[null,null,null,null,null," "," "," "," "]
[null,null,null,null,null," "," "," "," "]
[null,null,null,null,null," "," "," "," "]
[null,null,null,null,null," "," "," "," "]
[null,null,null,null,null," "," "," "," "]
[null,null,null,null,null," "," "," "," "]
[null,null,null,null,null," "," "," "," "]
[null,null,null,null,null," "," "," "," "]
[null,null,null,null,null," "," "," "," "]
[null,null,null,null,null," "," "," "," "]
[null,null,null,null,null," "," "," "," "]
[null,null,null,null,null," "," "," "," "]
[null,null,null,null,null," "," "," "," "]
[null,null,null,null,null," "," "," "," "]
[null,null,null,null,null," "," "," "," "]
[null,null,null,null,null," "," "," "," "]
[null,null,null,null,null," "," "," "," "]
[null,null,null,null,null,{"$f":"IF(A387>0,B387/100,\" \")","v":" "},{"$f":"IF(A387>0,C387/100,\" \")","v":" "},{"$f":"IF(A387>0,D387/100,\" \")","v":" "},{"$f":"IF(A387>0,E387/100,\" \")","v":" "}]
[null,null,null,null,null," "," "," "," "]
[null,null,null,null,null," "," "," "," "]
[null,null,null,null,null," "," "," "," "]
[null,null,null,null,null," "," "," "," "]
[null,null,null,null,null," "," "," "," "]
[null,null,null,null,null," "," "," "," "]
[null,null,null,null,null," "," "," "," "]
[null,null,null,null,null," "," "," "," "]
[null,null,null,null,null," "," "," "," "]
[null,null,null,null,null," "," "," "," "]
[null,null,null,null,null," "," "," "," "]
[null,null,null,null,null," "," "," "," "]
[null,null,null,null,null," "," "," "," "]
[null,null,null,null,null," "," "," "," "]
[null,null,null,null,null," "," "," "," "]
[null,null,null,null,null," "," "," "," "]
[null,null,null,null,null," "," "," "," "]
[null,null,null,null,null," "," "," "," "]
[null,null,null,null,null," "," "," "," "]
[null,null,null,null,null," "," "," "," "]
[null,null,null,null,null," "," "," "," "]
[null,null,null,null,null," "," "," "," "]
[null,null,null,null,null," "," "," "," "]
[null,null,null,null,null," "," "," "," "]
[null,null,null,null,null," "," "," "," "]
[null,null,null,null,null," "," "," "," "]
[null,null,null,null,null," "," "," "," "]
[null,null,null,null,null," "," "," "," "]
[null,null,null,null,null," "," "," "," "]
[null,null,null,null,null," "," "," "," "]
[null,null,null,null,null," "," "," "," "]
[null,null,null,null,null," "," "," "," "]
[null,null,null,null,null," "," "," "," "]
[null,null,null,null,null," "," "," "," "]
[null,null,null,null,null," "," "," "," "]
[null,null,null,null,null," "," "," "," "]
[null,null,null,null,null," "," "," "," "]
[null,null,null,null,null," "," "," "," "]
[null,null,null,null,null," "," "," "," "]
[null,null,null,null,null," "," "," "," "]
[null,null,null,null,null," "," "," "," "]
[null,null,null,null,null," "," "," "," "]
[null,null,null,null,null," "," "," "," "]
[null,null,null,null,null," "," "," "," "]
[null,null,null,null,null," "," "," "," "]
[null,null,null,null,null," "," "," "," "]
[null,null,null,null,null," "," "," "," "]
[null,null,null,null,null," "," "," "," "]
[null,null,null,null,null," "," "," "," "]
[null,null,null,null,null," "," "," "," "]
[null,null,null,null,null," "," "," "," "]
[null,null,null,null,null," "," "," "," "]
[null,null,null,null,null," "," "," "," "]
[null,null,null,null,null," "," "," "," "]
[null,null,null,null,null," "," "," "," "]
[null,null,null,null,null," "," "," "," "]
[null,null,null,null,null," "," "," "," "]
[null,null,null,null,null," "," "," "," "]
[null,null,null,null,null," "," "," "," "]
[null,null,null,null,null," "," "," "," "]
[null,null,null,null,null," "," "," "," "]
[null,null,null,null,null," "," "," "," "]
[null,null,null,null,null," "," "," "," "]
[null,null,null,null,null,{"$f":"IF(A451>0,B451/100,\" \")","v":" "},{"$f":"IF(A451>0,C451/100,\" \")","v":" "},{"$f":"IF(A451>0,D451/100,\" \")","v":" "},{"$f":"IF(A451>0,E451/100,\" \")","v":" "}]
[null,null,null,null,null," "," "," "," "]
[null,null,null,null,null," "," "," "," "]
[null,null,null,null,null," "," "," "," "]
[null,null,null,null,null," "," "," "," "]
[null,null,null,null,null," "," "," "," "]
[null,null,null,null,null," "," "," "," "]
[null,null,null,null,null," "," "," "," "]
[null,null,null,null,null," "," "," "," "]
[null,null,null,null,null," "," "," "," "]
[null,null,null,null,null," "," "," "," "]
[null,null,null,null,null," "," "," "," "]
[null,null,null,null,null," "," "," "," "]
[null,null,null,null,null," "," "," "," "]
[null,null,null,null,null," "," "," "," "]
[null,null,null,null,null," "," "," "," "]
[null,null,null,null,null," "," "," "," "]
[null,null,null,null,null," "," "," "," "]
[null,null,null,null,null," "," "," "," "]
[null,null,null,null,null," "," "," "," "]
[null,null,null,null,null," "," "," "," "]
[null,null,null,null,null," "," "," "," "]
[null,null,null,null,null," "," "," "," "]
[null,null,null,null,null," "," "," "," "]
[null,null,null,null,null," "," "," "," "]
[null,null,null,null,null," "," "," "," "]
[null,null,null,null,null," "," "," "," "]
[null,null,null,null,null," "," "," "," "]
[null,null,null,null,null," "," "," "," "]
[null,null,null,null,null," "," "," "," "]
[null,null,null,null,null," "," "," "," "]
[null,null,null,null,null," "," "," "," "]
[null,null,null,null,null," "," "," "," "]
[null,null,null,null,null," "," "," "," "]
[null,null,null,null,null," "," "," "," "]
[null,null,null,null,null," "," "," "," "]
[null,null,null,null,null," "," "," "," "]
[null,null,null,null,null," "," "," "," "]
[null,null,null,null,null," "," "," "," "]
[null,null,null,null,null," "," "," "," "]
[null,null,null,null,null," "," "," "," "]
[null,null,null,null,null," "," "," "," "]
[null,null,null,null,null," "," "," "," "]
[null,null,null,null,null," "," "," "," "]
[null,null,null,null,null," "," "," "," "]
[null,null,null,null,null," "," "," "," "]
[null,null,null,null,null," "," "," "," "]
[null,null,null,null,null," "," "," "," "]
[null,null,null,null,null," "," "," "," "]
[null,null,null,null,null," "," "," "," "]
[null,null,null,null,null," "," "," "," "]
[null,null,null,null,null," "," "," "," "]
[null,null,null,null,null," "," "," "," "]
[null,null,null,null,null," "," "," "," "]
[null,null,null,null,null," "," "," "," "]
[null,null,null,null,null," "," "," "," "]
[null,null,null,null,null," "," "," "," "]
[null,null,null,null,null," "," "," "," "]
[null,null,null,null,null," "," "," "," "]
[null,null,null,null,null," "," "," "," "]
[null,null,null,null,null," "," "," "," "]
[null,null,null,null,null," "," "," "," "]
[null,null,null,null,null," "," "," "," "]
[null,null,null,null,null," "," "," "," "]
[null,null,null,null,null,{"$f":"IF(A515>0,B515/100,\" \")","v":" "},{"$f":"IF(A515>0,C515/100,\" \")","v":" "},{"$f":"IF(A515>0,D515/100,\" \")","v":" "},{"$f":"IF(A515>0,E515/100,\" \")","v":" "}]
[null,null,null,null,null," "," "," "," "]
[null,null,null,null,null," "," "," "," "]
[null,null,null,null,null," "," "," "," "]
[null,null,null,null,null," "," "," "," "]
[null,null,null,null,null," "," "," "," "]
[null,null,null,null,null," "," "," "," "]
[null,null,null,null,null," "," "," "," "]
[null,null,null,null,null," "," "," "," "]
[null,null,null,null,null," "," "," "," "]
[null,null,null,null,null," "," "," "," "]
[null,null,null,null,null," "," "," "," "]
[null,null,null,null,null," "," "," "," "]
[null,null,null,null,null," "," "," "," "]
[null,null,null,null,null," "," "," "," "]
[null,null,null,null,null," "," "," "," "]
[null,null,null,null,null," "," "," "," "]
[null,null,null,null,null," "," "," "," "]
[null,null,null,null,null," "," "," "," "]
[null,null,null,null,null," "," "," "," "]
[null,null,null,null,null," "," "," "," "]
[null,null,null,null,null," "," "," "," "]
[null,null,null,null,null," "," "," "," "]
[null,null,null,null,null," "," "," "," "]
[null,null,null,null,null," "," "," "," "]
[null,null,null,null,null," "," "," "," "]
[null,null,null,null,null," "," "," "," "]
[null,null,null,null,null," "," "," "," "]
[null,null,null,null,null," "," "," "," "]
[null,null,null,null,null," "," "," "," "]
[null,null,null,null,null," "," "," "," "]
[null,null,null,null,null," "," "," "," "]
[null,null,null,null,null," "," "," "," "]
[null,null,null,null,null," "," "," "," "]
[null,null,null,null,null," "," "," "," "]
[null,null,null,null,null," "," "," "," "]
[null,null,null,null,null," "," "," "," "]
[null,null,null,null,null," "," "," "," "]
[null,null,null,null,null," "," "," "," "]
[null,null,null,null,null," "," "," "," "]
[null,null,null,null,null," "," "," "," "]
[null,null,null,null,null," "," "," "," "]
[null,null,null,null,null," "," "," "," "]
[null,null,null,null,null," "," "," "," "]
[null,null,null,null,null," "," "," "," "]
[null,null,null,null,null," "," "," "," "]
[null,null,null,null,null," "," "," "," "]
[null,null,null,null,null," "," "," "," "]
[null,null,null,null,null," "," "," "," "]
[null,null,null,null,null," "," "," "," "]
[null,null,null,null,null," "," "," "," "]
[null,null,null,null,null," "," "," "," "]
[null,null,null,null,null," "," "," "," "]
[null,null,null,null,null," "," "," "," "]
[null,null,null,null,null," "," "," "," "]
[null,null,null,null,null," "," "," "," "]
[null,null,null,null,null," "," "," "," "]
[null,null,null,null,null," "," "," "," "]
[null,null,null,null,null," "," "," "," "]
[null,null,null,null,null," "," "," "," "]
[null,null,null,null,null," "," "," "," "]
[null,null,null,null,null," "," "," "," "]
[null,null,null,null,null," "," "," "," "]
[null,null,null,null,null," "," "," "," "]
[null,null,null,null,null,{"$f":"IF(A579>0,B579/100,\" \")","v":" "},{"$f":"IF(A579>0,C579/100,\" \")","v":" "},{"$f":"IF(A579>0,D579/100,\" \")","v":" "},{"$f":"IF(A579>0,E579/100,\" \")","v":" "}]
[null,null,null,null,null," "," "," "," "]
[null,null,null,null,null," "," "," "," "]
[null,null,null,null,null," "," "," "," "]
[null,null,null,null,null," "," "," "," "]
[null,null,null,null,null," "," "," "," "]
[null,null,null,null,null," "," "," "," "]
[null,null,null,null,null," "," "," "," "]
[null,null,null,null,null," "," "," "," "]
[null,null,null,null,null," "," "," "," "]
[null,null,null,null,null," "," "," "," "]
[null,null,null,null,null," "," "," "," "]
[null,null,null,null,null," "," "," "," "]
[null,null,null,null,null," "," "," "," "]
[null,null,null,null,null," "," "," "," "]
[null,null,null,null,null," "," "," "," "]
[null,null,null,null,null," "," "," "," "]
[null,null,null,null,null," "," "," "," "]
[null,null,null,null,null," "," "," "," "]
[null,null,null,null,null," "," "," "," "]
[null,null,null,null,null," "," "," "," "]
[null,null,null,null,null," "," "," "," "]
[null,null,null,null,null," "," "," "," "]
[null,null,null,null,null," "," "," "," "]
[null,null,null,null,null," "," "," "," "]
[null,null,null,null,null," "," "," "," "]
[null,null,null,null,null," "," "," "," "]
[null,null,null,null,null," "," "," "," "]
[null,null,null,null,null," "," "," "," "]
[null,null,null,null,null," "," "," "," "]
[null,null,null,null,null," "," "," "," "]
[null,null,null,null,null," "," "," "," "]
[null,null,null,null,null," "," "," "," "]
[null,null,null,null,null," "," "," "," "]
[null,null,null,null,null," "," "," "," "]
[null,null,null,null,null," "," "," "," "]
[null,null,null,null,null," "," "," "," "]
[null,null,null,null,null," "," "," "," "]
[null,null,null,null,null," "," "," "," "]
[null,null,null,null,null," "," "," "," "]
[null,null,null,null,null," "," "," "," "]
[null,null,null,null,null," "," "," "," "]
[null,null,null,null,null," "," "," "," "]
[null,null,null,null,null," "," "," "," "]
[null,null,null,null,null," "," "," "," "]
[null,null,null,null,null," "," "," "," "]
[null,null,null,null,null," "," "," "," "]
[null,null,null,null,null," "," "," "," "]
[null,null,null,null,null," "," "," "," "]
[null,null,null,null,null," "," "," "," "]
[null,null,null,null,null," "," "," "," "]
[null,null,null,null,null," "," "," "," "]
[null,null,null,null,null," "," "," "," "]
[null,null,null,null,null," "," "," "," "]
[null,null,null,null,null," "," "," "," "]
[null,null,null,null,null," "," "," "," "]
[null,null,null,null,null," "," "," "," "]
[null,null,null,null,null," "," "," "," "]
[null,null,null,null,null," "," "," "," "]
[null,null,null,null,null," "," "," "," "]
[null,null,null,null,null," "," "," "," "]
[null,null,null,null,null," "," "," "," "]
[null,null,null,null,null," "," "," "," "]
[null,null,null,null,null," "," "," "," "]
[null,null,null,null,null,{"$f":"IF(A643>0,B643/100,\" \")","v":" "},{"$f":"IF(A643>0,C643/100,\" \")","v":" "},{"$f":"IF(A643>0,D643/100,\" \")","v":" "},{"$f":"IF(A643>0,E643/100,\" \")","v":" "}]
[null,null,null,null,null," "," "," "," "]
[null,null,null,null,null," "," "," "," "]
[null,null,null,null,null," "," "," "," "]
[null,null,null,null,null," "," "," "," "]
[null,null,null,null,null," "," "," "," "]
[null,null,null,null,null," "," "," "," "]
[null,null,null,null,null," "," "," "," "]
[null,null,null,null,null," "," "," "," "]
[null,null,null,null,null," "," "," "," "]
[null,null,null,null,null," "," "," "," "]
[null,null,null,null,null," "," "," "," "]
[null,null,null,null,null," "," "," "," "]
[null,null,null,null,null," "," "," "," "]
[null,null,null,null,null," "," "," "," "]
[null,null,null,null,null," "," "," "," "]
[null,null,null,null,null," "," "," "," "]
[null,null,null,null,null," "," "," "," "]
[null,null,null,null,null," "," "," "," "]
[null,null,null,null,null," "," "," "," "]
[null,null,null,null,null," "," "," "," "]
[null,null,null,null,null," "," "," "," "]
[null,null,null,null,null," "," "," "," "]
[null,null,null,null,null," "," "," "," "]
[null,null,null,null,null," "," "," "," "]
[null,null,null,null,null," "," "," "," "]
[null,null,null,null,null," "," "," "," "]
[null,null,null,null,null," "," "," "," "]
[null,null,null,null,null," "," "," "," "]
[null,null,null,null,null," "," "," "," "]
[null,null,null,null,null," "," "," "," "]
[null,null,null,null,null," "," "," "," "]
[null,null,null,null,null," "," "," "," "]
[null,null,null,null,null," "," "," "," "]
[null,null,null,null,null," "," "," "," "]
[null,null,null,null,null," "," "," "," "]
[null,null,null,null,null," "," "," "," "]
[null,null,null,null,null," "," "," "," "]
[null,null,null,null,null," "," "," "," "]
[null,null,null,null,null," "," "," "," "]
[null,null,null,null,null," "," "," "," "]
[null,null,null,null,null," "," "," "," "]
[null,null,null,null,null," "," "," "," "]
[null,null,null,null,null," "," "," "," "]
[null,null,null,null,null," "," "," "," "]
[null,null,null,null,null," "," "," "," "]
[null,null,null,null,null," "," "," "," "]
[null,null,null,null,null," "," "," "," "]
[null,null,null,null,null," "," "," "," "]
[null,null,null,null,null," "," "," "," "]
[null,null,null,null,null," "," "," "," "]
[null,null,null,null,null," "," "," "," "]
[null,null,null,null,null," "," "," "," "]
[null,null,null,null,null," "," "," "," "]
[null,null,null,null,null," "," "," "," "]
[null,null,null,null,null," "," "," "," "]
[null,null,null,null,null," "," "," "," "]
[null,null,null,null,null," "," "," "," "]
[null,null,null,null,null," "," "," "," "]
[null,null,null,null,null," "," "," "," "]
[null,null,null,null,null," "," "," "," "]
[null,null,null,null,null," "," "," "," "]
[null,null,null,null,null," "," "," "," "]
[null,null,null,null,null," "," "," "," "]
[null,null,null,null,null,{"$f":"IF(A707>0,B707/100,\" \")","v":" "},{"$f":"IF(A707>0,C707/100,\" \")","v":" "},{"$f":"IF(A707>0,D707/100,\" \")","v":" "},{"$f":"IF(A707>0,E707/100,\" \")","v":" "}]
[null,null,null,null,null," "," "," "," "]
[null,null,null,null,null," "," "," "," "]
[null,null,null,null,null," "," "," "," "]
[null,null,null,null,null," "," "," "," "]
[null,null,null,null,null," "," "," "," "]
[null,null,null,null,null," "," "," "," "]
[null,null,null,null,null," "," "," "," "]
[null,null,null,null,null," "," "," "," "]
[null,null,null,null,null," "," "," "," "]
[null,null,null,null,null," "," "," "," "]
[null,null,null,null,null," "," "," "," "]
[null,null,null,null,null," "," "," "," "]
[null,null,null,null,null," "," "," "," "]
[null,null,null,null,null," "," "," "," "]
[null,null,null,null,null," "," "," "," "]
[null,null,null,null,null," "," "," "," "]
[null,null,null,null,null," "," "," "," "]
[null,null,null,null,null," "," "," "," "]
[null,null,null,null,null," "," "," "," "]
[null,null,null,null,null," "," "," "," "]
[null,null,null,null,null," "," "," "," "]
[null,null,null,null,null," "," "," "," "]
[null,null,null,null,null," "," "," "," "]
[null,null,null,null,null," "," "," "," "]
[null,null,null,null,null," "," "," "," "]
[null,null,null,null,null," "," "," "," "]
[null,null,null,null,null," "," "," "," "]
[null,null,null,null,null," "," "," "," "]
[null,null,null,null,null," "," "," "," "]
[null,null,null,null,null," "," "," "," "]
[null,null,null,null,null," "," "," "," "]
[null,null,null,null,null," "," "," "," "]
[null,null,null,null,null," "," "," "," "]
[null,null,null,null,null," "," "," "," "]
[null,null,null,null,null," "," "," "," "]
[null,null,null,null,null," "," "," "," "]
[null,null,null,null,null," "," "," "," "]
[null,null,null,null,null," "," "," "," "]
[null,null,null,null,null," "," "," "," "]
[null,null,null,null,null," "," "," "," "]
[null,null,null,null,null," "," "," "," "]
[null,null,null,null,null," "," "," "," "]
[null,null,null,null,null," "," "," "," "]
[null,null,null,null,null," "," "," "," "]
[null,null,null,null,null," "," "," "," "]
[null,null,null,null,null," "," "," "," "]
[null,null,null,null,null," "," "," "," "]
[null,null,null,null,null," "," "," "," "]
[null,null,null,null,null," "," "," "," "]
[null,null,null,null,null," "," "," "," "]
[null,null,null,null,null," "," "," "," "]
[null,null,null,null,null," "," "," "," "]
[null,null,null,null,null," "," "," "," "]
[null,null,null,null,null," "," "," "," "]
[null,null,null,null,null," "," "," "," "]
[null,null,null,null,null," "," "," "," "]
[null,null,null,null,null," "," "," "," "]
[null,null,null,null,null," "," "," "," "]
[null,null,null,null,null," "," "," "," "]
[null,null,null,null,null," "," "," "," "]
[null,null,null,null,null," "," "," "," "]
[null,null,null,null,null," "," "," "," "]
[null,null,null,null,null," "," "," "," "]
[null,null,null,null,null,{"$f":"IF(A771>0,B771/100,\" \")","v":" "},{"$f":"IF(A771>0,C771/100,\" \")","v":" "},{"$f":"IF(A771>0,D771/100,\" \")","v":" "},{"$f":"IF(A771>0,E771/100,\" \")","v":" "}]
[null,null,null,null,null," "," "," "," "]
[null,null,null,null,null," "," "," "," "]
[null,null,null,null,null," "," "," "," "]
[null,null,null,null,null," "," "," "," "]
[null,null,null,null,null," "," "," "," "]
[null,null,null,null,null," "," "," "," "]
[null,null,null,null,null," "," "," "," "]
[null,null,null,null,null," "," "," "," "]
[null,null,null,null,null," "," "," "," "]
[null,null,null,null,null," "," "," "," "]
[null,null,null,null,null," "," "," "," "]
[null,null,null,null,null," "," "," "," "]
[null,null,null,null,null," "," "," "," "]
[null,null,null,null,null," "," "," "," "]
[null,null,null,null,null," "," "," "," "]
[null,null,null,null,null," "," "," "," "]
[null,null,null,null,null," "," "," "," "]
[null,null,null,null,null," "," "," "," "]
[null,null,null,null,null," "," "," "," "]
[null,null,null,null,null," "," "," "," "]
[null,null,null,null,null," "," "," "," "]
[null,null,null,null,null," "," "," "," "]
[null,null,null,null,null," "," "," "," "]
[null,null,null,null,null," "," "," "," "]
[null,null,null,null,null," "," "," "," "]
[null,null,null,null,null," "," "," "," "]
[null,null,null,null,null," "," "," "," "]
[null,null,null,null,null," "," "," "," "]
[null,null,null,null,null," "," "," "," "]
[null,null,null,null,null," "," "," "," "]
[null,null,null,null,null," "," "," "," "]
[null,null,null,null,null," "," "," "," "]
[null,null,null,null,null," "," "," "," "]
[null,null,null,null,null," "," "," "," "]
[null,null,null,null,null," "," "," "," "]
[null,null,null,null,null," "," "," "," "]
[null,null,null,null,null," "," "," "," "]
[null,null,null,null,null," "," "," "," "]
[null,null,null,null,null," "," "," "," "]
[null,null,null,null,null," "," "," "," "]
[null,null,null,null,null," "," "," "," "]
[null,null,null,null,null," "," "," "," "]
[null,null,null,null,null," "," "," "," "]
[null,null,null,null,null," "," "," "," "]
[null,null,null,null,null," "," "," "," "]
[null,null,null,null,null," "," "," "," "]
[null,null,null,null,null," "," "," "," "]
[null,null,null,null,null," "," "," "," "]
[null,null,null,null,null," "," "," "," "]
[null,null,null,null,null," "," "," "," "]
[null,null,null,null,null," "," "," "," "]
[null,null,null,null,null," "," "," "," "]
[null,null,null,null,null," "," "," "," "]
[null,null,null,null,null," "," "," "," "]
[null,null,null,null,null," "," "," "," "]
[null,null,null,null,null," "," "," "," "]
[null,null,null,null,null," "," "," "," "]
[null,null,null,null,null," "," "," "," "]
[null,null,null,null,null," "," "," "," "]
[null,null,null,null,null," "," "," "," "]
[null,null,null,null,null," "," "," "," "]
[null,null,null,null,null," "," "," "," "]
[null,null,null,null,null," "," "," "," "]
[null,null,null,null,null,{"$f":"IF(A835>0,B835/100,\" \")","v":" "},{"$f":"IF(A835>0,C835/100,\" \")","v":" "},{"$f":"IF(A835>0,D835/100,\" \")","v":" "},{"$f":"IF(A835>0,E835/100,\" \")","v":" "}]
[null,null,null,null,null," "," "," "," "]
[null,null,null,null,null," "," "," "," "]
[null,null,null,null,null," "," "," "," "]
[null,null,null,null,null," "," "," "," "]
[null,null,null,null,null," "," "," "," "]
[null,null,null,null,null," "," "," "," "]
[null,null,null,null,null," "," "," "," "]
[null,null,null,null,null," "," "," "," "]
[null,null,null,null,null," "," "," "," "]
[null,null,null,null,null," "," "," "," "]
[null,null,null,null,null," "," "," "," "]
[null,null,null,null,null," "," "," "," "]
[null,null,null,null,null," "," "," "," "]
[null,null,null,null,null," "," "," "," "]
[null,null,null,null,null," "," "," "," "]
[null,null,null,null,null," "," "," "," "]
[null,null,null,null,null," "," "," "," "]
[null,null,null,null,null," "," "," "," "]
[null,null,null,null,null," "," "," "," "]
[null,null,null,null,null," "," "," "," "]
[null,null,null,null,null," "," "," "," "]
[null,null,null,null,null," "," "," "," "]
[null,null,null,null,null," "," "," "," "]
[null,null,null,null,null," "," "," "," "]
[null,null,null,null,null," "," "," "," "]
[null,null,null,null,null," "," "," "," "]
[null,null,null,null,null," "," "," "," "]
[null,null,null,null,null," "," "," "," "]
[null,null,null,null,null," "," "," "," "]
[null,null,null,null,null," "," "," "," "]
[null,null,null,null,null," "," "," "," "]
[null,null,null,null,null," "," "," "," "]
[null,null,null,null,null," "," "," "," "]
[null,null,null,null,null," "," "," "," "]
[null,null,null,null,null," "," "," "," "]
[null,null,null,null,null," "," "," "," "]
[null,null,null,null,null," "," "," "," "]
[null,null,null,null,null," "," "," "," "]
[null,null,null,null,null," "," "," "," "]
[null,null,null,null,null," "," "," "," "]
[null,null,null,null,null," "," "," "," "]
[null,null,null,null,null," "," "," "," "]
[null,null,null,null,null," "," "," "," "]
[null,null,null,null,null," "," "," "," "]
[null,null,null,null,null," "," "," "," "]
[null,null,null,null,null," "," "," "," "]
[null,null,null,null,null," "," "," "," "]
[null,null,null,null,null," "," "," "," "]
[null,null,null,null,null," "," "," "," "]
[null,null,null,null,null," "," "," "," "]
[null,null,null,null,null," "," "," "," "]
[null,null,null,null,null," "," "," "," "]
[null,null,null,null,null," "," "," "," "]
[null,null,null,null,null," "," "," "," "]
[null,null,null,null,null," "," "," "," "]
[null,null,null,null,null," "," "," "," "]
[null,null,null,null,null," "," "," "," "]
[null,null,null,null,null," "," "," "," "]
[null,null,null,null,null," "," "," "," "]
[null,null,null,null,null," "," "," "," "]
[null,null,null,null,null," "," "," "," "]
[null,null,null,null,null," "," "," "," "]
[null,null,null,null,null," "," "," "," "]
[null,null,null,null,null,{"$f":"IF(A899>0,B899/100,\" \")","v":" "},{"$f":"IF(A899>0,C899/100,\" \")","v":" "},{"$f":"IF(A899>0,D899/100,\" \")","v":" "},{"$f":"IF(A899>0,E899/100,\" \")","v":" "}]
[null,null,null,null,null," "," "," "," "]
[null,null,null,null,null," "," "," "," "]
[null,null,null,null,null," "," "," "," "]
[null,null,null,null,null," "," "," "," "]
[null,null,null,null,null," "," "," "," "]
[null,null,null,null,null," "," "," "," "]
[null,null,null,null,null," "," "," "," "]
[null,null,null,null,null," "," "," "," "]
[null,null,null,null,null," "," "," "," "]
[null,null,null,null,null," "," "," "," "]
[null,null,null,null,null," "," "," "," "]
[null,null,null,null,null," "," "," "," "]
[null,null,null,null,null," "," "," "," "]
[null,null,null,null,null," "," "," "," "]
[null,null,null,null,null," "," "," "," "]
[null,null,null,null,null," "," "," "," "]
[null,null,null,null,null," "," "," "," "]
[null,null,null,null,null," "," "," "," "]
[null,null,null,null,null," "," "," "," "]
[null,null,null,null,null," "," "," "," "]
[null,null,null,null,null," "," "," "," "]
[null,null,null,null,null," "," "," "," "]
[null,null,null,null,null," "," "," "," "]
[null,null,null,null,null," "," "," "," "]
[null,null,null,null,null," "," "," "," "]
[null,null,null,null,null," "," "," "," "]
[null,null,null,null,null," "," "," "," "]
[null,null,null,null,null," "," "," "," "]
[null,null,null,null,null," "," "," "," "]
[null,null,null,null,null," "," "," "," "]
[null,null,null,null,null," "," "," "," "]
[null,null,null,null,null," "," "," "," "]
[null,null,null,null,null," "," "," "," "]
[null,null,null,null,null," "," "," "," "]
[null,null,null,null,null," "," "," "," "]
[null,null,null,null,null," "," "," "," "]
[null,null,null,null,null," "," "," "," "]
[null,null,null,null,null," "," "," "," "]
[null,null,null,null,null," "," "," "," "]
[null,null,null,null,null," "," "," "," "]
[null,null,null,null,null," "," "," "," "]
[null,null,null,null,null," "," "," "," "]
[null,null,null,null,null," "," "," "," "]
[null,null,null,null,null," "," "," "," "]
[null,null,null,null,null," "," "," "," "]
[null,null,null,null,null," "," "," "," "]
[null,null,null,null,null," "," "," "," "]
[null,null,null,null,null," "," "," "," "]
[null,null,null,null,null," "," "," "," "]
[null,null,null,null,null," "," "," "," "]
[null,null,null,null,null," "," "," "," "]
[null,null,null,null,null," "," "," "," "]
[null,null,null,null,null," "," "," "," "]
[null,null,null,null,null," "," "," "," "]
[null,null,null,null,null," "," "," "," "]
[null,null,null,null,null," "," "," "," "]
[null,null,null,null,null," "," "," "," "]
[null,null,null,null,null," "," "," "," "]
[null,null,null,null,null," "," "," "," "]
[null,null,null,null,null," "," "," "," "]
[null,null,null,null,null," "," "," "," "]
[null,null,null,null,null," "," "," "," "]
[null,null,null,null,null," "," "," "," "]
[null,null,null,null,null,{"$f":"IF(A963>0,B963/100,\" \")","v":" "},{"$f":"IF(A963>0,C963/100,\" \")","v":" "},{"$f":"IF(A963>0,D963/100,\" \")","v":" "},{"$f":"IF(A963>0,E963/100,\" \")","v":" "}]
[null,null,null,null,null," "," "," "," "]
[null,null,null,null,null," "," "," "," "]
[null,null,null,null,null," "," "," "," "]
[null,null,null,null,null," "," "," "," "]
[null,null,null,null,null," "," "," "," "]
[null,null,null,null,null," "," "," "," "]
[null,null,null,null,null," "," "," "," "]
[null,null,null,null,null," "," "," "," "]
[null,null,null,null,null," "," "," "," "]
[null,null,null,null,null," "," "," "," "]
[null,null,null,null,null," "," "," "," "]
[null,null,null,null,null," "," "," "," "]
[null,null,null,null,null," "," "," "," "]
[null,null,null,null,null," "," "," "," "]
[null,null,null,null,null," "," "," "," "]
[null,null,null,null,null," "," "," "," "]
[null,null,null,null,null," "," "," "," "]
[null,null,null,null,null," "," "," "," "]
[null,null,null,null,null," "," "," "," "]
[null,null,null,null,null," "," "," "," "]
[null,null,null,null,null," "," "," "," "]
[null,null,null,null,null," "," "," "," "]
[null,null,null,null,null," "," "," "," "]
[null,null,null,null,null," "," "," "," "]
[null,null,null,null,null," "," "," "," "]
[null,null,null,null,null," "," "," "," "]
[null,null,null,null,null," "," "," "," "]
[null,null,null,null,null," "," "," "," "]
[null,null,null,null,null," "," "," "," "]
[null,null,null,null,null," "," "," "," "]
[null,null,null,null,null," "," "," "," ",null,null,null,"Fama-French Regression"]
[null,null,null,null,null," "," "," "," ",null,null,null,"SUMMARY OUTPUT"]
[null,null,null,null,null," "," "," "," "]
[null,null,null,null,null," "," "," "," "]
[null,null,null,null,null," "," "," "," "]
[null,null,null,null,null," "," "," "," "]
[null,null,null,null,null," "," "," "," "]
[null,null,null,null,null," "," "," "," "]
[null,null,null,null,null," "," "," "," "]
[null,null,null,null,null," "," "," "," "]
[null,null,null,null,null," "," "," "," "]
[null,null,null,null,null," "," "," "," "]
[null,null,null,null,null," "," "," "," "]
[null,null,null,null,null," "," "," "," "]
[null,null,null,null,null," "," "," "," "]
[null,null,null,null,null," "," "," "," "]
[null,null,null,null,null," "," "," "," "]
[null,null,null,null,null," "," "," "," "]
[null,null,null,null,null," "," "," "," "]
[null,null,null,null,null," "," "," "," "]
[null,null,null,null,null," "," "," "," "]
[null,null,null,null,null," "," "," "," "]
[null,null,null,null,null," "," "," "," "]
[null,null,null,null,null," "," "," "," ",null,null,null,"CAPM Regression"]
[null,null,null,null,null," "," "," "," ",null,null,null,"SUMMARY OUTPUT"]
[null,null,null,null,null," "," "," "," "]
[null,null,null,null,null," "," "," "," "]
[null,null,null,null,null," "," "," "," "]
[null,null,null,null,null," "," "," "," "]
[null,null,null,null,null," "," "," "," "]
[null,null,null,null,null," "," "," "," "]
[null,null,null,null,null," "," "," "," "]
[null,null,null,null,null," "," "," "," "]
[null,null,null,null,null,{"$f":"IF(A1027>0,B1027/100,\" \")","v":" "},{"$f":"IF(A1027>0,C1027/100,\" \")","v":" "},{"$f":"IF(A1027>0,D1027/100,\" \")","v":" "},{"$f":"IF(A1027>0,E1027/100,\" \")","v":" "}]
[null,null,null,null,null," "," "," "," "]
[null,null,null,null,null," "," "," "," "]
[null,null,null,null,null," "," "," "," "]
[null,null,null,null,null," "," "," "," "]
[null,null,null,null,null," "," "," "," "]
[null,null,null,null,null," "," "," "," "]
[null,null,null,null,null," "," "," "," "]
[null,null,null,null,null," "," "," "," "]
[null,null,null,null,null," "," "," "," "]
[null,null,null,null,null," "," "," "," "]
[null,null,null,null,null," "," "," "," "]
[null,null,null,null,null," "," "," "," "]
[null,null,null,null,null," "," "," "," "]
[null,null,null,null,null," "," "," "," ",null,null,null,null,null,{"$f":"F1","v":"Rm-Rf %"},{"$f":"G1","v":"SMB %"},"HML %"]
[null,null,null,null,null," "," "," "," ",null,null,null,null,"Monthly Ave",{"$f":"AVERAGE(F2:F1164)","v":{"$error":"#DIV/0!"}},{"$f":"AVERAGE(G2:G1164)","v":{"$error":"#DIV/0!"}},{"$f":"AVERAGE(H2:H1164)","v":{"$error":"#DIV/0!"}}]
[null,null,null,null,null," "," "," "," ",null,null,null,null,"Annualized Ave",{"$f":"(1+O1042)^12-1","v":{"$error":"#DIV/0!"}},{"$f":"(1+P1042)^12-1","v":{"$error":"#DIV/0!"}},{"$error":"#DIV/0!"}]
[null,null,null,null,null," "," "," "," ",null,null,null,null,"Current Rf",null,null,null,{"$f":"VLOOKUP(LARGE(A1053:A1164,1),A2:I1164,9)","v":{"$error":"#NUM!"}}]
[null,null,null,null,null," "," "," "," ",null,null,null,null,"Annualized Rf",null,null,null,{"$f":"(1+R1044)^12-1","v":{"$error":"#NUM!"}}]
[null,null,null,null,null," "," "," "," "]
[null,null,null,null,null," "," "," "," ",null,null,null,{"$f":"LOOKUP(\"zzzz\",J995:J1989)","v":{"$error":"#N/A"}},"CAPM Exp. Ret.",{"$f":"R1045+N1035*O1043","v":{"$error":"#NUM!"}}]
[null,null,null,null,null," "," "," "," ",null,null,null,"Monthly","FF Exp. Ret.",{"$f":"R1045+N1012*O1043+N1013*P1043+N1014*Q1043","v":{"$error":"#NUM!"}}]
[null,null,null,null,null," "," "," "," "]
[null,null,null,null,null," "," "," "," ",null,null,null,{"$f":"LOOKUP(\"zzzz\",'FF Weekly'!J4475:J5995)","v":{"$error":"#N/A"}},"CAPM Exp. Ret.",{"$f":"'FF Weekly'!Q4538+'FF Weekly'!N4526*'FF Weekly'!N4536","v":{"$error":"#NUM!"}}]
[null,null,null,null,null," "," "," "," ",null,null,null,"Weekly","FF Exp. Ret.",{"$f":"'FF Weekly'!Q4538+'FF Weekly'!N4502*'FF Weekly'!N4536+'FF Weekly'!N4503*'FF Weekly'!O4536+'FF Weekly'!N4504*'FF Weekly'!P4536","v":{"$error":"#NUM!"}}]
[null,null,null,null,null," "," "," "," "]
[null,null,null,null,null," "," "," "," "]
[null,null,null,null,null," "," "," "," "]
[null,null,null,null,null," "," "," "," "]
[null,null,null,null,null," "," "," "," "]
[null,null,null,null,null," "," "," "," "]
[null,null,null,null,null," "," "," "," "]
[null,null,null,null,null," "," "," "," "]
[null,null,null,null,null," "," "," "," "]
[null,null,null,null,null," "," "," "," "]
[null,null,null,null,null," "," "," "," "]
[null,null,null,null,null," "," "," "," "]
[null,null,null,null,null," "," "," "," "]
[null,null,null,null,null," "," "," "," "]
[null,null,null,null,null," "," "," "," "]
[null,null,null,null,null," "," "," "," "]
[null,null,null,null,null," "," "," "," "]
[null,null,null,null,null," "," "," "," "]
[null,null,null,null,null," "," "," "," "]
[null,null,null,null,null," "," "," "," "]
[null,null,null,null,null," "," "," "," "]
[null,null,null,null,null," "," "," "," "]
[null,null,null,null,null," "," "," "," "]
[null,null,null,null,null," "," "," "," "]
[null,null,null,null,null," "," "," "," "]
[null,null,null,null,null," "," "," "," "]
[null,null,null,null,null," "," "," "," "]
[null,null,null,null,null," "," "," "," "]
[null,null,null,null,null," "," "," "," "]
[null,null,null,null,null," "," "," "," "]
[null,null,null,null,null," "," "," "," "]
[null,null,null,null,null," "," "," "," "]
[null,null,null,null,null," "," "," "," "]
[null,null,null,null,null," "," "," "," "]
[null,null,null,null,null," "," "," "," "]
[null,null,null,null,null," "," "," "," "]
[null,null,null,null,null," "," "," "," "]
[null,null,null,null,null," "," "," "," "]
[null,null,null,null,null," "," "," "," "]
[null,null,null,null,null,{"$f":"IF(A1091>0,B1091/100,\" \")","v":" "},{"$f":"IF(A1091>0,C1091/100,\" \")","v":" "},{"$f":"IF(A1091>0,D1091/100,\" \")","v":" "},{"$f":"IF(A1091>0,E1091/100,\" \")","v":" "}]
[null,null,null,null,null," "," "," "," "]
[null,null,null,null,null," "," "," "," "]
[null,null,null,null,null," "," "," "," "]
[null,null,null,null,null," "," "," "," "]
[null,null,null,null,null," "," "," "," "]
[null,null,null,null,null," "," "," "," "]
[null,null,null,null,null," "," "," "," "]
[null,null,null,null,null," "," "," "," "]
[null,null,null,null,null," "," "," "," "]
[null,null,null,null,null," "," "," "," "]
[null,null,null,null,null," "," "," "," "]
[null,null,null,null,null," "," "," "," "]
[null,null,null,null,null," "," "," "," "]
[null,null,null,null,null," "," "," "," "]
[null,null,null,null,null," "," "," "," "]
[null,null,null,null,null," "," "," "," "]
[null,null,null,null,null," "," "," "," "]
[null,null,null,null,null," "," "," "," "]
[null,null,null,null,null," "," "," "," "]
[null,null,null,null,null," "," "," "," "]
[null,null,null,null,null," "," "," "," "]
[null,null,null,null,null," "," "," "," "]
[null,null,null,null,null," "," "," "," "]
[null,null,null,null,null," "," "," "," "]
[null,null,null,null,null," "," "," "," "]
[null,null,null,null,null," "," "," "," "]
[null,null,null,null,null," "," "," "," "]
[null,null,null,null,null," "," "," "," "]
[null,null,null,null,null," "," "," "," "]
[null,null,null,null,null," "," "," "," "]
[null,null,null,null,null," "," "," "," "]
[null,null,null,null,null," "," "," "," "]
[null,null,null,null,null," "," "," "," "]
[null,null,null,null,null," "," "," "," "]
[null,null,null,null,null," "," "," "," "]
[null,null,null,null,null," "," "," "," "]
[null,null,null,null,null," "," "," "," "]
[null,null,null,null,null," "," "," "," "]
[null,null,null,null,null," "," "," "," "]
[null,null,null,null,null," "," "," "," "]
[null,null,null,null,null," "," "," "," "]
[null,null,null,null,null," "," "," "," "]
[null,null,null,null,null," "," "," "," "]
[null,null,null,null,null," "," "," "," "]
[null,null,null,null,null," "," "," "," "]
[null,null,null,null,null," "," "," "," "]
[null,null,null,null,null," "," "," "," "]
[null,null,null,null,null," "," "," "," "]
[null,null,null,null,null," "," "," "," "]
[null,null,null,null,null," "," "," "," "]
[null,null,null,null,null," "," "," "," "]
[null,null,null,null,null," "," "," "," "]
[null,null,null,null,null," "," "," "," "]
[null,null,null,null,null," "," "," "," "]
[null,null,null,null,null," "," "," "," "]
[null,null,null,null,null," "," "," "," "]
[null,null,null,null,null," "," "," "," "]
[null,null,null,null,null," "," "," "," "]
[null,null,null,null,null," "," "," "," "]
[null,null,null,null,null," "," "," "," "]
[null,null,null,null,null," "," "," "," "]
[null,null,null,null,null," "," "," "," "]
[null,null,null,null,null," "," "," "," "]
[null,null,null,null,null,{"$f":"IF(A1155>0,B1155/100,\" \")","v":" "},{"$f":"IF(A1155>0,C1155/100,\" \")","v":" "},{"$f":"IF(A1155>0,D1155/100,\" \")","v":" "},{"$f":"IF(A1155>0,E1155/100,\" \")","v":" "}]
[null,null,null,null,null," "," "," "," "]
[null,null,null,null,null," "," "," "," "]
[null,null,null,null,null," "," "," "," "]
[null,null,null,null,null," "," "," "," "]
[null,null,null,null,null," "," "," "," "]
[null,null,null,null,null," "," "," "," "]
[null,null,null,null,null," "," "," "," "]
[null,null,null,null,null," "," "," "," "]
[null,null,null,null,null," "," "," "," "]
[null,null,null,null,null," "," "," "," "]
[null,null,null,null,null," "," "," "," "]
[null,null,null,null,null," "," "," "," "]
[null,null,null,null,null," "," "," "," "]
[null,null,null,null,null," "," "," "," "]
[null,null,null,null,null," "," "," "," "]
[null,null,null,null,null," "," "," "," "]
[null,null,null,null,null," "," "," "," "]
[null,null,null,null,null," "," "," "," "]
[null,null,null,null,null," "," "," "," "]
[null,null,null,null,null," "," "," "," "]
[null,null,null,null,null," "," "," "," "]
[null,null,null,null,null," "," "," "," "]
[null,null,null,null,null," "," "," "," "]
[null,null,null,null,null," "," "," "," "]
[null,null,null,null,null," "," "," "," "]
[null,null,null,null,null," "," "," "," "]
[null,null,null,null,null," "," "," "," "]
[null,null,null,null,null," "," "," "," "]
[null,null,null,null,null," "," "," "," "]
[null,null,null,null,null," "," "," "," "]
[null,null,null,null,null," "," "," "," "]
[null,null,null,null,null," "," "," "," "]
[null,null,null,null,null," "," "," "," "]
[null,null,null,null,null," "," "," "," "]
[null,null,null,null,null," "," "," "," "]
[null,null,null,null,null," "," "," "," "]
[null,null,null,null,null," "," "," "," "]
[null,null,null,null,null," "," "," "," "]
[null,null,null,null,null," "," "," "," "]
[null,null,null,null,null," "," "," "," "]
[null,null,null,null,null," "," "," "," "]
[null,null,null,null,null," "," "," "," "]
[null,null,null,null,null," "," "," "," "]
[null,null,null,null,null," "," "," "," "]
[null,null,null,null,null," "," "," "," "]

{"sheet":"Stock Weekly","index":2,"n_rows":0,"n_cols":0,"rows_kept":0,"cut":false,"hidden":false,"merged":[]}

{"sheet":"FF Weekly","index":3,"n_rows":5000,"n_cols":17,"rows_kept":5000,"cut":false,"hidden":false,"merged":[]}
[null,"Rm-Rf","SMB","HML","Rf","Rm-Rf %","SMB %","HML %","Rf %"]
[null,null,null,null,null,{"$f":"IF(A2>0,B2/100,\" \")","v":" "},{"$f":"IF(A2>0,C2/100,\" \")","v":" "},{"$f":"IF(A2>0,D2/100,\" \")","v":" "},{"$f":"IF(A2>0,E2/100,\" \")","v":" "}]
[null,null,null,null,null,{"$f":"IF(A3>0,B3/100,\" \")","v":" "},{"$f":"IF(A3>0,C3/100,\" \")","v":" "},{"$f":"IF(A3>0,D3/100,\" \")","v":" "},{"$f":"IF(A3>0,E3/100,\" \")","v":" "}]
[null,null,null,null,null," "," "," "," "]
[null,null,null,null,null," "," "," "," "]
[null,null,null,null,null," "," "," "," "]
[null,null,null,null,null," "," "," "," "]
[null,null,null,null,null," "," "," "," "]
[null,null,null,null,null," "," "," "," "]
[null,null,null,null,null," "," "," "," "]
[null,null,null,null,null," "," "," "," "]
[null,null,null,null,null," "," "," "," "]
[null,null,null,null,null," "," "," "," "]
[null,null,null,null,null," "," "," "," "]
[null,null,null,null,null," "," "," "," "]
[null,null,null,null,null," "," "," "," "]
[null,null,null,null,null," "," "," "," "]
[null,null,null,null,null," "," "," "," "]
[null,null,null,null,null," "," "," "," "]
[null,null,null,null,null," "," "," "," "]
[null,null,null,null,null," "," "," "," "]
[null,null,null,null,null," "," "," "," "]
[null,null,null,null,null," "," "," "," "]
[null,null,null,null,null," "," "," "," "]
[null,null,null,null,null," "," "," "," "]
[null,null,null,null,null," "," "," "," "]
[null,null,null,null,null," "," "," "," "]
[null,null,null,null,null," "," "," "," "]
[null,null,null,null,null," "," "," "," "]
[null,null,null,null,null," "," "," "," "]
[null,null,null,null,null," "," "," "," "]
[null,null,null,null,null," "," "," "," "]
[null,null,null,null,null," "," "," "," "]
[null,null,null,null,null," "," "," "," "]
[null,null,null,null,null," "," "," "," "]
[null,null,null,null,null," "," "," "," "]
[null,null,null,null,null," "," "," "," "]
[null,null,null,null,null," "," "," "," "]
[null,null,null,null,null," "," "," "," "]
[null,null,null,null,null," "," "," "," "]
[null,null,null,null,null," "," "," "," "]
[null,null,null,null,null," "," "," "," "]
[null,null,null,null,null," "," "," "," "]
[null,null,null,null,null," "," "," "," "]
[null,null,null,null,null," "," "," "," "]
[null,null,null,null,null," "," "," "," "]
[null,null,null,null,null," "," "," "," "]
[null,null,null,null,null," "," "," "," "]
[null,null,null,null,null," "," "," "," "]
[null,null,null,null,null," "," "," "," "]
[null,null,null,null,null," "," "," "," "]
[null,null,null,null,null," "," "," "," "]
[null,null,null,null,null," "," "," "," "]
[null,null,null,null,null," "," "," "," "]
[null,null,null,null,null," "," "," "," "]
[null,null,null,null,null," "," "," "," "]
[null,null,null,null,null," "," "," "," "]
[null,null,null,null,null," "," "," "," "]
[null,null,null,null,null," "," "," "," "]
[null,null,null,null,null," "," "," "," "]
[null,null,null,null,null," "," "," "," "]
[null,null,null,null,null," "," "," "," "]
[null,null,null,null,null," "," "," "," "]
[null,null,null,null,null," "," "," "," "]
[null,null,null,null,null," "," "," "," "]
[null,null,null,null,null," "," "," "," "]
[null,null,null,null,null,{"$f":"IF(A67>0,B67/100,\" \")","v":" "},{"$f":"IF(A67>0,C67/100,\" \")","v":" "},{"$f":"IF(A67>0,D67/100,\" \")","v":" "},{"$f":"IF(A67>0,E67/100,\" \")","v":" "}]
[null,null,null,null,null," "," "," "," "]
[null,null,null,null,null," "," "," "," "]
[null,null,null,null,null," "," "," "," "]
[null,null,null,null,null," "," "," "," "]
[null,null,null,null,null," "," "," "," "]
[null,null,null,null,null," "," "," "," "]
[null,null,null,null,null," "," "," "," "]
[null,null,null,null,null," "," "," "," "]
[null,null,null,null,null," "," "," "," "]
[null,null,null,null,null," "," "," "," "]
[null,null,null,null,null," "," "," "," "]
[null,null,null,null,null," "," "," "," "]
[null,null,null,null,null," "," "," "," "]
[null,null,null,null,null," "," "," "," "]
[null,null,null,null,null," "," "," "," "]
[null,null,null,null,null," "," "," "," "]
[null,null,null,null,null," "," "," "," "]
[null,null,null,null,null," "," "," "," "]
[null,null,null,null,null," "," "," "," "]
[null,null,null,null,null," "," "," "," "]
[null,null,null,null,null," "," "," "," "]
[null,null,null,null,null," "," "," "," "]
[null,null,null,null,null," "," "," "," "]
[null,null,null,null,null," "," "," "," "]
[null,null,null,null,null," "," "," "," "]
[null,null,null,null,null," "," "," "," "]
[null,null,null,null,null," "," "," "," "]
[null,null,null,null,null," "," "," "," "]
[null,null,null,null,null," "," "," "," "]
[null,null,null,null,null," "," "," "," "]
[null,null,null,null,null," "," "," "," "]
[null,null,null,null,null," "," "," "," "]
[null,null,null,null,null," "," "," "," "]
[null,null,null,null,null," "," "," "," "]
[null,null,null,null,null," "," "," "," "]
[null,null,null,null,null," "," "," "," "]
[null,null,null,null,null," "," "," "," "]
[null,null,null,null,null," "," "," "," "]
[null,null,null,null,null," "," "," "," "]
[null,null,null,null,null," "," "," "," "]
[null,null,null,null,null," "," "," "," "]
[null,null,null,null,null," "," "," "," "]
[null,null,null,null,null," "," "," "," "]
[null,null,null,null,null," "," "," "," "]
[null,null,null,null,null," "," "," "," "]
[null,null,null,null,null," "," "," "," "]
[null,null,null,null,null," "," "," "," "]
[null,null,null,null,null," "," "," "," "]
[null,null,null,null,null," "," "," "," "]
[null,null,null,null,null," "," "," "," "]
[null,null,null,null,null," "," "," "," "]
[null,null,null,null,null," "," "," "," "]
[null,null,null,null,null," "," "," "," "]
[null,null,null,null,null," "," "," "," "]
[null,null,null,null,null," "," "," "," "]
[null,null,null,null,null," "," "," "," "]
[null,null,null,null,null," "," "," "," "]
[null,null,null,null,null," "," "," "," "]
[null,null,null,null,null," "," "," "," "]
[null,null,null,null,null," "," "," "," "]
[null,null,null,null,null," "," "," "," "]
[null,null,null,null,null," "," "," "," "]
[null,null,null,null,null," "," "," "," "]
[null,null,null,null,null,{"$f":"IF(A131>0,B131/100,\" \")","v":" "},{"$f":"IF(A131>0,C131/100,\" \")","v":" "},{"$f":"IF(A131>0,D131/100,\" \")","v":" "},{"$f":"IF(A131>0,E131/100,\" \")","v":" "}]
[null,null,null,null,null," "," "," "," "]
[null,null,null,null,null," "," "," "," "]
[null,null,null,null,null," "," "," "," "]
[null,null,null,null,null," "," "," "," "]
[null,null,null,null,null," "," "," "," "]
[null,null,null,null,null," "," "," "," "]
[null,null,null,null,null," "," "," "," "]
[null,null,null,null,null," "," "," "," "]
[null,null,null,null,null," "," "," "," "]
[null,null,null,null,null," "," "," "," "]
[null,null,null,null,null," "," "," "," "]
[null,null,null,null,null," "," "," "," "]
[null,null,null,null,null," "," "," "," "]
[null,null,null,null,null," "," "," "," "]
[null,null,null,null,null," "," "," "," "]
[null,null,null,null,null," "," "," "," "]
[null,null,null,null,null," "," "," "," "]
[null,null,null,null,null," "," "," "," "]
[null,null,null,null,null," "," "," "," "]
[null,null,null,null,null," "," "," "," "]
[null,null,null,null,null," "," "," "," "]
[null,null,null,null,null," "," "," "," "]
[null,null,null,null,null," "," "," "," "]
[null,null,null,null,null," "," "," "," "]
[null,null,null,null,null," "," "," "," "]
[null,null,null,null,null," "," "," "," "]
[null,null,null,null,null," "," "," "," "]
[null,null,null,null,null," "," "," "," "]
[null,null,null,null,null," "," "," "," "]
[null,null,null,null,null," "," "," "," "]
[null,null,null,null,null," "," "," "," "]
[null,null,null,null,null," "," "," "," "]
[null,null,null,null,null," "," "," "," "]
[null,null,null,null,null," "," "," "," "]
[null,null,null,null,null," "," "," "," "]
[null,null,null,null,null," "," "," "," "]
[null,null,null,null,null," "," "," "," "]
[null,null,null,null,null," "," "," "," "]
[null,null,null,null,null," "," "," "," "]
[null,null,null,null,null," "," "," "," "]
[null,null,null,null,null," "," "," "," "]
[null,null,null,null,null," "," "," "," "]
[null,null,null,null,null," "," "," "," "]
[null,null,null,null,null," "," "," "," "]
[null,null,null,null,null," "," "," "," "]
[null,null,null,null,null," "," "," "," "]
[null,null,null,null,null," "," "," "," "]
[null,null,null,null,null," "," "," "," "]
[null,null,null,null,null," "," "," "," "]
[null,null,null,null,null," "," "," "," "]
[null,null,null,null,null," "," "," "," "]
[null,null,null,null,null," "," "," "," "]
[null,null,null,null,null," "," "," "," "]
[null,null,null,null,null," "," "," "," "]
[null,null,null,null,null," "," "," "," "]
[null,null,null,null,null," "," "," "," "]
[null,null,null,null,null," "," "," "," "]
[null,null,null,null,null," "," "," "," "]
[null,null,null,null,null," "," "," "," "]
[null,null,null,null,null," "," "," "," "]
[null,null,null,null,null," "," "," "," "]
[null,null,null,null,null," "," "," "," "]
[null,null,null,null,null," "," "," "," "]
[null,null,null,null,null,{"$f":"IF(A195>0,B195/100,\" \")","v":" "},{"$f":"IF(A195>0,C195/100,\" \")","v":" "},{"$f":"IF(A195>0,D195/100,\" \")","v":" "},{"$f":"IF(A195>0,E195/100,\" \")","v":" "}]
[null,null,null,null,null," "," "," "," "]
[null,null,null,null,null," "," "," "," "]
[null,null,null,null,null," "," "," "," "]
[null,null,null,null,null," "," "," "," "]
[null,null,null,null,null," "," "," "," "]
[null,null,null,null,null," "," "," "," "]
[null,null,null,null,null," "," "," "," "]
[null,null,null,null,null," "," "," "," "]
[null,null,null,null,null," "," "," "," "]
[null,null,null,null,null," "," "," "," "]
[null,null,null,null,null," "," "," "," "]
[null,null,null,null,null," "," "," "," "]
[null,null,null,null,null," "," "," "," "]
[null,null,null,null,null," "," "," "," "]
[null,null,null,null,null," "," "," "," "]
[null,null,null,null,null," "," "," "," "]
[null,null,null,null,null," "," "," "," "]
[null,null,null,null,null," "," "," "," "]
[null,null,null,null,null," "," "," "," "]
[null,null,null,null,null," "," "," "," "]
[null,null,null,null,null," "," "," "," "]
[null,null,null,null,null," "," "," "," "]
[null,null,null,null,null," "," "," "," "]
[null,null,null,null,null," "," "," "," "]
[null,null,null,null,null," "," "," "," "]
[null,null,null,null,null," "," "," "," "]
[null,null,null,null,null," "," "," "," "]
[null,null,null,null,null," "," "," "," "]
[null,null,null,null,null," "," "," "," "]
[null,null,null,null,null," "," "," "," "]
[null,null,null,null,null," "," "," "," "]
[null,null,null,null,null," "," "," "," "]
[null,null,null,null,null," "," "," "," "]
[null,null,null,null,null," "," "," "," "]
[null,null,null,null,null," "," "," "," "]
[null,null,null,null,null," "," "," "," "]
[null,null,null,null,null," "," "," "," "]
[null,null,null,null,null," "," "," "," "]
[null,null,null,null,null," "," "," "," "]
[null,null,null,null,null," "," "," "," "]
[null,null,null,null,null," "," "," "," "]
[null,null,null,null,null," "," "," "," "]
[null,null,null,null,null," "," "," "," "]
[null,null,null,null,null," "," "," "," "]
[null,null,null,null,null," "," "," "," "]
[null,null,null,null,null," "," "," "," "]
[null,null,null,null,null," "," "," "," "]
[null,null,null,null,null," "," "," "," "]
[null,null,null,null,null," "," "," "," "]
[null,null,null,null,null," "," "," "," "]
[null,null,null,null,null," "," "," "," "]
[null,null,null,null,null," "," "," "," "]
[null,null,null,null,null," "," "," "," "]
[null,null,null,null,null," "," "," "," "]
[null,null,null,null,null," "," "," "," "]
[null,null,null,null,null," "," "," "," "]
[null,null,null,null,null," "," "," "," "]
[null,null,null,null,null," "," "," "," "]
[null,null,null,null,null," "," "," "," "]
[null,null,null,null,null," "," "," "," "]
[null,null,null,null,null," "," "," "," "]
[null,null,null,null,null," "," "," "," "]
[null,null,null,null,null," "," "," "," "]
[null,null,null,null,null,{"$f":"IF(A259>0,B259/100,\" \")","v":" "},{"$f":"IF(A259>0,C259/100,\" \")","v":" "},{"$f":"IF(A259>0,D259/100,\" \")","v":" "},{"$f":"IF(A259>0,E259/100,\" \")","v":" "}]
[null,null,null,null,null," "," "," "," "]
[null,null,null,null,null," "," "," "," "]
[null,null,null,null,null," "," "," "," "]
[null,null,null,null,null," "," "," "," "]
[null,null,null,null,null," "," "," "," "]
[null,null,null,null,null," "," "," "," "]
[null,null,null,null,null," "," "," "," "]
[null,null,null,null,null," "," "," "," "]
[null,null,null,null,null," "," "," "," "]
[null,null,null,null,null," "," "," "," "]
[null,null,null,null,null," "," "," "," "]
[null,null,null,null,null," "," "," "," "]
[null,null,null,null,null," "," "," "," "]
[null,null,null,null,null," "," "," "," "]
[null,null,null,null,null," "," "," "," "]
[null,null,null,null,null," "," "," "," "]
[null,null,null,null,null," "," "," "," "]
[null,null,null,null,null," "," "," "," "]
[null,null,null,null,null," "," "," "," "]
[null,null,null,null,null," "," "," "," "]
[null,null,null,null,null," "," "," "," "]
[null,null,null,null,null," "," "," "," "]
[null,null,null,null,null," "," "," "," "]
[null,null,null,null,null," "," "," "," "]
[null,null,null,null,null," "," "," "," "]
[null,null,null,null,null," "," "," "," "]
[null,null,null,null,null," "," "," "," "]
[null,null,null,null,null," "," "," "," "]
[null,null,null,null,null," "," "," "," "]
[null,null,null,null,null," "," "," "," "]
[null,null,null,null,null," "," "," "," "]
[null,null,null,null,null," "," "," "," "]
[null,null,null,null,null," "," "," "," "]
[null,null,null,null,null," "," "," "," "]
[null,null,null,null,null," "," "," "," "]
[null,null,null,null,null," "," "," "," "]
[null,null,null,null,null," "," "," "," "]
[null,null,null,null,null," "," "," "," "]
[null,null,null,null,null," "," "," "," "]
[null,null,null,null,null," "," "," "," "]
[null,null,null,null,null," "," "," "," "]
[null,null,null,null,null," "," "," "," "]
[null,null,null,null,null," "," "," "," "]
[null,null,null,null,null," "," "," "," "]
[null,null,null,null,null," "," "," "," "]
[null,null,null,null,null," "," "," "," "]
[null,null,null,null,null," "," "," "," "]
[null,null,null,null,null," "," "," "," "]
[null,null,null,null,null," "," "," "," "]
[null,null,null,null,null," "," "," "," "]
[null,null,null,null,null," "," "," "," "]
[null,null,null,null,null," "," "," "," "]
[null,null,null,null,null," "," "," "," "]
[null,null,null,null,null," "," "," "," "]
[null,null,null,null,null," "," "," "," "]
[null,null,null,null,null," "," "," "," "]
[null,null,null,null,null," "," "," "," "]
[null,null,null,null,null," "," "," "," "]
[null,null,null,null,null," "," "," "," "]
[null,null,null,null,null," "," "," "," "]
[null,null,null,null,null," "," "," "," "]
[null,null,null,null,null," "," "," "," "]
[null,null,null,null,null," "," "," "," "]
[null,null,null,null,null,{"$f":"IF(A323>0,B323/100,\" \")","v":" "},{"$f":"IF(A323>0,C323/100,\" \")","v":" "},{"$f":"IF(A323>0,D323/100,\" \")","v":" "},{"$f":"IF(A323>0,E323/100,\" \")","v":" "}]
[null,null,null,null,null," "," "," "," "]
[null,null,null,null,null," "," "," "," "]
[null,null,null,null,null," "," "," "," "]
[null,null,null,null,null," "," "," "," "]
[null,null,null,null,null," "," "," "," "]
[null,null,null,null,null," "," "," "," "]
[null,null,null,null,null," "," "," "," "]
[null,null,null,null,null," "," "," "," "]
[null,null,null,null,null," "," "," "," "]
[null,null,null,null,null," "," "," "," "]
[null,null,null,null,null," "," "," "," "]
[null,null,null,null,null," "," "," "," "]
[null,null,null,null,null," "," "," "," "]
[null,null,null,null,null," "," "," "," "]
[null,null,null,null,null," "," "," "," "]
[null,null,null,null,null," "," "," "," "]
[null,null,null,null,null," "," "," "," "]
[null,null,null,null,null," "," "," "," "]
[null,null,null,null,null," "," "," "," "]
[null,null,null,null,null," "," "," "," "]
[null,null,null,null,null," "," "," "," "]
[null,null,null,null,null," "," "," "," "]
[null,null,null,null,null," "," "," "," "]
[null,null,null,null,null," "," "," "," "]
[null,null,null,null,null," "," "," "," "]
[null,null,null,null,null," "," "," "," "]
[null,null,null,null,null," "," "," "," "]
[null,null,null,null,null," "," "," "," "]
[null,null,null,null,null," "," "," "," "]
[null,null,null,null,null," "," "," "," "]
[null,null,null,null,null," "," "," "," "]
[null,null,null,null,null," "," "," "," "]
[null,null,null,null,null," "," "," "," "]
[null,null,null,null,null," "," "," "," "]
[null,null,null,null,null," "," "," "," "]
[null,null,null,null,null," "," "," "," "]
[null,null,null,null,null," "," "," "," "]
[null,null,null,null,null," "," "," "," "]
[null,null,null,null,null," "," "," "," "]
[null,null,null,null,null," "," "," "," "]
[null,null,null,null,null," "," "," "," "]
[null,null,null,null,null," "," "," "," "]
[null,null,null,null,null," "," "," "," "]
[null,null,null,null,null," "," "," "," "]
[null,null,null,null,null," "," "," "," "]
[null,null,null,null,null," "," "," "," "]
[null,null,null,null,null," "," "," "," "]
[null,null,null,null,null," "," "," "," "]
[null,null,null,null,null," "," "," "," "]
[null,null,null,null,null," "," "," "," "]
[null,null,null,null,null," "," "," "," "]
[null,null,null,null,null," "," "," "," "]
[null,null,null,null,null," "," "," "," "]
[null,null,null,null,null," "," "," "," "]
[null,null,null,null,null," "," "," "," "]
[null,null,null,null,null," "," "," "," "]
[null,null,null,null,null," "," "," "," "]
[null,null,null,null,null," "," "," "," "]
[null,null,null,null,null," "," "," "," "]
[null,null,null,null,null," "," "," "," "]
[null,null,null,null,null," "," "," "," "]
[null,null,null,null,null," "," "," "," "]
[null,null,null,null,null," "," "," "," "]
[null,null,null,null,null,{"$f":"IF(A387>0,B387/100,\" \")","v":" "},{"$f":"IF(A387>0,C387/100,\" \")","v":" "},{"$f":"IF(A387>0,D387/100,\" \")","v":" "},{"$f":"IF(A387>0,E387/100,\" \")","v":" "}]
[null,null,null,null,null," "," "," "," "]
[null,null,null,null,null," "," "," "," "]
[null,null,null,null,null," "," "," "," "]
[null,null,null,null,null," "," "," "," "]
[null,null,null,null,null," "," "," "," "]
[null,null,null,null,null," "," "," "," "]
[null,null,null,null,null," "," "," "," "]
[null,null,null,null,null," "," "," "," "]
[null,null,null,null,null," "," "," "," "]
[null,null,null,null,null," "," "," "," "]
[null,null,null,null,null," "," "," "," "]
[null,null,null,null,null," "," "," "," "]
[null,null,null,null,null," "," "," "," "]
[null,null,null,null,null," "," "," "," "]
[null,null,null,null,null," "," "," "," "]
[null,null,null,null,null," "," "," "," "]
[null,null,null,null,null," "," "," "," "]
[null,null,null,null,null," "," "," "," "]
[null,null,null,null,null," "," "," "," "]
[null,null,null,null,null," "," "," "," "]
[null,null,null,null,null," "," "," "," "]
[null,null,null,null,null," "," "," "," "]
[null,null,null,null,null," "," "," "," "]
[null,null,null,null,null," "," "," "," "]
[null,null,null,null,null," "," "," "," "]
[null,null,null,null,null," "," "," "," "]
[null,null,null,null,null," "," "," "," "]
[null,null,null,null,null," "," "," "," "]
[null,null,null,null,null," "," "," "," "]
[null,null,null,null,null," "," "," "," "]
[null,null,null,null,null," "," "," "," "]
[null,null,null,null,null," "," "," "," "]
[null,null,null,null,null," "," "," "," "]
[null,null,null,null,null," "," "," "," "]
[null,null,null,null,null," "," "," "," "]
[null,null,null,null,null," "," "," "," "]
[null,null,null,null,null," "," "," "," "]
[null,null,null,null,null," "," "," "," "]
[null,null,null,null,null," "," "," "," "]
[null,null,null,null,null," "," "," "," "]
[null,null,null,null,null," "," "," "," "]
[null,null,null,null,null," "," "," "," "]
[null,null,null,null,null," "," "," "," "]
[null,null,null,null,null," "," "," "," "]
[null,null,null,null,null," "," "," "," "]
[null,null,null,null,null," "," "," "," "]
[null,null,null,null,null," "," "," "," "]
[null,null,null,null,null," "," "," "," "]
[null,null,null,null,null," "," "," "," "]
[null,null,null,null,null," "," "," "," "]
[null,null,null,null,null," "," "," "," "]
[null,null,null,null,null," "," "," "," "]
[null,null,null,null,null," "," "," "," "]
[null,null,null,null,null," "," "," "," "]
[null,null,null,null,null," "," "," "," "]
[null,null,null,null,null," "," "," "," "]
[null,null,null,null,null," "," "," "," "]
[null,null,null,null,null," "," "," "," "]
[null,null,null,null,null," "," "," "," "]
[null,null,null,null,null," "," "," "," "]
[null,null,null,null,null," "," "," "," "]
[null,null,null,null,null," "," "," "," "]
[null,null,null,null,null," "," "," "," "]
[null,null,null,null,null,{"$f":"IF(A451>0,B451/100,\" \")","v":" "},{"$f":"IF(A451>0,C451/100,\" \")","v":" "},{"$f":"IF(A451>0,D451/100,\" \")","v":" "},{"$f":"IF(A451>0,E451/100,\" \")","v":" "}]
[null,null,null,null,null," "," "," "," "]
[null,null,null,null,null," "," "," "," "]
[null,null,null,null,null," "," "," "," "]
[null,null,null,null,null," "," "," "," "]
[null,null,null,null,null," "," "," "," "]
[null,null,null,null,null," "," "," "," "]
[null,null,null,null,null," "," "," "," "]
[null,null,null,null,null," "," "," "," "]
[null,null,null,null,null," "," "," "," "]
[null,null,null,null,null," "," "," "," "]
[null,null,null,null,null," "," "," "," "]
[null,null,null,null,null," "," "," "," "]
[null,null,null,null,null," "," "," "," "]
[null,null,null,null,null," "," "," "," "]
[null,null,null,null,null," "," "," "," "]
[null,null,null,null,null," "," "," "," "]
[null,null,null,null,null," "," "," "," "]
[null,null,null,null,null," "," "," "," "]
[null,null,null,null,null," "," "," "," "]
[null,null,null,null,null," "," "," "," "]
[null,null,null,null,null," "," "," "," "]
[null,null,null,null,null," "," "," "," "]
[null,null,null,null,null," "," "," "," "]
[null,null,null,null,null," "," "," "," "]
[null,null,null,null,null," "," "," "," "]
[null,null,null,null,null," "," "," "," "]
[null,null,null,null,null," "," "," "," "]
[null,null,null,null,null," "," "," "," "]
[null,null,null,null,null," "," "," "," "]
[null,null,null,null,null," "," "," "," "]
[null,null,null,null,null," "," "," "," "]
[null,null,null,null,null," "," "," "," "]
[null,null,null,null,null," "," "," "," "]
[null,null,null,null,null," "," "," "," "]
[null,null,null,null,null," "," "," "," "]
[null,null,null,null,null," "," "," "," "]
[null,null,null,null,null," "," "," "," "]
[null,null,null,null,null," "," "," "," "]
[null,null,null,null,null," "," "," "," "]
[null,null,null,null,null," "," "," "," "]
[null,null,null,null,null," "," "," "," "]
[null,null,null,null,null," "," "," "," "]
[null,null,null,null,null," "," "," "," "]
[null,null,null,null,null," "," "," "," "]
[null,null,null,null,null," "," "," "," "]
[null,null,null,null,null," "," "," "," "]
[null,null,null,null,null," "," "," "," "]
[null,null,null,null,null," "," "," "," "]
[null,null,null,null,null," "," "," "," "]
[null,null,null,null,null," "," "," "," "]
[null,null,null,null,null," "," "," "," "]
[null,null,null,null,null," "," "," "," "]
[null,null,null,null,null," "," "," "," "]
[null,null,null,null,null," "," "," "," "]
[null,null,null,null,null," "," "," "," "]
[null,null,null,null,null," "," "," "," "]
[null,null,null,null,null," "," "," "," "]
[null,null,null,null,null," "," "," "," "]
[null,null,null,null,null," "," "," "," "]
[null,null,null,null,null," "," "," "," "]
[null,null,null,null,null," "," "," "," "]
[null,null,null,null,null," "," "," "," "]
[null,null,null,null,null," "," "," "," "]
[null,null,null,null,null,{"$f":"IF(A515>0,B515/100,\" \")","v":" "},{"$f":"IF(A515>0,C515/100,\" \")","v":" "},{"$f":"IF(A515>0,D515/100,\" \")","v":" "},{"$f":"IF(A515>0,E515/100,\" \")","v":" "}]
[null,null,null,null,null," "," "," "," "]
[null,null,null,null,null," "," "," "," "]
[null,null,null,null,null," "," "," "," "]
[null,null,null,null,null," "," "," "," "]
[null,null,null,null,null," "," "," "," "]
[null,null,null,null,null," "," "," "," "]
[null,null,null,null,null," "," "," "," "]
[null,null,null,null,null," "," "," "," "]
[null,null,null,null,null," "," "," "," "]
[null,null,null,null,null," "," "," "," "]
[null,null,null,null,null," "," "," "," "]
[null,null,null,null,null," "," "," "," "]
[null,null,null,null,null," "," "," "," "]
[null,null,null,null,null," "," "," "," "]
[null,null,null,null,null," "," "," "," "]
[null,null,null,null,null," "," "," "," "]
[null,null,null,null,null," "," "," "," "]
[null,null,null,null,null," "," "," "," "]
[null,null,null,null,null," "," "," "," "]
[null,null,null,null,null," "," "," "," "]
[null,null,null,null,null," "," "," "," "]
[null,null,null,null,null," "," "," "," "]
[null,null,null,null,null," "," "," "," "]
[null,null,null,null,null," "," "," "," "]
[null,null,null,null,null," "," "," "," "]
[null,null,null,null,null," "," "," "," "]
[null,null,null,null,null," "," "," "," "]
[null,null,null,null,null," "," "," "," "]
[null,null,null,null,null," "," "," "," "]
[null,null,null,null,null," "," "," "," "]
[null,null,null,null,null," "," "," "," "]
[null,null,null,null,null," "," "," "," "]
[null,null,null,null,null," "," "," "," "]
[null,null,null,null,null," "," "," "," "]
[null,null,null,null,null," "," "," "," "]
[null,null,null,null,null," "," "," "," "]
[null,null,null,null,null," "," "," "," "]
[null,null,null,null,null," "," "," "," "]
[null,null,null,null,null," "," "," "," "]
[null,null,null,null,null," "," "," "," "]
[null,null,null,null,null," "," "," "," "]
[null,null,null,null,null," "," "," "," "]
[null,null,null,null,null," "," "," "," "]
[null,null,null,null,null," "," "," "," "]
[null,null,null,null,null," "," "," "," "]
[null,null,null,null,null," "," "," "," "]
[null,null,null,null,null," "," "," "," "]
[null,null,null,null,null," "," "," "," "]
[null,null,null,null,null," "," "," "," "]
[null,null,null,null,null," "," "," "," "]
[null,null,null,null,null," "," "," "," "]
[null,null,null,null,null," "," "," "," "]
[null,null,null,null,null," "," "," "," "]
[null,null,null,null,null," "," "," "," "]
[null,null,null,null,null," "," "," "," "]
[null,null,null,null,null," "," "," "," "]
[null,null,null,null,null," "," "," "," "]
[null,null,null,null,null," "," "," "," "]
[null,null,null,null,null," "," "," "," "]
[null,null,null,null,null," "," "," "," "]
[null,null,null,null,null," "," "," "," "]
[null,null,null,null,null," "," "," "," "]
[null,null,null,null,null," "," "," "," "]
[null,null,null,null,null,{"$f":"IF(A579>0,B579/100,\" \")","v":" "},{"$f":"IF(A579>0,C579/100,\" \")","v":" "},{"$f":"IF(A579>0,D579/100,\" \")","v":" "},{"$f":"IF(A579>0,E579/100,\" \")","v":" "}]
[null,null,null,null,null," "," "," "," "]
[null,null,null,null,null," "," "," "," "]
[null,null,null,null,null," "," "," "," "]
[null,null,null,null,null," "," "," "," "]
[null,null,null,null,null," "," "," "," "]
[null,null,null,null,null," "," "," "," "]
[null,null,null,null,null," "," "," "," "]
[null,null,null,null,null," "," "," "," "]
[null,null,null,null,null," "," "," "," "]
[null,null,null,null,null," "," "," "," "]
[null,null,null,null,null," "," "," "," "]
[null,null,null,null,null," "," "," "," "]
[null,null,null,null,null," "," "," "," "]
[null,null,null,null,null," "," "," "," "]
[null,null,null,null,null," "," "," "," "]
[null,null,null,null,null," "," "," "," "]
[null,null,null,null,null," "," "," "," "]
[null,null,null,null,null," "," "," "," "]
[null,null,null,null,null," "," "," "," "]
[null,null,null,null,null," "," "," "," "]
[null,null,null,null,null," "," "," "," "]
[null,null,null,null,null," "," "," "," "]
[null,null,null,null,null," "," "," "," "]
[null,null,null,null,null," "," "," "," "]
[null,null,null,null,null," "," "," "," "]
[null,null,null,null,null," "," "," "," "]
[null,null,null,null,null," "," "," "," "]
[null,null,null,null,null," "," "," "," "]
[null,null,null,null,null," "," "," "," "]
[null,null,null,null,null," "," "," "," "]
[null,null,null,null,null," "," "," "," "]
[null,null,null,null,null," "," "," "," "]
[null,null,null,null,null," "," "," "," "]
[null,null,null,null,null," "," "," "," "]
[null,null,null,null,null," "," "," "," "]
[null,null,null,null,null," "," "," "," "]
[null,null,null,null,null," "," "," "," "]
[null,null,null,null,null," "," "," "," "]
[null,null,null,null,null," "," "," "," "]
[null,null,null,null,null," "," "," "," "]
[null,null,null,null,null," "," "," "," "]
[null,null,null,null,null," "," "," "," "]
[null,null,null,null,null," "," "," "," "]
[null,null,null,null,null," "," "," "," "]
[null,null,null,null,null," "," "," "," "]
[null,null,null,null,null," "," "," "," "]
[null,null,null,null,null," "," "," "," "]
[null,null,null,null,null," "," "," "," "]
[null,null,null,null,null," "," "," "," "]
[null,null,null,null,null," "," "," "," "]
[null,null,null,null,null," "," "," "," "]
[null,null,null,null,null," "," "," "," "]
[null,null,null,null,null," "," "," "," "]
[null,null,null,null,null," "," "," "," "]
[null,null,null,null,null," "," "," "," "]
[null,null,null,null,null," "," "," "," "]
[null,null,null,null,null," "," "," "," "]
[null,null,null,null,null," "," "," "," "]
[null,null,null,null,null," "," "," "," "]
[null,null,null,null,null," "," "," "," "]
[null,null,null,null,null," "," "," "," "]
[null,null,null,null,null," "," "," "," "]
[null,null,null,null,null," "," "," "," "]
[null,null,null,null,null,{"$f":"IF(A643>0,B643/100,\" \")","v":" "},{"$f":"IF(A643>0,C643/100,\" \")","v":" "},{"$f":"IF(A643>0,D643/100,\" \")","v":" "},{"$f":"IF(A643>0,E643/100,\" \")","v":" "}]
[null,null,null,null,null," "," "," "," "]
[null,null,null,null,null," "," "," "," "]
[null,null,null,null,null," "," "," "," "]
[null,null,null,null,null," "," "," "," "]
[null,null,null,null,null," "," "," "," "]
[null,null,null,null,null," "," "," "," "]
[null,null,null,null,null," "," "," "," "]
[null,null,null,null,null," "," "," "," "]
[null,null,null,null,null," "," "," "," "]
[null,null,null,null,null," "," "," "," "]
[null,null,null,null,null," "," "," "," "]
[null,null,null,null,null," "," "," "," "]
[null,null,null,null,null," "," "," "," "]
[null,null,null,null,null," "," "," "," "]
[null,null,null,null,null," "," "," "," "]
[null,null,null,null,null," "," "," "," "]
[null,null,null,null,null," "," "," "," "]
[null,null,null,null,null," "," "," "," "]
[null,null,null,null,null," "," "," "," "]
[null,null,null,null,null," "," "," "," "]
[null,null,null,null,null," "," "," "," "]
[null,null,null,null,null," "," "," "," "]
[null,null,null,null,null," "," "," "," "]
[null,null,null,null,null," "," "," "," "]
[null,null,null,null,null," "," "," "," "]
[null,null,null,null,null," "," "," "," "]
[null,null,null,null,null," "," "," "," "]
[null,null,null,null,null," "," "," "," "]
[null,null,null,null,null," "," "," "," "]
[null,null,null,null,null," "," "," "," "]
[null,null,null,null,null," "," "," "," "]
[null,null,null,null,null," "," "," "," "]
[null,null,null,null,null," "," "," "," "]
[null,null,null,null,null," "," "," "," "]
[null,null,null,null,null," "," "," "," "]
[null,null,null,null,null," "," "," "," "]
[null,null,null,null,null," "," "," "," "]
[null,null,null,null,null," "," "," "," "]
[null,null,null,null,null," "," "," "," "]
[null,null,null,null,null," "," "," "," "]
[null,null,null,null,null," "," "," "," "]
[null,null,null,null,null," "," "," "," "]
[null,null,null,null,null," "," "," "," "]
[null,null,null,null,null," "," "," "," "]
[null,null,null,null,null," "," "," "," "]
[null,null,null,null,null," "," "," "," "]
[null,null,null,null,null," "," "," "," "]
[null,null,null,null,null," "," "," "," "]
[null,null,null,null,null," "," "," "," "]
[null,null,null,null,null," "," "," "," "]
[null,null,null,null,null," "," "," "," "]
[null,null,null,null,null," "," "," "," "]
[null,null,null,null,null," "," "," "," "]
[null,null,null,null,null," "," "," "," "]
[null,null,null,null,null," "," "," "," "]
[null,null,null,null,null," "," "," "," "]
[null,null,null,null,null," "," "," "," "]
[null,null,null,null,null," "," "," "," "]
[null,null,null,null,null," "," "," "," "]
[null,null,null,null,null," "," "," "," "]
[null,null,null,null,null," "," "," "," "]
[null,null,null,null,null," "," "," "," "]
[null,null,null,null,null," "," "," "," "]
[null,null,null,null,null,{"$f":"IF(A707>0,B707/100,\" \")","v":" "},{"$f":"IF(A707>0,C707/100,\" \")","v":" "},{"$f":"IF(A707>0,D707/100,\" \")","v":" "},{"$f":"IF(A707>0,E707/100,\" \")","v":" "}]
[null,null,null,null,null," "," "," "," "]
[null,null,null,null,null," "," "," "," "]
[null,null,null,null,null," "," "," "," "]
[null,null,null,null,null," "," "," "," "]
[null,null,null,null,null," "," "," "," "]
[null,null,null,null,null," "," "," "," "]
[null,null,null,null,null," "," "," "," "]
[null,null,null,null,null," "," "," "," "]
[null,null,null,null,null," "," "," "," "]
[null,null,null,null,null," "," "," "," "]
[null,null,null,null,null," "," "," "," "]
[null,null,null,null,null," "," "," "," "]
[null,null,null,null,null," "," "," "," "]
[null,null,null,null,null," "," "," "," "]
[null,null,null,null,null," "," "," "," "]
[null,null,null,null,null," "," "," "," "]
[null,null,null,null,null," "," "," "," "]
[null,null,null,null,null," "," "," "," "]
[null,null,null,null,null," "," "," "," "]
[null,null,null,null,null," "," "," "," "]
[null,null,null,null,null," "," "," "," "]
[null,null,null,null,null," "," "," "," "]
[null,null,null,null,null," "," "," "," "]
[null,null,null,null,null," "," "," "," "]
[null,null,null,null,null," "," "," "," "]
[null,null,null,null,null," "," "," "," "]
[null,null,null,null,null," "," "," "," "]
[null,null,null,null,null," "," "," "," "]
[null,null,null,null,null," "," "," "," "]
[null,null,null,null,null," "," "," "," "]
[null,null,null,null,null," "," "," "," "]
[null,null,null,null,null," "," "," "," "]
[null,null,null,null,null," "," "," "," "]
[null,null,null,null,null," "," "," "," "]
[null,null,null,null,null," "," "," "," "]
[null,null,null,null,null," "," "," "," "]
[null,null,null,null,null," "," "," "," "]
[null,null,null,null,null," "," "," "," "]
[null,null,null,null,null," "," "," "," "]
[null,null,null,null,null," "," "," "," "]
[null,null,null,null,null," "," "," "," "]
[null,null,null,null,null," "," "," "," "]
[null,null,null,null,null," "," "," "," "]
[null,null,null,null,null," "," "," "," "]
[null,null,null,null,null," "," "," "," "]
[null,null,null,null,null," "," "," "," "]
[null,null,null,null,null," "," "," "," "]
[null,null,null,null,null," "," "," "," "]
[null,null,null,null,null," "," "," "," "]
[null,null,null,null,null," "," "," "," "]
[null,null,null,null,null," "," "," "," "]
[null,null,null,null,null," "," "," "," "]
[null,null,null,null,null," "," "," "," "]
[null,null,null,null,null," "," "," "," "]
[null,null,null,null,null," "," "," "," "]
[null,null,null,null,null," "," "," "," "]
[null,null,null,null,null," "," "," "," "]
[null,null,null,null,null," "," "," "," "]
[null,null,null,null,null," "," "," "," "]
[null,null,null,null,null," "," "," "," "]
[null,null,null,null,null," "," "," "," "]
[null,null,null,null,null," "," "," "," "]
[null,null,null,null,null," "," "," "," "]
[null,null,null,null,null,{"$f":"IF(A771>0,B771/100,\" \")","v":" "},{"$f":"IF(A771>0,C771/100,\" \")","v":" "},{"$f":"IF(A771>0,D771/100,\" \")","v":" "},{"$f":"IF(A771>0,E771/100,\" \")","v":" "}]
[null,null,null,null,null," "," "," "," "]
[null,null,null,null,null," "," "," "," "]
[null,null,null,null,null," "," "," "," "]
[null,null,null,null,null," "," "," "," "]
[null,null,null,null,null," "," "," "," "]
[null,null,null,null,null," "," "," "," "]
[null,null,null,null,null," "," "," "," "]
[null,null,null,null,null," "," "," "," "]
[null,null,null,null,null," "," "," "," "]
[null,null,null,null,null," "," "," "," "]
[null,null,null,null,null," "," "," "," "]
[null,null,null,null,null," "," "," "," "]
[null,null,null,null,null," "," "," "," "]
[null,null,null,null,null," "," "," "," "]
[null,null,null,null,null," "," "," "," "]
[null,null,null,null,null," "," "," "," "]
[null,null,null,null,null," "," "," "," "]
[null,null,null,null,null," "," "," "," "]
[null,null,null,null,null," "," "," "," "]
[null,null,null,null,null," "," "," "," "]
[null,null,null,null,null," "," "," "," "]
[null,null,null,null,null," "," "," "," "]
[null,null,null,null,null," "," "," "," "]
[null,null,null,null,null," "," "," "," "]
[null,null,null,null,null," "," "," "," "]
[null,null,null,null,null," "," "," "," "]
[null,null,null,null,null," "," "," "," "]
[null,null,null,null,null," "," "," "," "]
[null,null,null,null,null," "," "," "," "]
[null,null,null,null,null," "," "," "," "]
[null,null,null,null,null," "," "," "," "]
[null,null,null,null,null," "," "," "," "]
[null,null,null,null,null," "," "," "," "]
[null,null,null,null,null," "," "," "," "]
[null,null,null,null,null," "," "," "," "]
[null,null,null,null,null," "," "," "," "]
[null,null,null,null,null," "," "," "," "]
[null,null,null,null,null," "," "," "," "]
[null,null,null,null,null," "," "," "," "]
[null,null,null,null,null," "," "," "," "]
[null,null,null,null,null," "," "," "," "]
[null,null,null,null,null," "," "," "," "]
[null,null,null,null,null," "," "," "," "]
[null,null,null,null,null," "," "," "," "]
[null,null,null,null,null," "," "," "," "]
[null,null,null,null,null," "," "," "," "]
[null,null,null,null,null," "," "," "," "]
[null,null,null,null,null," "," "," "," "]
[null,null,null,null,null," "," "," "," "]
[null,null,null,null,null," "," "," "," "]
[null,null,null,null,null," "," "," "," "]
[null,null,null,null,null," "," "," "," "]
[null,null,null,null,null," "," "," "," "]
[null,null,null,null,null," "," "," "," "]
[null,null,null,null,null," "," "," "," "]
[null,null,null,null,null," "," "," "," "]
[null,null,null,null,null," "," "," "," "]
[null,null,null,null,null," "," "," "," "]
[null,null,null,null,null," "," "," "," "]
[null,null,null,null,null," "," "," "," "]
[null,null,null,null,null," "," "," "," "]
[null,null,null,null,null," "," "," "," "]
[null,null,null,null,null," "," "," "," "]
[null,null,null,null,null,{"$f":"IF(A835>0,B835/100,\" \")","v":" "},{"$f":"IF(A835>0,C835/100,\" \")","v":" "},{"$f":"IF(A835>0,D835/100,\" \")","v":" "},{"$f":"IF(A835>0,E835/100,\" \")","v":" "}]
[null,null,null,null,null," "," "," "," "]
[null,null,null,null,null," "," "," "," "]
[null,null,null,null,null," "," "," "," "]
[null,null,null,null,null," "," "," "," "]
[null,null,null,null,null," "," "," "," "]
[null,null,null,null,null," "," "," "," "]
[null,null,null,null,null," "," "," "," "]
[null,null,null,null,null," "," "," "," "]
[null,null,null,null,null," "," "," "," "]
[null,null,null,null,null," "," "," "," "]
[null,null,null,null,null," "," "," "," "]
[null,null,null,null,null," "," "," "," "]
[null,null,null,null,null," "," "," "," "]
[null,null,null,null,null," "," "," "," "]
[null,null,null,null,null," "," "," "," "]
[null,null,null,null,null," "," "," "," "]
[null,null,null,null,null," "," "," "," "]
[null,null,null,null,null," "," "," "," "]
[null,null,null,null,null," "," "," "," "]
[null,null,null,null,null," "," "," "," "]
[null,null,null,null,null," "," "," "," "]
[null,null,null,null,null," "," "," "," "]
[null,null,null,null,null," "," "," "," "]
[null,null,null,null,null," "," "," "," "]
[null,null,null,null,null," "," "," "," "]
[null,null,null,null,null," "," "," "," "]
[null,null,null,null,null," "," "," "," "]
[null,null,null,null,null," "," "," "," "]
[null,null,null,null,null," "," "," "," "]
[null,null,null,null,null," "," "," "," "]
[null,null,null,null,null," "," "," "," "]
[null,null,null,null,null," "," "," "," "]
[null,null,null,null,null," "," "," "," "]
[null,null,null,null,null," "," "," "," "]
[null,null,null,null,null," "," "," "," "]
[null,null,null,null,null," "," "," "," "]
[null,null,null,null,null," "," "," "," "]
[null,null,null,null,null," "," "," "," "]
[null,null,null,null,null," "," "," "," "]
[null,null,null,null,null," "," "," "," "]
[null,null,null,null,null," "," "," "," "]
[null,null,null,null,null," "," "," "," "]
[null,null,null,null,null," "," "," "," "]
[null,null,null,null,null," "," "," "," "]
[null,null,null,null,null," "," "," "," "]
[null,null,null,null,null," "," "," "," "]
[null,null,null,null,null," "," "," "," "]
[null,null,null,null,null," "," "," "," "]
[null,null,null,null,null," "," "," "," "]
[null,null,null,null,null," "," "," "," "]
[null,null,null,null,null," "," "," "," "]
[null,null,null,null,null," "," "," "," "]
[null,null,null,null,null," "," "," "," "]
[null,null,null,null,null," "," "," "," "]
[null,null,null,null,null," "," "," "," "]
[null,null,null,null,null," "," "," "," "]
[null,null,null,null,null," "," "," "," "]
[null,null,null,null,null," "," "," "," "]
[null,null,null,null,null," "," "," "," "]
[null,null,null,null,null," "," "," "," "]
[null,null,null,null,null," "," "," "," "]
[null,null,null,null,null," "," "," "," "]
[null,null,null,null,null," "," "," "," "]
[null,null,null,null,null,{"$f":"IF(A899>0,B899/100,\" \")","v":" "},{"$f":"IF(A899>0,C899/100,\" \")","v":" "},{"$f":"IF(A899>0,D899/100,\" \")","v":" "},{"$f":"IF(A899>0,E899/100,\" \")","v":" "}]
[null,null,null,null,null," "," "," "," "]
[null,null,null,null,null," "," "," "," "]
[null,null,null,null,null," "," "," "," "]
[null,null,null,null,null," "," "," "," "]
[null,null,null,null,null," "," "," "," "]
[null,null,null,null,null," "," "," "," "]
[null,null,null,null,null," "," "," "," "]
[null,null,null,null,null," "," "," "," "]
[null,null,null,null,null," "," "," "," "]
[null,null,null,null,null," "," "," "," "]
[null,null,null,null,null," "," "," "," "]
[null,null,null,null,null," "," "," "," "]
[null,null,null,null,null," "," "," "," "]
[null,null,null,null,null," "," "," "," "]
[null,null,null,null,null," "," "," "," "]
[null,null,null,null,null," "," "," "," "]
[null,null,null,null,null," "," "," "," "]
[null,null,null,null,null," "," "," "," "]
[null,null,null,null,null," "," "," "," "]
[null,null,null,null,null," "," "," "," "]
[null,null,null,null,null," "," "," "," "]
[null,null,null,null,null," "," "," "," "]
[null,null,null,null,null," "," "," "," "]
[null,null,null,null,null," "," "," "," "]
[null,null,null,null,null," "," "," "," "]
[null,null,null,null,null," "," "," "," "]
[null,null,null,null,null," "," "," "," "]
[null,null,null,null,null," "," "," "," "]
[null,null,null,null,null," "," "," "," "]
[null,null,null,null,null," "," "," "," "]
[null,null,null,null,null," "," "," "," "]
[null,null,null,null,null," "," "," "," "]
[null,null,null,null,null," "," "," "," "]
[null,null,null,null,null," "," "," "," "]
[null,null,null,null,null," "," "," "," "]
[null,null,null,null,null," "," "," "," "]
[null,null,null,null,null," "," "," "," "]
[null,null,null,null,null," "," "," "," "]
[null,null,null,null,null," "," "," "," "]
[null,null,null,null,null," "," "," "," "]
[null,null,null,null,null," "," "," "," "]
[null,null,null,null,null," "," "," "," "]
[null,null,null,null,null," "," "," "," "]
[null,null,null,null,null," "," "," "," "]
[null,null,null,null,null," "," "," "," "]
[null,null,null,null,null," "," "," "," "]
[null,null,null,null,null," "," "," "," "]
[null,null,null,null,null," "," "," "," "]
[null,null,null,null,null," "," "," "," "]
[null,null,null,null,null," "," "," "," "]
[null,null,null,null,null," "," "," "," "]
[null,null,null,null,null," "," "," "," "]
[null,null,null,null,null," "," "," "," "]
[null,null,null,null,null," "," "," "," "]
[null,null,null,null,null," "," "," "," "]
[null,null,null,null,null," "," "," "," "]
[null,null,null,null,null," "," "," "," "]
[null,null,null,null,null," "," "," "," "]
[null,null,null,null,null," "," "," "," "]
[null,null,null,null,null," "," "," "," "]
[null,null,null,null,null," "," "," "," "]
[null,null,null,null,null," "," "," "," "]
[null,null,null,null,null," "," "," "," "]
[null,null,null,null,null,{"$f":"IF(A963>0,B963/100,\" \")","v":" "},{"$f":"IF(A963>0,C963/100,\" \")","v":" "},{"$f":"IF(A963>0,D963/100,\" \")","v":" "},{"$f":"IF(A963>0,E963/100,\" \")","v":" "}]
[null,null,null,null,null," "," "," "," "]
[null,null,null,null,null," "," "," "," "]
[null,null,null,null,null," "," "," "," "]
[null,null,null,null,null," "," "," "," "]
[null,null,null,null,null," "," "," "," "]
[null,null,null,null,null," "," "," "," "]
[null,null,null,null,null," "," "," "," "]
[null,null,null,null,null," "," "," "," "]
[null,null,null,null,null," "," "," "," "]
[null,null,null,null,null," "," "," "," "]
[null,null,null,null,null," "," "," "," "]
[null,null,null,null,null," "," "," "," "]
[null,null,null,null,null," "," "," "," "]
[null,null,null,null,null," "," "," "," "]
[null,null,null,null,null," "," "," "," "]
[null,null,null,null,null," "," "," "," "]
[null,null,null,null,null," "," "," "," "]
[null,null,null,null,null," "," "," "," "]
[null,null,null,null,null," "," "," "," "]
[null,null,null,null,null," "," "," "," "]
[null,null,null,null,null," "," "," "," "]
[null,null,null,null,null," "," "," "," "]
[null,null,null,null,null," "," "," "," "]
[null,null,null,null,null," "," "," "," "]
[null,null,null,null,null," "," "," "," "]
[null,null,null,null,null," "," "," "," "]
[null,null,null,null,null," "," "," "," "]
[null,null,null,null,null," "," "," "," "]
[null,null,null,null,null," "," "," "," "]
[null,null,null,null,null," "," "," "," "]
[null,null,null,null,null," "," "," "," "]
[null,null,null,null,null," "," "," "," "]
[null,null,null,null,null," "," "," "," "]
[null,null,null,null,null," "," "," "," "]
[null,null,null,null,null," "," "," "," "]
[null,null,null,null,null," "," "," "," "]
[null,null,null,null,null," "," "," "," "]
[null,null,null,null,null," "," "," "," "]
[null,null,null,null,null," "," "," "," "]
[null,null,null,null,null," "," "," "," "]
[null,null,null,null,null," "," "," "," "]
[null,null,null,null,null," "," "," "," "]
[null,null,null,null,null," "," "," "," "]
[null,null,null,null,null," "," "," "," "]
[null,null,null,null,null," "," "," "," "]
[null,null,null,null,null," "," "," "," "]
[null,null,null,null,null," "," "," "," "]
[null,null,null,null,null," "," "," "," "]
[null,null,null,null,null," "," "," "," "]
[null,null,null,null,null," "," "," "," "]
[null,null,null,null,null," "," "," "," "]
[null,null,null,null,null," "," "," "," "]
[null,null,null,null,null," "," "," "," "]
[null,null,null,null,null," "," "," "," "]
[null,null,null,null,null," "," "," "," "]
[null,null,null,null,null," "," "," "," "]
[null,null,null,null,null," "," "," "," "]
[null,null,null,null,null," "," "," "," "]
[null,null,null,null,null," "," "," "," "]
[null,null,null,null,null," "," "," "," "]
[null,null,null,null,null," "," "," "," "]
[null,null,null,null,null," "," "," "," "]
[null,null,null,null,null," "," "," "," "]
[null,null,null,null,null,{"$f":"IF(A1027>0,B1027/100,\" \")","v":" "},{"$f":"IF(A1027>0,C1027/100,\" \")","v":" "},{"$f":"IF(A1027>0,D1027/100,\" \")","v":" "},{"$f":"IF(A1027>0,E1027/100,\" \")","v":" "}]
[null,null,null,null,null," "," "," "," "]
[null,null,null,null,null," "," "," "," "]
[null,null,null,null,null," "," "," "," "]
[null,null,null,null,null," "," "," "," "]
[null,null,null,null,null," "," "," "," "]
[null,null,null,null,null," "," "," "," "]
[null,null,null,null,null," "," "," "," "]
[null,null,null,null,null," "," "," "," "]
[null,null,null,null,null," "," "," "," "]
[null,null,null,null,null," "," "," "," "]
[null,null,null,null,null," "," "," "," "]
[null,null,null,null,null," "," "," "," "]
[null,null,null,null,null," "," "," "," "]
[null,null,null,null,null," "," "," "," "]
[null,null,null,null,null," "," "," "," "]
[null,null,null,null,null," "," "," "," "]
[null,null,null,null,null," "," "," "," "]
[null,null,null,null,null," "," "," "," "]
[null,null,null,null,null," "," "," "," "]
[null,null,null,null,null," "," "," "," "]
[null,null,null,null,null," "," "," "," "]
[null,null,null,null,null," "," "," "," "]
[null,null,null,null,null," "," "," "," "]
[null,null,null,null,null," "," "," "," "]
[null,null,null,null,null," "," "," "," "]
[null,null,null,null,null," "," "," "," "]
[null,null,null,null,null," "," "," "," "]
[null,null,null,null,null," "," "," "," "]
[null,null,null,null,null," "," "," "," "]
[null,null,null,null,null," "," "," "," "]
[null,null,null,null,null," "," "," "," "]
[null,null,null,null,null," "," "," "," "]
[null,null,null,null,null," "," "," "," "]
[null,null,null,null,null," "," "," "," "]
[null,null,null,null,null," "," "," "," "]
[null,null,null,null,null," "," "," "," "]
[null,null,null,null,null," "," "," "," "]
[null,null,null,null,null," "," "," "," "]
[null,null,null,null,null," "," "," "," "]
[null,null,null,null,null," "," "," "," "]
[null,null,null,null,null," "," "," "," "]
[null,null,null,null,null," "," "," "," "]
[null,null,null,null,null,{"$f":"I1068+N1035*F1066","v":{"$error":"#VALUE!"}}," "," "," "]
[null,null,null,null,null,{"$f":"I1068+N1012*F1066+N1013*G1066+N1014*H1066","v":{"$error":"#VALUE!"}}," "," "," "]
[null,null,null,null,null," "," "," "," "]
[null,null,null,null,null," "," "," "," "]
[null,null,null,null,null," "," "," "," "]
[null,null,null,null,null," "," "," "," "]
[null,null,null,null,null," "," "," "," "]
[null,null,null,null,null," "," "," "," "]
[null,null,null,null,null," "," "," "," "]
[null,null,null,null,null," "," "," "," "]
[null,null,null,null,null," "," "," "," "]
[null,null,null,null,null," "," "," "," "]
[null,null,null,null,null," "," "," "," "]
[null,null,null,null,null," "," "," "," "]
[null,null,null,null,null," "," "," "," "]
[null,null,null,null,null," "," "," "," "]
[null,null,null,null,null," "," "," "," "]
[null,null,null,null,null," "," "," "," "]
[null,null,null,null,null," "," "," "," "]
[null,null,null,null,null," "," "," "," "]
[null,null,null,null,null," "," "," "," "]
[null,null,null,null,null,{"$f":"IF(A1091>0,B1091/100,\" \")","v":" "},{"$f":"IF(A1091>0,C1091/100,\" \")","v":" "},{"$f":"IF(A1091>0,D1091/100,\" \")","v":" "},{"$f":"IF(A1091>0,E1091/100,\" \")","v":" "}]
[null,null,null,null,null," "," "," "," "]
[null,null,null,null,null," "," "," "," "]
[null,null,null,null,null," "," "," "," "]
[null,null,null,null,null," "," "," "," "]
[null,null,null,null,null," "," "," "," "]
[null,null,null,null,null," "," "," "," "]
[null,null,null,null,null," "," "," "," "]
[null,null,null,null,null," "," "," "," "]
[null,null,null,null,null," "," "," "," "]
[null,null,null,null,null," "," "," "," "]
[null,null,null,null,null," "," "," "," "]
[null,null,null,null,null," "," "," "," "]
[null,null,null,null,null," "," "," "," "]
[null,null,null,null,null," "," "," "," "]
[null,null,null,null,null," "," "," "," "]
[null,null,null,null,null," "," "," "," "]
[null,null,null,null,null," "," "," "," "]
[null,null,null,null,null," "," "," "," "]
[null,null,null,null,null," "," "," "," "]
[null,null,null,null,null," "," "," "," "]
[null,null,null,null,null," "," "," "," "]
[null,null,null,null,null," "," "," "," "]
[null,null,null,null,null," "," "," "," "]
[null,null,null,null,null," "," "," "," "]
[null,null,null,null,null," "," "," "," "]
[null,null,null,null,null," "," "," "," "]
[null,null,null,null,null," "," "," "," "]
[null,null,null,null,null," "," "," "," "]
[null,null,null,null,null," "," "," "," "]
[null,null,null,null,null," "," "," "," "]
[null,null,null,null,null," "," "," "," "]
[null,null,null,null,null," "," "," "," "]
[null,null,null,null,null," "," "," "," "]
[null,null,null,null,null," "," "," "," "]
[null,null,null,null,null," "," "," "," "]
[null,null,null,null,null," "," "," "," "]
[null,null,null,null,null," "," "," "," "]
[null,null,null,null,null," "," "," "," "]
[null,null,null,null,null," "," "," "," "]
[null,null,null,null,null," "," "," "," "]
[null,null,null,null,null," "," "," "," "]
[null,null,null,null,null," "," "," "," "]
[null,null,null,null,null," "," "," "," "]
[null,null,null,null,null," "," "," "," "]
[null,null,null,null,null," "," "," "," "]
[null,null,null,null,null," "," "," "," "]
[null,null,null,null,null," "," "," "," "]
[null,null,null,null,null," "," "," "," "]
[null,null,null,null,null," "," "," "," "]
[null,null,null,null,null," "," "," "," "]
[null,null,null,null,null," "," "," "," "]
[null,null,null,null,null," "," "," "," "]
[null,null,null,null,null," "," "," "," "]
[null,null,null,null,null," "," "," "," "]
[null,null,null,null,null," "," "," "," "]
[null,null,null,null,null," "," "," "," "]
[null,null,null,null,null," "," "," "," "]
[null,null,null,null,null," "," "," "," "]
[null,null,null,null,null," "," "," "," "]
[null,null,null,null,null," "," "," "," "]
[null,null,null,null,null," "," "," "," "]
[null,null,null,null,null," "," "," "," "]
[null,null,null,null,null," "," "," "," "]
[null,null,null,null,null,{"$f":"IF(A1155>0,B1155/100,\" \")","v":" "},{"$f":"IF(A1155>0,C1155/100,\" \")","v":" "},{"$f":"IF(A1155>0,D1155/100,\" \")","v":" "},{"$f":"IF(A1155>0,E1155/100,\" \")","v":" "}]
[null,null,null,null,null," "," "," "," "]
[null,null,null,null,null," "," "," "," "]
[null,null,null,null,null," "," "," "," "]
[null,null,null,null,null," "," "," "," "]
[null,null,null,null,null," "," "," "," "]
[null,null,null,null,null," "," "," "," "]
[null,null,null,null,null," "," "," "," "]
[null,null,null,null,null," "," "," "," "]
[null,null,null,null,null," "," "," "," "]
[null,null,null,null,null," "," "," "," "]
[null,null,null,null,null," "," "," "," "]
[null,null,null,null,null," "," "," "," "]
[null,null,null,null,null," "," "," "," "]
[null,null,null,null,null," "," "," "," "]
[null,null,null,null,null," "," "," "," "]
[null,null,null,null,null," "," "," "," "]
[null,null,null,null,null," "," "," "," "]
[null,null,null,null,null," "," "," "," "]
[null,null,null,null,null," "," "," "," "]
[null,null,null,null,null," "," "," "," "]
[null,null,null,null,null," "," "," "," "]
[null,null,null,null,null," "," "," "," "]
[null,null,null,null,null," "," "," "," "]
[null,null,null,null,null," "," "," "," "]
[null,null,null,null,null," "," "," "," "]
[null,null,null,null,null," "," "," "," "]
[null,null,null,null,null," "," "," "," "]
[null,null,null,null,null," "," "," "," "]
[null,null,null,null,null," "," "," "," "]
[null,null,null,null,null," "," "," "," "]
[null,null,null,null,null," "," "," "," "]
[null,null,null,null,null," "," "," "," "]
[null,null,null,null,null," "," "," "," "]
[null,null,null,null,null," "," "," "," "]
[null,null,null,null,null," "," "," "," "]
[null,null,null,null,null," "," "," "," "]
[null,null,null,null,null," "," "," "," "]
[null,null,null,null,null," "," "," "," "]
[null,null,null,null,null," "," "," "," "]
[null,null,null,null,null," "," "," "," "]
[null,null,null,null,null," "," "," "," "]
[null,null,null,null,null," "," "," "," "]
[null,null,null,null,null," "," "," "," "]
[null,null,null,null,null," "," "," "," "]
[null,null,null,null,null," "," "," "," "]
[null,null,null,null,null," "," "," "," "]
[null,null,null,null,null," "," "," "," "]
[null,null,null,null,null," "," "," "," "]
[null,null,null,null,null," "," "," "," "]
[null,null,null,null,null," "," "," "," "]
[null,null,null,null,null," "," "," "," "]
[null,null,null,null,null," "," "," "," "]
[null,null,null,null,null," "," "," "," "]
[null,null,null,null,null," "," "," "," "]
[null,null,null,null,null," "," "," "," "]
[null,null,null,null,null," "," "," "," "]
[null,null,null,null,null," "," "," "," "]
[null,null,null,null,null," "," "," "," "]
[null,null,null,null,null," "," "," "," "]
[null,null,null,null,null," "," "," "," "]
[null,null,null,null,null," "," "," "," "]
[null,null,null,null,null," "," "," "," "]
[null,null,null,null,null," "," "," "," "]
[null,null,null,null,null,{"$f":"IF(A1219>0,B1219/100,\" \")","v":" "},{"$f":"IF(A1219>0,C1219/100,\" \")","v":" "},{"$f":"IF(A1219>0,D1219/100,\" \")","v":" "},{"$f":"IF(A1219>0,E1219/100,\" \")","v":" "}]
[null,null,null,null,null," "," "," "," "]
[null,null,null,null,null," "," "," "," "]
[null,null,null,null,null," "," "," "," "]
[null,null,null,null,null," "," "," "," "]
[null,null,null,null,null," "," "," "," "]
[null,null,null,null,null," "," "," "," "]
[null,null,null,null,null," "," "," "," "]
[null,null,null,null,null," "," "," "," "]
[null,null,null,null,null," "," "," "," "]
[null,null,null,null,null," "," "," "," "]
[null,null,null,null,null," "," "," "," "]
[null,null,null,null,null," "," "," "," "]
[null,null,null,null,null," "," "," "," "]
[null,null,null,null,null," "," "," "," "]
[null,null,null,null,null," "," "," "," "]
[null,null,null,null,null," "," "," "," "]
[null,null,null,null,null," "," "," "," "]
[null,null,null,null,null," "," "," "," "]
[null,null,null,null,null," "," "," "," "]
[null,null,null,null,null," "," "," "," "]
[null,null,null,null,null," "," "," "," "]
[null,null,null,null,null," "," "," "," "]
[null,null,null,null,null," "," "," "," "]
[null,null,null,null,null," "," "," "," "]
[null,null,null,null,null," "," "," "," "]
[null,null,null,null,null," "," "," "," "]
[null,null,null,null,null," "," "," "," "]
[null,null,null,null,null," "," "," "," "]
[null,null,null,null,null," "," "," "," "]
[null,null,null,null,null," "," "," "," "]
[null,null,null,null,null," "," "," "," "]
[null,null,null,null,null," "," "," "," "]
[null,null,null,null,null," "," "," "," "]
[null,null,null,null,null," "," "," "," "]
[null,null,null,null,null," "," "," "," "]
[null,null,null,null,null," "," "," "," "]
[null,null,null,null,null," "," "," "," "]
[null,null,null,null,null," "," "," "," "]
[null,null,null,null,null," "," "," "," "]
[null,null,null,null,null," "," "," "," "]
[null,null,null,null,null," "," "," "," "]
[null,null,null,null,null," "," "," "," "]
[null,null,null,null,null," "," "," "," "]
[null,null,null,null,null," "," "," "," "]
[null,null,null,null,null," "," "," "," "]
[null,null,null,null,null," "," "," "," "]
[null,null,null,null,null," "," "," "," "]
[null,null,null,null,null," "," "," "," "]
[null,null,null,null,null," "," "," "," "]
[null,null,null,null,null," "," "," "," "]
[null,null,null,null,null," "," "," "," "]
[null,null,null,null,null," "," "," "," "]
[null,null,null,null,null," "," "," "," "]
[null,null,null,null,null," "," "," "," "]
[null,null,null,null,null," "," "," "," "]
[null,null,null,null,null," "," "," "," "]
[null,null,null,null,null," "," "," "," "]
[null,null,null,null,null," "," "," "," "]
[null,null,null,null,null," "," "," "," "]
[null,null,null,null,null," "," "," "," "]
[null,null,null,null,null," "," "," "," "]
[null,null,null,null,null," "," "," "," "]
[null,null,null,null,null," "," "," "," "]
[null,null,null,null,null,{"$f":"IF(A1283>0,B1283/100,\" \")","v":" "},{"$f":"IF(A1283>0,C1283/100,\" \")","v":" "},{"$f":"IF(A1283>0,D1283/100,\" \")","v":" "},{"$f":"IF(A1283>0,E1283/100,\" \")","v":" "}]
[null,null,null,null,null," "," "," "," "]
[null,null,null,null,null," "," "," "," "]
[null,null,null,null,null," "," "," "," "]
[null,null,null,null,null," "," "," "," "]
[null,null,null,null,null," "," "," "," "]
[null,null,null,null,null," "," "," "," "]
[null,null,null,null,null," "," "," "," "]
[null,null,null,null,null," "," "," "," "]
[null,null,null,null,null," "," "," "," "]
[null,null,null,null,null," "," "," "," "]
[null,null,null,null,null," "," "," "," "]
[null,null,null,null,null," "," "," "," "]
[null,null,null,null,null," "," "," "," "]
[null,null,null,null,null," "," "," "," "]
[null,null,null,null,null," "," "," "," "]
[null,null,null,null,null," "," "," "," "]
[null,null,null,null,null," "," "," "," "]
[null,null,null,null,null," "," "," "," "]
[null,null,null,null,null," "," "," "," "]
[null,null,null,null,null," "," "," "," "]
[null,null,null,null,null," "," "," "," "]
[null,null,null,null,null," "," "," "," "]
[null,null,null,null,null," "," "," "," "]
[null,null,null,null,null," "," "," "," "]
[null,null,null,null,null," "," "," "," "]
[null,null,null,null,null," "," "," "," "]
[null,null,null,null,null," "," "," "," "]
[null,null,null,null,null," "," "," "," "]
[null,null,null,null,null," "," "," "," "]
[null,null,null,null,null," "," "," "," "]
[null,null,null,null,null," "," "," "," "]
[null,null,null,null,null," "," "," "," "]
[null,null,null,null,null," "," "," "," "]
[null,null,null,null,null," "," "," "," "]
[null,null,null,null,null," "," "," "," "]
[null,null,null,null,null," "," "," "," "]
[null,null,null,null,null," "," "," "," "]
[null,null,null,null,null," "," "," "," "]
[null,null,null,null,null," "," "," "," "]
[null,null,null,null,null," "," "," "," "]
[null,null,null,null,null," "," "," "," "]
[null,null,null,null,null," "," "," "," "]
[null,null,null,null,null," "," "," "," "]
[null,null,null,null,null," "," "," "," "]
[null,null,null,null,null," "," "," "," "]
[null,null,null,null,null," "," "," "," "]
[null,null,null,null,null," "," "," "," "]
[null,null,null,null,null," "," "," "," "]
[null,null,null,null,null," "," "," "," "]
[null,null,null,null,null," "," "," "," "]
[null,null,null,null,null," "," "," "," "]
[null,null,null,null,null," "," "," "," "]
[null,null,null,null,null," "," "," "," "]
[null,null,null,null,null," "," "," "," "]
[null,null,null,null,null," "," "," "," "]
[null,null,null,null,null," "," "," "," "]
[null,null,null,null,null," "," "," "," "]
[null,null,null,null,null," "," "," "," "]
[null,null,null,null,null," "," "," "," "]
[null,null,null,null,null," "," "," "," "]
[null,null,null,null,null," "," "," "," "]
[null,null,null,null,null," "," "," "," "]
[null,null,null,null,null," "," "," "," "]
[null,null,null,null,null,{"$f":"IF(A1347>0,B1347/100,\" \")","v":" "},{"$f":"IF(A1347>0,C1347/100,\" \")","v":" "},{"$f":"IF(A1347>0,D1347/100,\" \")","v":" "},{"$f":"IF(A1347>0,E1347/100,\" \")","v":" "}]
[null,null,null,null,null," "," "," "," "]
[null,null,null,null,null," "," "," "," "]
[null,null,null,null,null," "," "," "," "]
[null,null,null,null,null," "," "," "," "]
[null,null,null,null,null," "," "," "," "]
[null,null,null,null,null," "," "," "," "]
[null,null,null,null,null," "," "," "," "]
[null,null,null,null,null," "," "," "," "]
[null,null,null,null,null," "," "," "," "]
[null,null,null,null,null," "," "," "," "]
[null,null,null,null,null," "," "," "," "]
[null,null,null,null,null," "," "," "," "]
[null,null,null,null,null," "," "," "," "]
[null,null,null,null,null," "," "," "," "]
[null,null,null,null,null," "," "," "," "]
[null,null,null,null,null," "," "," "," "]
[null,null,null,null,null," "," "," "," "]
[null,null,null,null,null," "," "," "," "]
[null,null,null,null,null," "," "," "," "]
[null,null,null,null,null," "," "," "," "]
[null,null,null,null,null," "," "," "," "]
[null,null,null,null,null," "," "," "," "]
[null,null,null,null,null," "," "," "," "]
[null,null,null,null,null," "," "," "," "]
[null,null,null,null,null," "," "," "," "]
[null,null,null,null,null," "," "," "," "]
[null,null,null,null,null," "," "," "," "]
[null,null,null,null,null," "," "," "," "]
[null,null,null,null,null," "," "," "," "]
[null,null,null,null,null," "," "," "," "]
[null,null,null,null,null," "," "," "," "]
[null,null,null,null,null," "," "," "," "]
[null,null,null,null,null," "," "," "," "]
[null,null,null,null,null," "," "," "," "]
[null,null,null,null,null," "," "," "," "]
[null,null,null,null,null," "," "," "," "]
[null,null,null,null,null," "," "," "," "]
[null,null,null,null,null," "," "," "," "]
[null,null,null,null,null," "," "," "," "]
[null,null,null,null,null," "," "," "," "]
[null,null,null,null,null," "," "," "," "]
[null,null,null,null,null," "," "," "," "]
[null,null,null,null,null," "," "," "," "]
[null,null,null,null,null," "," "," "," "]
[null,null,null,null,null," "," "," "," "]
[null,null,null,null,null," "," "," "," "]
[null,null,null,null,null," "," "," "," "]
[null,null,null,null,null," "," "," "," "]
[null,null,null,null,null," "," "," "," "]
[null,null,null,null,null," "," "," "," "]
[null,null,null,null,null," "," "," "," "]
[null,null,null,null,null," "," "," "," "]
[null,null,null,null,null," "," "," "," "]
[null,null,null,null,null," "," "," "," "]
[null,null,null,null,null," "," "," "," "]
[null,null,null,null,null," "," "," "," "]
[null,null,null,null,null," "," "," "," "]
[null,null,null,null,null," "," "," "," "]
[null,null,null,null,null," "," "," "," "]
[null,null,null,null,null," "," "," "," "]
[null,null,null,null,null," "," "," "," "]
[null,null,null,null,null," "," "," "," "]
[null,null,null,null,null," "," "," "," "]
[null,null,null,null,null,{"$f":"IF(A1411>0,B1411/100,\" \")","v":" "},{"$f":"IF(A1411>0,C1411/100,\" \")","v":" "},{"$f":"IF(A1411>0,D1411/100,\" \")","v":" "},{"$f":"IF(A1411>0,E1411/100,\" \")","v":" "}]
[null,null,null,null,null," "," "," "," "]
[null,null,null,null,null," "," "," "," "]
[null,null,null,null,null," "," "," "," "]
[null,null,null,null,null," "," "," "," "]
[null,null,null,null,null," "," "," "," "]
[null,null,null,null,null," "," "," "," "]
[null,null,null,null,null," "," "," "," "]
[null,null,null,null,null," "," "," "," "]
[null,null,null,null,null," "," "," "," "]
[null,null,null,null,null," "," "," "," "]
[null,null,null,null,null," "," "," "," "]
[null,null,null,null,null," "," "," "," "]
[null,null,null,null,null," "," "," "," "]
[null,null,null,null,null," "," "," "," "]
[null,null,null,null,null," "," "," "," "]
[null,null,null,null,null," "," "," "," "]
[null,null,null,null,null," "," "," "," "]
[null,null,null,null,null," "," "," "," "]
[null,null,null,null,null," "," "," "," "]
[null,null,null,null,null," "," "," "," "]
[null,null,null,null,null," "," "," "," "]
[null,null,null,null,null," "," "," "," "]
[null,null,null,null,null," "," "," "," "]
[null,null,null,null,null," "," "," "," "]
[null,null,null,null,null," "," "," "," "]
[null,null,null,null,null," "," "," "," "]
[null,null,null,null,null," "," "," "," "]
[null,null,null,null,null," "," "," "," "]
[null,null,null,null,null," "," "," "," "]
[null,null,null,null,null," "," "," "," "]
[null,null,null,null,null," "," "," "," "]
[null,null,null,null,null," "," "," "," "]
[null,null,null,null,null," "," "," "," "]
[null,null,null,null,null," "," "," "," "]
[null,null,null,null,null," "," "," "," "]
[null,null,null,null,null," "," "," "," "]
[null,null,null,null,null," "," "," "," "]
[null,null,null,null,null," "," "," "," "]
[null,null,null,null,null," "," "," "," "]
[null,null,null,null,null," "," "," "," "]
[null,null,null,null,null," "," "," "," "]
[null,null,null,null,null," "," "," "," "]
[null,null,null,null,null," "," "," "," "]
[null,null,null,null,null," "," "," "," "]
[null,null,null,null,null," "," "," "," "]
[null,null,null,null,null," "," "," "," "]
[null,null,null,null,null," "," "," "," "]
[null,null,null,null,null," "," "," "," "]
[null,null,null,null,null," "," "," "," "]
[null,null,null,null,null," "," "," "," "]
[null,null,null,null,null," "," "," "," "]
[null,null,null,null,null," "," "," "," "]
[null,null,null,null,null," "," "," "," "]
[null,null,null,null,null," "," "," "," "]
[null,null,null,null,null," "," "," "," "]
[null,null,null,null,null," "," "," "," "]
[null,null,null,null,null," "," "," "," "]
[null,null,null,null,null," "," "," "," "]
[null,null,null,null,null," "," "," "," "]
[null,null,null,null,null," "," "," "," "]
[null,null,null,null,null," "," "," "," "]
[null,null,null,null,null," "," "," "," "]
[null,null,null,null,null," "," "," "," "]
[null,null,null,null,null,{"$f":"IF(A1475>0,B1475/100,\" \")","v":" "},{"$f":"IF(A1475>0,C1475/100,\" \")","v":" "},{"$f":"IF(A1475>0,D1475/100,\" \")","v":" "},{"$f":"IF(A1475>0,E1475/100,\" \")","v":" "}]
[null,null,null,null,null," "," "," "," "]
[null,null,null,null,null," "," "," "," "]
[null,null,null,null,null," "," "," "," "]
[null,null,null,null,null," "," "," "," "]
[null,null,null,null,null," "," "," "," "]
[null,null,null,null,null," "," "," "," "]
[null,null,null,null,null," "," "," "," "]
[null,null,null,null,null," "," "," "," "]
[null,null,null,null,null," "," "," "," "]
[null,null,null,null,null," "," "," "," "]
[null,null,null,null,null," "," "," "," "]
[null,null,null,null,null," "," "," "," "]
[null,null,null,null,null," "," "," "," "]
[null,null,null,null,null," "," "," "," "]
[null,null,null,null,null," "," "," "," "]
[null,null,null,null,null," "," "," "," "]
[null,null,null,null,null," "," "," "," "]
[null,null,null,null,null," "," "," "," "]
[null,null,null,null,null," "," "," "," "]
[null,null,null,null,null," "," "," "," "]
[null,null,null,null,null," "," "," "," "]
[null,null,null,null,null," "," "," "," "]
[null,null,null,null,null," "," "," "," "]
[null,null,null,null,null," "," "," "," "]
[null,null,null,null,null," "," "," "," "]
[null,null,null,null,null," "," "," "," "]
[null,null,null,null,null," "," "," "," "]
[null,null,null,null,null," "," "," "," "]
[null,null,null,null,null," "," "," "," "]
[null,null,null,null,null," "," "," "," "]
[null,null,null,null,null," "," "," "," "]
[null,null,null,null,null," "," "," "," "]
[null,null,null,null,null," "," "," "," "]
[null,null,null,null,null," "," "," "," "]
[null,null,null,null,null," "," "," "," "]
[null,null,null,null,null," "," "," "," "]
[null,null,null,null,null," "," "," "," "]
[null,null,null,null,null," "," "," "," "]
[null,null,null,null,null," "," "," "," "]
[null,null,null,null,null," "," "," "," "]
[null,null,null,null,null," "," "," "," "]
[null,null,null,null,null," "," "," "," "]
[null,null,null,null,null," "," "," "," "]
[null,null,null,null,null," "," "," "," "]
[null,null,null,null,null," "," "," "," "]
[null,null,null,null,null," "," "," "," "]
[null,null,null,null,null," "," "," "," "]
[null,null,null,null,null," "," "," "," "]
[null,null,null,null,null," "," "," "," "]
[null,null,null,null,null," "," "," "," "]
[null,null,null,null,null," "," "," "," "]
[null,null,null,null,null," "," "," "," "]
[null,null,null,null,null," "," "," "," "]
[null,null,null,null,null," "," "," "," "]
[null,null,null,null,null," "," "," "," "]
[null,null,null,null,null," "," "," "," "]
[null,null,null,null,null," "," "," "," "]
[null,null,null,null,null," "," "," "," "]
[null,null,null,null,null," "," "," "," "]
[null,null,null,null,null," "," "," "," "]
[null,null,null,null,null," "," "," "," "]
[null,null,null,null,null," "," "," "," "]
[null,null,null,null,null," "," "," "," "]
[null,null,null,null,null,{"$f":"IF(A1539>0,B1539/100,\" \")","v":" "},{"$f":"IF(A1539>0,C1539/100,\" \")","v":" "},{"$f":"IF(A1539>0,D1539/100,\" \")","v":" "},{"$f":"IF(A1539>0,E1539/100,\" \")","v":" "}]
[null,null,null,null,null," "," "," "," "]
[null,null,null,null,null," "," "," "," "]
[null,null,null,null,null," "," "," "," "]
[null,null,null,null,null," "," "," "," "]
[null,null,null,null,null," "," "," "," "]
[null,null,null,null,null," "," "," "," "]
[null,null,null,null,null," "," "," "," "]
[null,null,null,null,null," "," "," "," "]
[null,null,null,null,null," "," "," "," "]
[null,null,null,null,null," "," "," "," "]
[null,null,null,null,null," "," "," "," "]
[null,null,null,null,null," "," "," "," "]
[null,null,null,null,null," "," "," "," "]
[null,null,null,null,null," "," "," "," "]
[null,null,null,null,null," "," "," "," "]
[null,null,null,null,null," "," "," "," "]
[null,null,null,null,null," "," "," "," "]
[null,null,null,null,null," "," "," "," "]
[null,null,null,null,null," "," "," "," "]
[null,null,null,null,null," "," "," "," "]
[null,null,null,null,null," "," "," "," "]
[null,null,null,null,null," "," "," "," "]
[null,null,null,null,null," "," "," "," "]
[null,null,null,null,null," "," "," "," "]
[null,null,null,null,null," "," "," "," "]
[null,null,null,null,null," "," "," "," "]
[null,null,null,null,null," "," "," "," "]
[null,null,null,null,null," "," "," "," "]
[null,null,null,null,null," "," "," "," "]
[null,null,null,null,null," "," "," "," "]
[null,null,null,null,null," "," "," "," "]
[null,null,null,null,null," "," "," "," "]
[null,null,null,null,null," "," "," "," "]
[null,null,null,null,null," "," "," "," "]
[null,null,null,null,null," "," "," "," "]
[null,null,null,null,null," "," "," "," "]
[null,null,null,null,null," "," "," "," "]
[null,null,null,null,null," "," "," "," "]
[null,null,null,null,null," "," "," "," "]
[null,null,null,null,null," "," "," "," "]
[null,null,null,null,null," "," "," "," "]
[null,null,null,null,null," "," "," "," "]
[null,null,null,null,null," "," "," "," "]
[null,null,null,null,null," "," "," "," "]
[null,null,null,null,null," "," "," "," "]
[null,null,null,null,null," "," "," "," "]
[null,null,null,null,null," "," "," "," "]
[null,null,null,null,null," "," "," "," "]
[null,null,null,null,null," "," "," "," "]
[null,null,null,null,null," "," "," "," "]
[null,null,null,null,null," "," "," "," "]
[null,null,null,null,null," "," "," "," "]
[null,null,null,null,null," "," "," "," "]
[null,null,null,null,null," "," "," "," "]
[null,null,null,null,null," "," "," "," "]
[null,null,null,null,null," "," "," "," "]
[null,null,null,null,null," "," "," "," "]
[null,null,null,null,null," "," "," "," "]
[null,null,null,null,null," "," "," "," "]
[null,null,null,null,null," "," "," "," "]
[null,null,null,null,null," "," "," "," "]
[null,null,null,null,null," "," "," "," "]
[null,null,null,null,null," "," "," "," "]
[null,null,null,null,null,{"$f":"IF(A1603>0,B1603/100,\" \")","v":" "},{"$f":"IF(A1603>0,C1603/100,\" \")","v":" "},{"$f":"IF(A1603>0,D1603/100,\" \")","v":" "},{"$f":"IF(A1603>0,E1603/100,\" \")","v":" "}]
[null,null,null,null,null," "," "," "," "]
[null,null,null,null,null," "," "," "," "]
[null,null,null,null,null," "," "," "," "]
[null,null,null,null,null," "," "," "," "]
[null,null,null,null,null," "," "," "," "]
[null,null,null,null,null," "," "," "," "]
[null,null,null,null,null," "," "," "," "]
[null,null,null,null,null," "," "," "," "]
[null,null,null,null,null," "," "," "," "]
[null,null,null,null,null," "," "," "," "]
[null,null,null,null,null," "," "," "," "]
[null,null,null,null,null," "," "," "," "]
[null,null,null,null,null," "," "," "," "]
[null,null,null,null,null," "," "," "," "]
[null,null,null,null,null," "," "," "," "]
[null,null,null,null,null," "," "," "," "]
[null,null,null,null,null," "," "," "," "]
[null,null,null,null,null," "," "," "," "]
[null,null,null,null,null," "," "," "," "]
[null,null,null,null,null," "," "," "," "]
[null,null,null,null,null," "," "," "," "]
[null,null,null,null,null," "," "," "," "]
[null,null,null,null,null," "," "," "," "]
[null,null,null,null,null," "," "," "," "]
[null,null,null,null,null," "," "," "," "]
[null,null,null,null,null," "," "," "," "]
[null,null,null,null,null," "," "," "," "]
[null,null,null,null,null," "," "," "," "]
[null,null,null,null,null," "," "," "," "]
[null,null,null,null,null," "," "," "," "]
[null,null,null,null,null," "," "," "," "]
[null,null,null,null,null," "," "," "," "]
[null,null,null,null,null," "," "," "," "]
[null,null,null,null,null," "," "," "," "]
[null,null,null,null,null," "," "," "," "]
[null,null,null,null,null," "," "," "," "]
[null,null,null,null,null," "," "," "," "]
[null,null,null,null,null," "," "," "," "]
[null,null,null,null,null," "," "," "," "]
[null,null,null,null,null," "," "," "," "]
[null,null,null,null,null," "," "," "," "]
[null,null,null,null,null," "," "," "," "]
[null,null,null,null,null," "," "," "," "]
[null,null,null,null,null," "," "," "," "]
[null,null,null,null,null," "," "," "," "]
[null,null,null,null,null," "," "," "," "]
[null,null,null,null,null," "," "," "," "]
[null,null,null,null,null," "," "," "," "]
[null,null,null,null,null," "," "," "," "]
[null,null,null,null,null," "," "," "," "]
[null,null,null,null,null," "," "," "," "]
[null,null,null,null,null," "," "," "," "]
[null,null,null,null,null," "," "," "," "]
[null,null,null,null,null," "," "," "," "]
[null,null,null,null,null," "," "," "," "]
[null,null,null,null,null," "," "," "," "]
[null,null,null,null,null," "," "," "," "]
[null,null,null,null,null," "," "," "," "]
[null,null,null,null,null," "," "," "," "]
[null,null,null,null,null," "," "," "," "]
[null,null,null,null,null," "," "," "," "]
[null,null,null,null,null," "," "," "," "]
[null,null,null,null,null," "," "," "," "]
[null,null,null,null,null,{"$f":"IF(A1667>0,B1667/100,\" \")","v":" "},{"$f":"IF(A1667>0,C1667/100,\" \")","v":" "},{"$f":"IF(A1667>0,D1667/100,\" \")","v":" "},{"$f":"IF(A1667>0,E1667/100,\" \")","v":" "}]
[null,null,null,null,null," "," "," "," "]
[null,null,null,null,null," "," "," "," "]
[null,null,null,null,null," "," "," "," "]
[null,null,null,null,null," "," "," "," "]
[null,null,null,null,null," "," "," "," "]
[null,null,null,null,null," "," "," "," "]
[null,null,null,null,null," "," "," "," "]
[null,null,null,null,null," "," "," "," "]
[null,null,null,null,null," "," "," "," "]
[null,null,null,null,null," "," "," "," "]
[null,null,null,null,null," "," "," "," "]
[null,null,null,null,null," "," "," "," "]
[null,null,null,null,null," "," "," "," "]
[null,null,null,null,null," "," "," "," "]
[null,null,null,null,null," "," "," "," "]
[null,null,null,null,null," "," "," "," "]
[null,null,null,null,null," "," "," "," "]
[null,null,null,null,null," "," "," "," "]
[null,null,null,null,null," "," "," "," "]
[null,null,null,null,null," "," "," "," "]
[null,null,null,null,null," "," "," "," "]
[null,null,null,null,null," "," "," "," "]
[null,null,null,null,null," "," "," "," "]
[null,null,null,null,null," "," "," "," "]
[null,null,null,null,null," "," "," "," "]
[null,null,null,null,null," "," "," "," "]
[null,null,null,null,null," "," "," "," "]
[null,null,null,null,null," "," "," "," "]
[null,null,null,null,null," "," "," "," "]
[null,null,null,null,null," "," "," "," "]
[null,null,null,null,null," "," "," "," "]
[null,null,null,null,null," "," "," "," "]
[null,null,null,null,null," "," "," "," "]
[null,null,null,null,null," "," "," "," "]
[null,null,null,null,null," "," "," "," "]
[null,null,null,null,null," "," "," "," "]
[null,null,null,null,null," "," "," "," "]
[null,null,null,null,null," "," "," "," "]
[null,null,null,null,null," "," "," "," "]
[null,null,null,null,null," "," "," "," "]
[null,null,null,null,null," "," "," "," "]
[null,null,null,null,null," "," "," "," "]
[null,null,null,null,null," "," "," "," "]
[null,null,null,null,null," "," "," "," "]
[null,null,null,null,null," "," "," "," "]
[null,null,null,null,null," "," "," "," "]
[null,null,null,null,null," "," "," "," "]
[null,null,null,null,null," "," "," "," "]
[null,null,null,null,null," "," "," "," "]
[null,null,null,null,null," "," "," "," "]
[null,null,null,null,null," "," "," "," "]
[null,null,null,null,null," "," "," "," "]
[null,null,null,null,null," "," "," "," "]
[null,null,null,null,null," "," "," "," "]
[null,null,null,null,null," "," "," "," "]
[null,null,null,null,null," "," "," "," "]
[null,null,null,null,null," "," "," "," "]
[null,null,null,null,null," "," "," "," "]
[null,null,null,null,null," "," "," "," "]
[null,null,null,null,null," "," "," "," "]
[null,null,null,null,null," "," "," "," "]
[null,null,null,null,null," "," "," "," "]
[null,null,null,null,null," "," "," "," "]
[null,null,null,null,null,{"$f":"IF(A1731>0,B1731/100,\" \")","v":" "},{"$f":"IF(A1731>0,C1731/100,\" \")","v":" "},{"$f":"IF(A1731>0,D1731/100,\" \")","v":" "},{"$f":"IF(A1731>0,E1731/100,\" \")","v":" "}]
[null,null,null,null,null," "," "," "," "]
[null,null,null,null,null," "," "," "," "]
[null,null,null,null,null," "," "," "," "]
[null,null,null,null,null," "," "," "," "]
[null,null,null,null,null," "," "," "," "]
[null,null,null,null,null," "," "," "," "]
[null,null,null,null,null," "," "," "," "]
[null,null,null,null,null," "," "," "," "]
[null,null,null,null,null," "," "," "," "]
[null,null,null,null,null," "," "," "," "]
[null,null,null,null,null," "," "," "," "]
[null,null,null,null,null," "," "," "," "]
[null,null,null,null,null," "," "," "," "]
[null,null,null,null,null," "," "," "," "]
[null,null,null,null,null," "," "," "," "]
[null,null,null,null,null," "," "," "," "]
[null,null,null,null,null," "," "," "," "]
[null,null,null,null,null," "," "," "," "]
[null,null,null,null,null," "," "," "," "]
[null,null,null,null,null," "," "," "," "]
[null,null,null,null,null," "," "," "," "]
[null,null,null,null,null," "," "," "," "]
[null,null,null,null,null," "," "," "," "]
[null,null,null,null,null," "," "," "," "]
[null,null,null,null,null," "," "," "," "]
[null,null,null,null,null," "," "," "," "]
[null,null,null,null,null," "," "," "," "]
[null,null,null,null,null," "," "," "," "]
[null,null,null,null,null," "," "," "," "]
[null,null,null,null,null," "," "," "," "]
[null,null,null,null,null," "," "," "," "]
[null,null,null,null,null," "," "," "," "]
[null,null,null,null,null," "," "," "," "]
[null,null,null,null,null," "," "," "," "]
[null,null,null,null,null," "," "," "," "]
[null,null,null,null,null," "," "," "," "]
[null,null,null,null,null," "," "," "," "]
[null,null,null,null,null," "," "," "," "]
[null,null,null,null,null," "," "," "," "]
[null,null,null,null,null," "," "," "," "]
[null,null,null,null,null," "," "," "," "]
[null,null,null,null,null," "," "," "," "]
[null,null,null,null,null," "," "," "," "]
[null,null,null,null,null," "," "," "," "]
[null,null,null,null,null," "," "," "," "]
[null,null,null,null,null," "," "," "," "]
[null,null,null,null,null," "," "," "," "]
[null,null,null,null,null," "," "," "," "]
[null,null,null,null,null," "," "," "," "]
[null,null,null,null,null," "," "," "," "]
[null,null,null,null,null," "," "," "," "]
[null,null,null,null,null," "," "," "," "]
[null,null,null,null,null," "," "," "," "]
[null,null,null,null,null," "," "," "," "]
[null,null,null,null,null," "," "," "," "]
[null,null,null,null,null," "," "," "," "]
[null,null,null,null,null," "," "," "," "]
[null,null,null,null,null," "," "," "," "]
[null,null,null,null,null," "," "," "," "]
[null,null,null,null,null," "," "," "," "]
[null,null,null,null,null," "," "," "," "]
[null,null,null,null,null," "," "," "," "]
[null,null,null,null,null," "," "," "," "]
[null,null,null,null,null,{"$f":"IF(A1795>0,B1795/100,\" \")","v":" "},{"$f":"IF(A1795>0,C1795/100,\" \")","v":" "},{"$f":"IF(A1795>0,D1795/100,\" \")","v":" "},{"$f":"IF(A1795>0,E1795/100,\" \")","v":" "}]
[null,null,null,null,null," "," "," "," "]
[null,null,null,null,null," "," "," "," "]
[null,null,null,null,null," "," "," "," "]
[null,null,null,null,null," "," "," "," "]
[null,null,null,null,null," "," "," "," "]
[null,null,null,null,null," "," "," "," "]
[null,null,null,null,null," "," "," "," "]
[null,null,null,null,null," "," "," "," "]
[null,null,null,null,null," "," "," "," "]
[null,null,null,null,null," "," "," "," "]
[null,null,null,null,null," "," "," "," "]
[null,null,null,null,null," "," "," "," "]
[null,null,null,null,null," "," "," "," "]
[null,null,null,null,null," "," "," "," "]
[null,null,null,null,null," "," "," "," "]
[null,null,null,null,null," "," "," "," "]
[null,null,null,null,null," "," "," "," "]
[null,null,null,null,null," "," "," "," "]
[null,null,null,null,null," "," "," "," "]
[null,null,null,null,null," "," "," "," "]
[null,null,null,null,null," "," "," "," "]
[null,null,null,null,null," "," "," "," "]
[null,null,null,null,null," "," "," "," "]
[null,null,null,null,null," "," "," "," "]
[null,null,null,null,null," "," "," "," "]
[null,null,null,null,null," "," "," "," "]
[null,null,null,null,null," "," "," "," "]
[null,null,null,null,null," "," "," "," "]
[null,null,null,null,null," "," "," "," "]
[null,null,null,null,null," "," "," "," "]
[null,null,null,null,null," "," "," "," "]
[null,null,null,null,null," "," "," "," "]
[null,null,null,null,null," "," "," "," "]
[null,null,null,null,null," "," "," "," "]
[null,null,null,null,null," "," "," "," "]
[null,null,null,null,null," "," "," "," "]
[null,null,null,null,null," "," "," "," "]
[null,null,null,null,null," "," "," "," "]
[null,null,null,null,null," "," "," "," "]
[null,null,null,null,null," "," "," "," "]
[null,null,null,null,null," "," "," "," "]
[null,null,null,null,null," "," "," "," "]
[null,null,null,null,null," "," "," "," "]
[null,null,null,null,null," "," "," "," "]
[null,null,null,null,null," "," "," "," "]
[null,null,null,null,null," "," "," "," "]
[null,null,null,null,null," "," "," "," "]
[null,null,null,null,null," "," "," "," "]
[null,null,null,null,null," "," "," "," "]
[null,null,null,null,null," "," "," "," "]
[null,null,null,null,null," "," "," "," "]
[null,null,null,null,null," "," "," "," "]
[null,null,null,null,null," "," "," "," "]
[null,null,null,null,null," "," "," "," "]
[null,null,null,null,null," "," "," "," "]
[null,null,null,null,null," "," "," "," "]
[null,null,null,null,null," "," "," "," "]
[null,null,null,null,null," "," "," "," "]
[null,null,null,null,null," "," "," "," "]
[null,null,null,null,null," "," "," "," "]
[null,null,null,null,null," "," "," "," "]
[null,null,null,null,null," "," "," "," "]
[null,null,null,null,null," "," "," "," "]
[null,null,null,null,null,{"$f":"IF(A1859>0,B1859/100,\" \")","v":" "},{"$f":"IF(A1859>0,C1859/100,\" \")","v":" "},{"$f":"IF(A1859>0,D1859/100,\" \")","v":" "},{"$f":"IF(A1859>0,E1859/100,\" \")","v":" "}]
[null,null,null,null,null," "," "," "," "]
[null,null,null,null,null," "," "," "," "]
[null,null,null,null,null," "," "," "," "]
[null,null,null,null,null," "," "," "," "]
[null,null,null,null,null," "," "," "," "]
[null,null,null,null,null," "," "," "," "]
[null,null,null,null,null," "," "," "," "]
[null,null,null,null,null," "," "," "," "]
[null,null,null,null,null," "," "," "," "]
[null,null,null,null,null," "," "," "," "]
[null,null,null,null,null," "," "," "," "]
[null,null,null,null,null," "," "," "," "]
[null,null,null,null,null," "," "," "," "]
[null,null,null,null,null," "," "," "," "]
[null,null,null,null,null," "," "," "," "]
[null,null,null,null,null," "," "," "," "]
[null,null,null,null,null," "," "," "," "]
[null,null,null,null,null," "," "," "," "]
[null,null,null,null,null," "," "," "," "]
[null,null,null,null,null," "," "," "," "]
[null,null,null,null,null," "," "," "," "]
[null,null,null,null,null," "," "," "," "]
[null,null,null,null,null," "," "," "," "]
[null,null,null,null,null," "," "," "," "]
[null,null,null,null,null," "," "," "," "]
[null,null,null,null,null," "," "," "," "]
[null,null,null,null,null," "," "," "," "]
[null,null,null,null,null," "," "," "," "]
[null,null,null,null,null," "," "," "," "]
[null,null,null,null,null," "," "," "," "]
[null,null,null,null,null," "," "," "," "]
[null,null,null,null,null," "," "," "," "]
[null,null,null,null,null," "," "," "," "]
[null,null,null,null,null," "," "," "," "]
[null,null,null,null,null," "," "," "," "]
[null,null,null,null,null," "," "," "," "]
[null,null,null,null,null," "," "," "," "]
[null,null,null,null,null," "," "," "," "]
[null,null,null,null,null," "," "," "," "]
[null,null,null,null,null," "," "," "," "]
[null,null,null,null,null," "," "," "," "]
[null,null,null,null,null," "," "," "," "]
[null,null,null,null,null," "," "," "," "]
[null,null,null,null,null," "," "," "," "]
[null,null,null,null,null," "," "," "," "]
[null,null,null,null,null," "," "," "," "]
[null,null,null,null,null," "," "," "," "]
[null,null,null,null,null," "," "," "," "]
[null,null,null,null,null," "," "," "," "]
[null,null,null,null,null," "," "," "," "]
[null,null,null,null,null," "," "," "," "]
[null,null,null,null,null," "," "," "," "]
[null,null,null,null,null," "," "," "," "]
[null,null,null,null,null," "," "," "," "]
[null,null,null,null,null," "," "," "," "]
[null,null,null,null,null," "," "," "," "]
[null,null,null,null,null," "," "," "," "]
[null,null,null,null,null," "," "," "," "]
[null,null,null,null,null," "," "," "," "]
[null,null,null,null,null," "," "," "," "]
[null,null,null,null,null," "," "," "," "]
[null,null,null,null,null," "," "," "," "]
[null,null,null,null,null," "," "," "," "]
[null,null,null,null,null,{"$f":"IF(A1923>0,B1923/100,\" \")","v":" "},{"$f":"IF(A1923>0,C1923/100,\" \")","v":" "},{"$f":"IF(A1923>0,D1923/100,\" \")","v":" "},{"$f":"IF(A1923>0,E1923/100,\" \")","v":" "}]
[null,null,null,null,null," "," "," "," "]
[null,null,null,null,null," "," "," "," "]
[null,null,null,null,null," "," "," "," "]
[null,null,null,null,null," "," "," "," "]
[null,null,null,null,null," "," "," "," "]
[null,null,null,null,null," "," "," "," "]
[null,null,null,null,null," "," "," "," "]
[null,null,null,null,null," "," "," "," "]
[null,null,null,null,null," "," "," "," "]
[null,null,null,null,null," "," "," "," "]
[null,null,null,null,null," "," "," "," "]
[null,null,null,null,null," "," "," "," "]
[null,null,null,null,null," "," "," "," "]
[null,null,null,null,null," "," "," "," "]
[null,null,null,null,null," "," "," "," "]
[null,null,null,null,null," "," "," "," "]
[null,null,null,null,null," "," "," "," "]
[null,null,null,null,null," "," "," "," "]
[null,null,null,null,null," "," "," "," "]
[null,null,null,null,null," "," "," "," "]
[null,null,null,null,null," "," "," "," "]
[null,null,null,null,null," "," "," "," "]
[null,null,null,null,null," "," "," "," "]
[null,null,null,null,null," "," "," "," "]
[null,null,null,null,null," "," "," "," "]
[null,null,null,null,null," "," "," "," "]
[null,null,null,null,null," "," "," "," "]
[null,null,null,null,null," "," "," "," "]
[null,null,null,null,null," "," "," "," "]
[null,null,null,null,null," "," "," "," "]
[null,null,null,null,null," "," "," "," "]
[null,null,null,null,null," "," "," "," "]
[null,null,null,null,null," "," "," "," "]
[null,null,null,null,null," "," "," "," "]
[null,null,null,null,null," "," "," "," "]
[null,null,null,null,null," "," "," "," "]
[null,null,null,null,null," "," "," "," "]
[null,null,null,null,null," "," "," "," "]
[null,null,null,null,null," "," "," "," "]
[null,null,null,null,null," "," "," "," "]
[null,null,null,null,null," "," "," "," "]
[null,null,null,null,null," "," "," "," "]
[null,null,null,null,null," "," "," "," "]
[null,null,null,null,null," "," "," "," "]
[null,null,null,null,null," "," "," "," "]
[null,null,null,null,null," "," "," "," "]
[null,null,null,null,null," "," "," "," "]
[null,null,null,null,null," "," "," "," "]
[null,null,null,null,null," "," "," "," "]
[null,null,null,null,null," "," "," "," "]
[null,null,null,null,null," "," "," "," "]
[null,null,null,null,null," "," "," "," "]
[null,null,null,null,null," "," "," "," "]
[null,null,null,null,null," "," "," "," "]
[null,null,null,null,null," "," "," "," "]
[null,null,null,null,null," "," "," "," "]
[null,null,null,null,null," "," "," "," "]
[null,null,null,null,null," "," "," "," "]
[null,null,null,null,null," "," "," "," "]
[null,null,null,null,null," "," "," "," "]
[null,null,null,null,null," "," "," "," "]
[null,null,null,null,null," "," "," "," "]
[null,null,null,null,null," "," "," "," "]
[null,null,null,null,null,{"$f":"IF(A1987>0,B1987/100,\" \")","v":" "},{"$f":"IF(A1987>0,C1987/100,\" \")","v":" "},{"$f":"IF(A1987>0,D1987/100,\" \")","v":" "},{"$f":"IF(A1987>0,E1987/100,\" \")","v":" "}]
[null,null,null,null,null," "," "," "," "]
[null,null,null,null,null," "," "," "," "]
[null,null,null,null,null," "," "," "," "]
[null,null,null,null,null," "," "," "," "]
[null,null,null,null,null," "," "," "," "]
[null,null,null,null,null," "," "," "," "]
[null,null,null,null,null," "," "," "," "]
[null,null,null,null,null," "," "," "," "]
[null,null,null,null,null," "," "," "," "]
[null,null,null,null,null," "," "," "," "]
[null,null,null,null,null," "," "," "," "]
[null,null,null,null,null," "," "," "," "]
[null,null,null,null,null," "," "," "," "]
[null,null,null,null,null," "," "," "," "]
[null,null,null,null,null," "," "," "," "]
[null,null,null,null,null," "," "," "," "]
[null,null,null,null,null," "," "," "," "]
[null,null,null,null,null," "," "," "," "]
[null,null,null,null,null," "," "," "," "]
[null,null,null,null,null," "," "," "," "]
[null,null,null,null,null," "," "," "," "]
[null,null,null,null,null," "," "," "," "]
[null,null,null,null,null," "," "," "," "]
[null,null,null,null,null," "," "," "," "]
[null,null,null,null,null," "," "," "," "]
[null,null,null,null,null," "," "," "," "]
[null,null,null,null,null," "," "," "," "]
[null,null,null,null,null," "," "," "," "]
[null,null,null,null,null," "," "," "," "]
[null,null,null,null,null," "," "," "," "]
[null,null,null,null,null," "," "," "," "]
[null,null,null,null,null," "," "," "," "]
[null,null,null,null,null," "," "," "," "]
[null,null,null,null,null," "," "," "," "]
[null,null,null,null,null," "," "," "," "]
[null,null,null,null,null," "," "," "," "]
[null,null,null,null,null," "," "," "," "]
[null,null,null,null,null," "," "," "," "]
[null,null,null,null,null," "," "," "," "]
[null,null,null,null,null," "," "," "," "]
[null,null,null,null,null," "," "," "," "]
[null,null,null,null,null," "," "," "," "]
[null,null,null,null,null," "," "," "," "]
[null,null,null,null,null," "," "," "," "]
[null,null,null,null,null," "," "," "," "]
[null,null,null,null,null," "," "," "," "]
[null,null,null,null,null," "," "," "," "]
[null,null,null,null,null," "," "," "," "]
[null,null,null,null,null," "," "," "," "]
[null,null,null,null,null," "," "," "," "]
[null,null,null,null,null," "," "," "," "]
[null,null,null,null,null," "," "," "," "]
[null,null,null,null,null," "," "," "," "]
[null,null,null,null,null," "," "," "," "]
[null,null,null,null,null," "," "," "," "]
[null,null,null,null,null," "," "," "," "]
[null,null,null,null,null," "," "," "," "]
[null,null,null,null,null," "," "," "," "]
[null,null,null,null,null," "," "," "," "]
[null,null,null,null,null," "," "," "," "]
[null,null,null,null,null," "," "," "," "]
[null,null,null,null,null," "," "," "," "]
[null,null,null,null,null," "," "," "," "]
[null,null,null,null,null,{"$f":"IF(A2051>0,B2051/100,\" \")","v":" "},{"$f":"IF(A2051>0,C2051/100,\" \")","v":" "},{"$f":"IF(A2051>0,D2051/100,\" \")","v":" "},{"$f":"IF(A2051>0,E2051/100,\" \")","v":" "}]
[null,null,null,null,null," "," "," "," "]
[null,null,null,null,null," "," "," "," "]
[null,null,null,null,null," "," "," "," "]
[null,null,null,null,null," "," "," "," "]
[null,null,null,null,null," "," "," "," "]
[null,null,null,null,null," "," "," "," "]
[null,null,null,null,null," "," "," "," "]
[null,null,null,null,null," "," "," "," "]
[null,null,null,null,null," "," "," "," "]
[null,null,null,null,null," "," "," "," "]
[null,null,null,null,null," "," "," "," "]
[null,null,null,null,null," "," "," "," "]
[null,null,null,null,null," "," "," "," "]
[null,null,null,null,null," "," "," "," "]
[null,null,null,null,null," "," "," "," "]
[null,null,null,null,null," "," "," "," "]
[null,null,null,null,null," "," "," "," "]
[null,null,null,null,null," "," "," "," "]
[null,null,null,null,null," "," "," "," "]
[null,null,null,null,null," "," "," "," "]
[null,null,null,null,null," "," "," "," "]
[null,null,null,null,null," "," "," "," "]
[null,null,null,null,null," "," "," "," "]
[null,null,null,null,null," "," "," "," "]
[null,null,null,null,null," "," "," "," "]
[null,null,null,null,null," "," "," "," "]
[null,null,null,null,null," "," "," "," "]
[null,null,null,null,null," "," "," "," "]
[null,null,null,null,null," "," "," "," "]
[null,null,null,null,null," "," "," "," "]
[null,null,null,null,null," "," "," "," "]
[null,null,null,null,null," "," "," "," "]
[null,null,null,null,null," "," "," "," "]
[null,null,null,null,null," "," "," "," "]
[null,null,null,null,null," "," "," "," "]
[null,null,null,null,null," "," "," "," "]
[null,null,null,null,null," "," "," "," "]
[null,null,null,null,null," "," "," "," "]
[null,null,null,null,null," "," "," "," "]
[null,null,null,null,null," "," "," "," "]
[null,null,null,null,null," "," "," "," "]
[null,null,null,null,null," "," "," "," "]
[null,null,null,null,null," "," "," "," "]
[null,null,null,null,null," "," "," "," "]
[null,null,null,null,null," "," "," "," "]
[null,null,null,null,null," "," "," "," "]
[null,null,null,null,null," "," "," "," "]
[null,null,null,null,null," "," "," "," "]
[null,null,null,null,null," "," "," "," "]
[null,null,null,null,null," "," "," "," "]
[null,null,null,null,null," "," "," "," "]
[null,null,null,null,null," "," "," "," "]
[null,null,null,null,null," "," "," "," "]
[null,null,null,null,null," "," "," "," "]
[null,null,null,null,null," "," "," "," "]
[null,null,null,null,null," "," "," "," "]
[null,null,null,null,null," "," "," "," "]
[null,null,null,null,null," "," "," "," "]
[null,null,null,null,null," "," "," "," "]
[null,null,null,null,null," "," "," "," "]
[null,null,null,null,null," "," "," "," "]
[null,null,null,null,null," "," "," "," "]
[null,null,null,null,null," "," "," "," "]
[null,null,null,null,null,{"$f":"IF(A2115>0,B2115/100,\" \")","v":" "},{"$f":"IF(A2115>0,C2115/100,\" \")","v":" "},{"$f":"IF(A2115>0,D2115/100,\" \")","v":" "},{"$f":"IF(A2115>0,E2115/100,\" \")","v":" "}]
[null,null,null,null,null," "," "," "," "]
[null,null,null,null,null," "," "," "," "]
[null,null,null,null,null," "," "," "," "]
[null,null,null,null,null," "," "," "," "]
[null,null,null,null,null," "," "," "," "]
[null,null,null,null,null," "," "," "," "]
[null,null,null,null,null," "," "," "," "]
[null,null,null,null,null," "," "," "," "]
[null,null,null,null,null," "," "," "," "]
[null,null,null,null,null," "," "," "," "]
[null,null,null,null,null," "," "," "," "]
[null,null,null,null,null," "," "," "," "]
[null,null,null,null,null," "," "," "," "]
[null,null,null,null,null," "," "," "," "]
[null,null,null,null,null," "," "," "," "]
[null,null,null,null,null," "," "," "," "]
[null,null,null,null,null," "," "," "," "]
[null,null,null,null,null," "," "," "," "]
[null,null,null,null,null," "," "," "," "]
[null,null,null,null,null," "," "," "," "]
[null,null,null,null,null," "," "," "," "]
[null,null,null,null,null," "," "," "," "]
[null,null,null,null,null," "," "," "," "]
[null,null,null,null,null," "," "," "," "]
[null,null,null,null,null," "," "," "," "]
[null,null,null,null,null," "," "," "," "]
[null,null,null,null,null," "," "," "," "]
[null,null,null,null,null," "," "," "," "]
[null,null,null,null,null," "," "," "," "]
[null,null,null,null,null," "," "," "," "]
[null,null,null,null,null," "," "," "," "]
[null,null,null,null,null," "," "," "," "]
[null,null,null,null,null," "," "," "," "]
[null,null,null,null,null," "," "," "," "]
[null,null,null,null,null," "," "," "," "]
[null,null,null,null,null," "," "," "," "]
[null,null,null,null,null," "," "," "," "]
[null,null,null,null,null," "," "," "," "]
[null,null,null,null,null," "," "," "," "]
[null,null,null,null,null," "," "," "," "]
[null,null,null,null,null," "," "," "," "]
[null,null,null,null,null," "," "," "," "]
[null,null,null,null,null," "," "," "," "]
[null,null,null,null,null," "," "," "," "]
[null,null,null,null,null," "," "," "," "]
[null,null,null,null,null," "," "," "," "]
[null,null,null,null,null," "," "," "," "]
[null,null,null,null,null," "," "," "," "]
[null,null,null,null,null," "," "," "," "]
[null,null,null,null,null," "," "," "," "]
[null,null,null,null,null," "," "," "," "]
[null,null,null,null,null," "," "," "," "]
[null,null,null,null,null," "," "," "," "]
[null,null,null,null,null," "," "," "," "]
[null,null,null,null,null," "," "," "," "]
[null,null,null,null,null," "," "," "," "]
[null,null,null,null,null," "," "," "," "]
[null,null,null,null,null," "," "," "," "]
[null,null,null,null,null," "," "," "," "]
[null,null,null,null,null," "," "," "," "]
[null,null,null,null,null," "," "," "," "]
[null,null,null,null,null," "," "," "," "]
[null,null,null,null,null," "," "," "," "]
[null,null,null,null,null,{"$f":"IF(A2179>0,B2179/100,\" \")","v":" "},{"$f":"IF(A2179>0,C2179/100,\" \")","v":" "},{"$f":"IF(A2179>0,D2179/100,\" \")","v":" "},{"$f":"IF(A2179>0,E2179/100,\" \")","v":" "}]
[null,null,null,null,null," "," "," "," "]
[null,null,null,null,null," "," "," "," "]
[null,null,null,null,null," "," "," "," "]
[null,null,null,null,null," "," "," "," "]
[null,null,null,null,null," "," "," "," "]
[null,null,null,null,null," "," "," "," "]
[null,null,null,null,null," "," "," "," "]
[null,null,null,null,null," "," "," "," "]
[null,null,null,null,null," "," "," "," "]
[null,null,null,null,null," "," "," "," "]
[null,null,null,null,null," "," "," "," "]
[null,null,null,null,null," "," "," "," "]
[null,null,null,null,null," "," "," "," "]
[null,null,null,null,null," "," "," "," "]
[null,null,null,null,null," "," "," "," "]
[null,null,null,null,null," "," "," "," "]
[null,null,null,null,null," "," "," "," "]
[null,null,null,null,null," "," "," "," "]
[null,null,null,null,null," "," "," "," "]
[null,null,null,null,null," "," "," "," "]
[null,null,null,null,null," "," "," "," "]
[null,null,null,null,null," "," "," "," "]
[null,null,null,null,null," "," "," "," "]
[null,null,null,null,null," "," "," "," "]
[null,null,null,null,null," "," "," "," "]
[null,null,null,null,null," "," "," "," "]
[null,null,null,null,null," "," "," "," "]
[null,null,null,null,null," "," "," "," "]
[null,null,null,null,null," "," "," "," "]
[null,null,null,null,null," "," "," "," "]
[null,null,null,null,null," "," "," "," "]
[null,null,null,null,null," "," "," "," "]
[null,null,null,null,null," "," "," "," "]
[null,null,null,null,null," "," "," "," "]
[null,null,null,null,null," "," "," "," "]
[null,null,null,null,null," "," "," "," "]
[null,null,null,null,null," "," "," "," "]
[null,null,null,null,null," "," "," "," "]
[null,null,null,null,null," "," "," "," "]
[null,null,null,null,null," "," "," "," "]
[null,null,null,null,null," "," "," "," "]
[null,null,null,null,null," "," "," "," "]
[null,null,null,null,null," "," "," "," "]
[null,null,null,null,null," "," "," "," "]
[null,null,null,null,null," "," "," "," "]
[null,null,null,null,null," "," "," "," "]
[null,null,null,null,null," "," "," "," "]
[null,null,null,null,null," "," "," "," "]
[null,null,null,null,null," "," "," "," "]
[null,null,null,null,null," "," "," "," "]
[null,null,null,null,null," "," "," "," "]
[null,null,null,null,null," "," "," "," "]
[null,null,null,null,null," "," "," "," "]
[null,null,null,null,null," "," "," "," "]
[null,null,null,null,null," "," "," "," "]
[null,null,null,null,null," "," "," "," "]
[null,null,null,null,null," "," "," "," "]
[null,null,null,null,null," "," "," "," "]
[null,null,null,null,null," "," "," "," "]
[null,null,null,null,null," "," "," "," "]
[null,null,null,null,null," "," "," "," "]
[null,null,null,null,null," "," "," "," "]
[null,null,null,null,null," "," "," "," "]
[null,null,null,null,null,{"$f":"IF(A2243>0,B2243/100,\" \")","v":" "},{"$f":"IF(A2243>0,C2243/100,\" \")","v":" "},{"$f":"IF(A2243>0,D2243/100,\" \")","v":" "},{"$f":"IF(A2243>0,E2243/100,\" \")","v":" "}]
[null,null,null,null,null," "," "," "," "]
[null,null,null,null,null," "," "," "," "]
[null,null,null,null,null," "," "," "," "]
[null,null,null,null,null," "," "," "," "]
[null,null,null,null,null," "," "," "," "]
[null,null,null,null,null," "," "," "," "]
[null,null,null,null,null," "," "," "," "]
[null,null,null,null,null," "," "," "," "]
[null,null,null,null,null," "," "," "," "]
[null,null,null,null,null," "," "," "," "]
[null,null,null,null,null," "," "," "," "]
[null,null,null,null,null," "," "," "," "]
[null,null,null,null,null," "," "," "," "]
[null,null,null,null,null," "," "," "," "]
[null,null,null,null,null," "," "," "," "]
[null,null,null,null,null," "," "," "," "]
[null,null,null,null,null," "," "," "," "]
[null,null,null,null,null," "," "," "," "]
[null,null,null,null,null," "," "," "," "]
[null,null,null,null,null," "," "," "," "]
[null,null,null,null,null," "," "," "," "]
[null,null,null,null,null," "," "," "," "]
[null,null,null,null,null," "," "," "," "]
[null,null,null,null,null," "," "," "," "]
[null,null,null,null,null," "," "," "," "]
[null,null,null,null,null," "," "," "," "]
[null,null,null,null,null," "," "," "," "]
[null,null,null,null,null," "," "," "," "]
[null,null,null,null,null," "," "," "," "]
[null,null,null,null,null," "," "," "," "]
[null,null,null,null,null," "," "," "," "]
[null,null,null,null,null," "," "," "," "]
[null,null,null,null,null," "," "," "," "]
[null,null,null,null,null," "," "," "," "]
[null,null,null,null,null," "," "," "," "]
[null,null,null,null,null," "," "," "," "]
[null,null,null,null,null," "," "," "," "]
[null,null,null,null,null," "," "," "," "]
[null,null,null,null,null," "," "," "," "]
[null,null,null,null,null," "," "," "," "]
[null,null,null,null,null," "," "," "," "]
[null,null,null,null,null," "," "," "," "]
[null,null,null,null,null," "," "," "," "]
[null,null,null,null,null," "," "," "," "]
[null,null,null,null,null," "," "," "," "]
[null,null,null,null,null," "," "," "," "]
[null,null,null,null,null," "," "," "," "]
[null,null,null,null,null," "," "," "," "]
[null,null,null,null,null," "," "," "," "]
[null,null,null,null,null," "," "," "," "]
[null,null,null,null,null," "," "," "," "]
[null,null,null,null,null," "," "," "," "]
[null,null,null,null,null," "," "," "," "]
[null,null,null,null,null," "," "," "," "]
[null,null,null,null,null," "," "," "," "]
[null,null,null,null,null," "," "," "," "]
[null,null,null,null,null," "," "," "," "]
[null,null,null,null,null," "," "," "," "]
[null,null,null,null,null," "," "," "," "]
[null,null,null,null,null," "," "," "," "]
[null,null,null,null,null," "," "," "," "]
[null,null,null,null,null," "," "," "," "]
[null,null,null,null,null," "," "," "," "]
[null,null,null,null,null,{"$f":"IF(A2307>0,B2307/100,\" \")","v":" "},{"$f":"IF(A2307>0,C2307/100,\" \")","v":" "},{"$f":"IF(A2307>0,D2307/100,\" \")","v":" "},{"$f":"IF(A2307>0,E2307/100,\" \")","v":" "}]
[null,null,null,null,null," "," "," "," "]
[null,null,null,null,null," "," "," "," "]
[null,null,null,null,null," "," "," "," "]
[null,null,null,null,null," "," "," "," "]
[null,null,null,null,null," "," "," "," "]
[null,null,null,null,null," "," "," "," "]
[null,null,null,null,null," "," "," "," "]
[null,null,null,null,null," "," "," "," "]
[null,null,null,null,null," "," "," "," "]
[null,null,null,null,null," "," "," "," "]
[null,null,null,null,null," "," "," "," "]
[null,null,null,null,null," "," "," "," "]
[null,null,null,null,null," "," "," "," "]
[null,null,null,null,null," "," "," "," "]
[null,null,null,null,null," "," "," "," "]
[null,null,null,null,null," "," "," "," "]
[null,null,null,null,null," "," "," "," "]
[null,null,null,null,null," "," "," "," "]
[null,null,null,null,null," "," "," "," "]
[null,null,null,null,null," "," "," "," "]
[null,null,null,null,null," "," "," "," "]
[null,null,null,null,null," "," "," "," "]
[null,null,null,null,null," "," "," "," "]
[null,null,null,null,null," "," "," "," "]
[null,null,null,null,null," "," "," "," "]
[null,null,null,null,null," "," "," "," "]
[null,null,null,null,null," "," "," "," "]
[null,null,null,null,null," "," "," "," "]
[null,null,null,null,null," "," "," "," "]
[null,null,null,null,null," "," "," "," "]
[null,null,null,null,null," "," "," "," "]
[null,null,null,null,null," "," "," "," "]
[null,null,null,null,null," "," "," "," "]
[null,null,null,null,null," "," "," "," "]
[null,null,null,null,null," "," "," "," "]
[null,null,null,null,null," "," "," "," "]
[null,null,null,null,null," "," "," "," "]
[null,null,null,null,null," "," "," "," "]
[null,null,null,null,null," "," "," "," "]
[null,null,null,null,null," "," "," "," "]
[null,null,null,null,null," "," "," "," "]
[null,null,null,null,null," "," "," "," "]
[null,null,null,null,null," "," "," "," "]
[null,null,null,null,null," "," "," "," "]
[null,null,null,null,null," "," "," "," "]
[null,null,null,null,null," "," "," "," "]
[null,null,null,null,null," "," "," "," "]
[null,null,null,null,null," "," "," "," "]
[null,null,null,null,null," "," "," "," "]
[null,null,null,null,null," "," "," "," "]
[null,null,null,null,null," "," "," "," "]
[null,null,null,null,null," "," "," "," "]
[null,null,null,null,null," "," "," "," "]
[null,null,null,null,null," "," "," "," "]
[null,null,null,null,null," "," "," "," "]
[null,null,null,null,null," "," "," "," "]
[null,null,null,null,null," "," "," "," "]
[null,null,null,null,null," "," "," "," "]
[null,null,null,null,null," "," "," "," "]
[null,null,null,null,null," "," "," "," "]
[null,null,null,null,null," "," "," "," "]
[null,null,null,null,null," "," "," "," "]
[null,null,null,null,null," "," "," "," "]
[null,null,null,null,null,{"$f":"IF(A2371>0,B2371/100,\" \")","v":" "},{"$f":"IF(A2371>0,C2371/100,\" \")","v":" "},{"$f":"IF(A2371>0,D2371/100,\" \")","v":" "},{"$f":"IF(A2371>0,E2371/100,\" \")","v":" "}]
[null,null,null,null,null," "," "," "," "]
[null,null,null,null,null," "," "," "," "]
[null,null,null,null,null," "," "," "," "]
[null,null,null,null,null," "," "," "," "]
[null,null,null,null,null," "," "," "," "]
[null,null,null,null,null," "," "," "," "]
[null,null,null,null,null," "," "," "," "]
[null,null,null,null,null," "," "," "," "]
[null,null,null,null,null," "," "," "," "]
[null,null,null,null,null," "," "," "," "]
[null,null,null,null,null," "," "," "," "]
[null,null,null,null,null," "," "," "," "]
[null,null,null,null,null," "," "," "," "]
[null,null,null,null,null," "," "," "," "]
[null,null,null,null,null," "," "," "," "]
[null,null,null,null,null," "," "," "," "]
[null,null,null,null,null," "," "," "," "]
[null,null,null,null,null," "," "," "," "]
[null,null,null,null,null," "," "," "," "]
[null,null,null,null,null," "," "," "," "]
[null,null,null,null,null," "," "," "," "]
[null,null,null,null,null," "," "," "," "]
[null,null,null,null,null," "," "," "," "]
[null,null,null,null,null," "," "," "," "]
[null,null,null,null,null," "," "," "," "]
[null,null,null,null,null," "," "," "," "]
[null,null,null,null,null," "," "," "," "]
[null,null,null,null,null," "," "," "," "]
[null,null,null,null,null," "," "," "," "]
[null,null,null,null,null," "," "," "," "]
[null,null,null,null,null," "," "," "," "]
[null,null,null,null,null," "," "," "," "]
[null,null,null,null,null," "," "," "," "]
[null,null,null,null,null," "," "," "," "]
[null,null,null,null,null," "," "," "," "]
[null,null,null,null,null," "," "," "," "]
[null,null,null,null,null," "," "," "," "]
[null,null,null,null,null," "," "," "," "]
[null,null,null,null,null," "," "," "," "]
[null,null,null,null,null," "," "," "," "]
[null,null,null,null,null," "," "," "," "]
[null,null,null,null,null," "," "," "," "]
[null,null,null,null,null," "," "," "," "]
[null,null,null,null,null," "," "," "," "]
[null,null,null,null,null," "," "," "," "]
[null,null,null,null,null," "," "," "," "]
[null,null,null,null,null," "," "," "," "]
[null,null,null,null,null," "," "," "," "]
[null,null,null,null,null," "," "," "," "]
[null,null,null,null,null," "," "," "," "]
[null,null,null,null,null," "," "," "," "]
[null,null,null,null,null," "," "," "," "]
[null,null,null,null,null," "," "," "," "]
[null,null,null,null,null," "," "," "," "]
[null,null,null,null,null," "," "," "," "]
[null,null,null,null,null," "," "," "," "]
[null,null,null,null,null," "," "," "," "]
[null,null,null,null,null," "," "," "," "]
[null,null,null,null,null," "," "," "," "]
[null,null,null,null,null," "," "," "," "]
[null,null,null,null,null," "," "," "," "]
[null,null,null,null,null," "," "," "," "]
[null,null,null,null,null," "," "," "," "]
[null,null,null,null,null,{"$f":"IF(A2435>0,B2435/100,\" \")","v":" "},{"$f":"IF(A2435>0,C2435/100,\" \")","v":" "},{"$f":"IF(A2435>0,D2435/100,\" \")","v":" "},{"$f":"IF(A2435>0,E2435/100,\" \")","v":" "}]
[null,null,null,null,null," "," "," "," "]
[null,null,null,null,null," "," "," "," "]
[null,null,null,null,null," "," "," "," "]
[null,null,null,null,null," "," "," "," "]
[null,null,null,null,null," "," "," "," "]
[null,null,null,null,null," "," "," "," "]
[null,null,null,null,null," "," "," "," "]
[null,null,null,null,null," "," "," "," "]
[null,null,null,null,null," "," "," "," "]
[null,null,null,null,null," "," "," "," "]
[null,null,null,null,null," "," "," "," "]
[null,null,null,null,null," "," "," "," "]
[null,null,null,null,null," "," "," "," "]
[null,null,null,null,null," "," "," "," "]
[null,null,null,null,null," "," "," "," "]
[null,null,null,null,null," "," "," "," "]
[null,null,null,null,null," "," "," "," "]
[null,null,null,null,null," "," "," "," "]
[null,null,null,null,null," "," "," "," "]
[null,null,null,null,null," "," "," "," "]
[null,null,null,null,null," "," "," "," "]
[null,null,null,null,null," "," "," "," "]
[null,null,null,null,null," "," "," "," "]
[null,null,null,null,null," "," "," "," "]
[null,null,null,null,null," "," "," "," "]
[null,null,null,null,null," "," "," "," "]
[null,null,null,null,null," "," "," "," "]
[null,null,null,null,null," "," "," "," "]
[null,null,null,null,null," "," "," "," "]
[null,null,null,null,null," "," "," "," "]
[null,null,null,null,null," "," "," "," "]
[null,null,null,null,null," "," "," "," "]
[null,null,null,null,null," "," "," "," "]
[null,null,null,null,null," "," "," "," "]
[null,null,null,null,null," "," "," "," "]
[null,null,null,null,null," "," "," "," "]
[null,null,null,null,null," "," "," "," "]
[null,null,null,null,null," "," "," "," "]
[null,null,null,null,null," "," "," "," "]
[null,null,null,null,null," "," "," "," "]
[null,null,null,null,null," "," "," "," "]
[null,null,null,null,null," "," "," "," "]
[null,null,null,null,null," "," "," "," "]
[null,null,null,null,null," "," "," "," "]
[null,null,null,null,null," "," "," "," "]
[null,null,null,null,null," "," "," "," "]
[null,null,null,null,null," "," "," "," "]
[null,null,null,null,null," "," "," "," "]
[null,null,null,null,null," "," "," "," "]
[null,null,null,null,null," "," "," "," "]
[null,null,null,null,null," "," "," "," "]
[null,null,null,null,null," "," "," "," "]
[null,null,null,null,null," "," "," "," "]
[null,null,null,null,null," "," "," "," "]
[null,null,null,null,null," "," "," "," "]
[null,null,null,null,null," "," "," "," "]
[null,null,null,null,null," "," "," "," "]
[null,null,null,null,null," "," "," "," "]
[null,null,null,null,null," "," "," "," "]
[null,null,null,null,null," "," "," "," "]
[null,null,null,null,null," "," "," "," "]
[null,null,null,null,null," "," "," "," "]
[null,null,null,null,null," "," "," "," "]
[null,null,null,null,null,{"$f":"IF(A2499>0,B2499/100,\" \")","v":" "},{"$f":"IF(A2499>0,C2499/100,\" \")","v":" "},{"$f":"IF(A2499>0,D2499/100,\" \")","v":" "},{"$f":"IF(A2499>0,E2499/100,\" \")","v":" "}]
[null,null,null,null,null," "," "," "," "]
[null,null,null,null,null," "," "," "," "]
[null,null,null,null,null," "," "," "," "]
[null,null,null,null,null," "," "," "," "]
[null,null,null,null,null," "," "," "," "]
[null,null,null,null,null," "," "," "," "]
[null,null,null,null,null," "," "," "," "]
[null,null,null,null,null," "," "," "," "]
[null,null,null,null,null," "," "," "," "]
[null,null,null,null,null," "," "," "," "]
[null,null,null,null,null," "," "," "," "]
[null,null,null,null,null," "," "," "," "]
[null,null,null,null,null," "," "," "," "]
[null,null,null,null,null," "," "," "," "]
[null,null,null,null,null," "," "," "," "]
[null,null,null,null,null," "," "," "," "]
[null,null,null,null,null," "," "," "," "]
[null,null,null,null,null," "," "," "," "]
[null,null,null,null,null," "," "," "," "]
[null,null,null,null,null," "," "," "," "]
[null,null,null,null,null," "," "," "," "]
[null,null,null,null,null," "," "," "," "]
[null,null,null,null,null," "," "," "," "]
[null,null,null,null,null," "," "," "," "]
[null,null,null,null,null," "," "," "," "]
[null,null,null,null,null," "," "," "," "]
[null,null,null,null,null," "," "," "," "]
[null,null,null,null,null," "," "," "," "]
[null,null,null,null,null," "," "," "," "]
[null,null,null,null,null," "," "," "," "]
[null,null,null,null,null," "," "," "," "]
[null,null,null,null,null," "," "," "," "]
[null,null,null,null,null," "," "," "," "]
[null,null,null,null,null," "," "," "," "]
[null,null,null,null,null," "," "," "," "]
[null,null,null,null,null," "," "," "," "]
[null,null,null,null,null," "," "," "," "]
[null,null,null,null,null," "," "," "," "]
[null,null,null,null,null," "," "," "," "]
[null,null,null,null,null," "," "," "," "]
[null,null,null,null,null," "," "," "," "]
[null,null,null,null,null," "," "," "," "]
[null,null,null,null,null," "," "," "," "]
[null,null,null,null,null," "," "," "," "]
[null,null,null,null,null," "," "," "," "]
[null,null,null,null,null," "," "," "," "]
[null,null,null,null,null," "," "," "," "]
[null,null,null,null,null," "," "," "," "]
[null,null,null,null,null," "," "," "," "]
[null,null,null,null,null," "," "," "," "]
[null,null,null,null,null," "," "," "," "]
[null,null,null,null,null," "," "," "," "]
[null,null,null,null,null," "," "," "," "]
[null,null,null,null,null," "," "," "," "]
[null,null,null,null,null," "," "," "," "]
[null,null,null,null,null," "," "," "," "]
[null,null,null,null,null," "," "," "," "]
[null,null,null,null,null," "," "," "," "]
[null,null,null,null,null," "," "," "," "]
[null,null,null,null,null," "," "," "," "]
[null,null,null,null,null," "," "," "," "]
[null,null,null,null,null," "," "," "," "]
[null,null,null,null,null," "," "," "," "]
[null,null,null,null,null,{"$f":"IF(A2563>0,B2563/100,\" \")","v":" "},{"$f":"IF(A2563>0,C2563/100,\" \")","v":" "},{"$f":"IF(A2563>0,D2563/100,\" \")","v":" "},{"$f":"IF(A2563>0,E2563/100,\" \")","v":" "}]
[null,null,null,null,null," "," "," "," "]
[null,null,null,null,null," "," "," "," "]
[null,null,null,null,null," "," "," "," "]
[null,null,null,null,null," "," "," "," "]
[null,null,null,null,null," "," "," "," "]
[null,null,null,null,null," "," "," "," "]
[null,null,null,null,null," "," "," "," "]
[null,null,null,null,null," "," "," "," "]
[null,null,null,null,null," "," "," "," "]
[null,null,null,null,null," "," "," "," "]
[null,null,null,null,null," "," "," "," "]
[null,null,null,null,null," "," "," "," "]
[null,null,null,null,null," "," "," "," "]
[null,null,null,null,null," "," "," "," "]
[null,null,null,null,null," "," "," "," "]
[null,null,null,null,null," "," "," "," "]
[null,null,null,null,null," "," "," "," "]
[null,null,null,null,null," "," "," "," "]
[null,null,null,null,null," "," "," "," "]
[null,null,null,null,null," "," "," "," "]
[null,null,null,null,null," "," "," "," "]
[null,null,null,null,null," "," "," "," "]
[null,null,null,null,null," "," "," "," "]
[null,null,null,null,null," "," "," "," "]
[null,null,null,null,null," "," "," "," "]
[null,null,null,null,null," "," "," "," "]
[null,null,null,null,null," "," "," "," "]
[null,null,null,null,null," "," "," "," "]
[null,null,null,null,null," "," "," "," "]
[null,null,null,null,null," "," "," "," "]
[null,null,null,null,null," "," "," "," "]
[null,null,null,null,null," "," "," "," "]
[null,null,null,null,null," "," "," "," "]
[null,null,null,null,null," "," "," "," "]
[null,null,null,null,null," "," "," "," "]
[null,null,null,null,null," "," "," "," "]
[null,null,null,null,null," "," "," "," "]
[null,null,null,null,null," "," "," "," "]
[null,null,null,null,null," "," "," "," "]
[null,null,null,null,null," "," "," "," "]
[null,null,null,null,null," "," "," "," "]
[null,null,null,null,null," "," "," "," "]
[null,null,null,null,null," "," "," "," "]
[null,null,null,null,null," "," "," "," "]
[null,null,null,null,null," "," "," "," "]
[null,null,null,null,null," "," "," "," "]
[null,null,null,null,null," "," "," "," "]
[null,null,null,null,null," "," "," "," "]
[null,null,null,null,null," "," "," "," "]
[null,null,null,null,null," "," "," "," "]
[null,null,null,null,null," "," "," "," "]
[null,null,null,null,null," "," "," "," "]
[null,null,null,null,null," "," "," "," "]
[null,null,null,null,null," "," "," "," "]
[null,null,null,null,null," "," "," "," "]
[null,null,null,null,null," "," "," "," "]
[null,null,null,null,null," "," "," "," "]
[null,null,null,null,null," "," "," "," "]
[null,null,null,null,null," "," "," "," "]
[null,null,null,null,null," "," "," "," "]
[null,null,null,null,null," "," "," "," "]
[null,null,null,null,null," "," "," "," "]
[null,null,null,null,null," "," "," "," "]
[null,null,null,null,null,{"$f":"IF(A2627>0,B2627/100,\" \")","v":" "},{"$f":"IF(A2627>0,C2627/100,\" \")","v":" "},{"$f":"IF(A2627>0,D2627/100,\" \")","v":" "},{"$f":"IF(A2627>0,E2627/100,\" \")","v":" "}]
[null,null,null,null,null," "," "," "," "]
[null,null,null,null,null," "," "," "," "]
[null,null,null,null,null," "," "," "," "]
[null,null,null,null,null," "," "," "," "]
[null,null,null,null,null," "," "," "," "]
[null,null,null,null,null," "," "," "," "]
[null,null,null,null,null," "," "," "," "]
[null,null,null,null,null," "," "," "," "]
[null,null,null,null,null," "," "," "," "]
[null,null,null,null,null," "," "," "," "]
[null,null,null,null,null," "," "," "," "]
[null,null,null,null,null," "," "," "," "]
[null,null,null,null,null," "," "," "," "]
[null,null,null,null,null," "," "," "," "]
[null,null,null,null,null," "," "," "," "]
[null,null,null,null,null," "," "," "," "]
[null,null,null,null,null," "," "," "," "]
[null,null,null,null,null," "," "," "," "]
[null,null,null,null,null," "," "," "," "]
[null,null,null,null,null," "," "," "," "]
[null,null,null,null,null," "," "," "," "]
[null,null,null,null,null," "," "," "," "]
[null,null,null,null,null," "," "," "," "]
[null,null,null,null,null," "," "," "," "]
[null,null,null,null,null," "," "," "," "]
[null,null,null,null,null," "," "," "," "]
[null,null,null,null,null," "," "," "," "]
[null,null,null,null,null," "," "," "," "]
[null,null,null,null,null," "," "," "," "]
[null,null,null,null,null," "," "," "," "]
[null,null,null,null,null," "," "," "," "]
[null,null,null,null,null," "," "," "," "]
[null,null,null,null,null," "," "," "," "]
[null,null,null,null,null," "," "," "," "]
[null,null,null,null,null," "," "," "," "]
[null,null,null,null,null," "," "," "," "]
[null,null,null,null,null," "," "," "," "]
[null,null,null,null,null," "," "," "," "]
[null,null,null,null,null," "," "," "," "]
[null,null,null,null,null," "," "," "," "]
[null,null,null,null,null," "," "," "," "]
[null,null,null,null,null," "," "," "," "]
[null,null,null,null,null," "," "," "," "]
[null,null,null,null,null," "," "," "," "]
[null,null,null,null,null," "," "," "," "]
[null,null,null,null,null," "," "," "," "]
[null,null,null,null,null," "," "," "," "]
[null,null,null,null,null," "," "," "," "]
[null,null,null,null,null," "," "," "," "]
[null,null,null,null,null," "," "," "," "]
[null,null,null,null,null," "," "," "," "]
[null,null,null,null,null," "," "," "," "]
[null,null,null,null,null," "," "," "," "]
[null,null,null,null,null," "," "," "," "]
[null,null,null,null,null," "," "," "," "]
[null,null,null,null,null," "," "," "," "]
[null,null,null,null,null," "," "," "," "]
[null,null,null,null,null," "," "," "," "]
[null,null,null,null,null," "," "," "," "]
[null,null,null,null,null," "," "," "," "]
[null,null,null,null,null," "," "," "," "]
[null,null,null,null,null," "," "," "," "]
[null,null,null,null,null," "," "," "," "]
[null,null,null,null,null,{"$f":"IF(A2691>0,B2691/100,\" \")","v":" "},{"$f":"IF(A2691>0,C2691/100,\" \")","v":" "},{"$f":"IF(A2691>0,D2691/100,\" \")","v":" "},{"$f":"IF(A2691>0,E2691/100,\" \")","v":" "}]
[null,null,null,null,null," "," "," "," "]
[null,null,null,null,null," "," "," "," "]
[null,null,null,null,null," "," "," "," "]
[null,null,null,null,null," "," "," "," "]
[null,null,null,null,null," "," "," "," "]
[null,null,null,null,null," "," "," "," "]
[null,null,null,null,null," "," "," "," "]
[null,null,null,null,null," "," "," "," "]
[null,null,null,null,null," "," "," "," "]
[null,null,null,null,null," "," "," "," "]
[null,null,null,null,null," "," "," "," "]
[null,null,null,null,null," "," "," "," "]
[null,null,null,null,null," "," "," "," "]
[null,null,null,null,null," "," "," "," "]
[null,null,null,null,null," "," "," "," "]
[null,null,null,null,null," "," "," "," "]
[null,null,null,null,null," "," "," "," "]
[null,null,null,null,null," "," "," "," "]
[null,null,null,null,null," "," "," "," "]
[null,null,null,null,null," "," "," "," "]
[null,null,null,null,null," "," "," "," "]
[null,null,null,null,null," "," "," "," "]
[null,null,null,null,null," "," "," "," "]
[null,null,null,null,null," "," "," "," "]
[null,null,null,null,null," "," "," "," "]
[null,null,null,null,null," "," "," "," "]
[null,null,null,null,null," "," "," "," "]
[null,null,null,null,null," "," "," "," "]
[null,null,null,null,null," "," "," "," "]
[null,null,null,null,null," "," "," "," "]
[null,null,null,null,null," "," "," "," "]
[null,null,null,null,null," "," "," "," "]
[null,null,null,null,null," "," "," "," "]
[null,null,null,null,null," "," "," "," "]
[null,null,null,null,null," "," "," "," "]
[null,null,null,null,null," "," "," "," "]
[null,null,null,null,null," "," "," "," "]
[null,null,null,null,null," "," "," "," "]
[null,null,null,null,null," "," "," "," "]
[null,null,null,null,null," "," "," "," "]
[null,null,null,null,null," "," "," "," "]
[null,null,null,null,null," "," "," "," "]
[null,null,null,null,null," "," "," "," "]
[null,null,null,null,null," "," "," "," "]
[null,null,null,null,null," "," "," "," "]
[null,null,null,null,null," "," "," "," "]
[null,null,null,null,null," "," "," "," "]
[null,null,null,null,null," "," "," "," "]
[null,null,null,null,null," "," "," "," "]
[null,null,null,null,null," "," "," "," "]
[null,null,null,null,null," "," "," "," "]
[null,null,null,null,null," "," "," "," "]
[null,null,null,null,null," "," "," "," "]
[null,null,null,null,null," "," "," "," "]
[null,null,null,null,null," "," "," "," "]
[null,null,null,null,null," "," "," "," "]
[null,null,null,null,null," "," "," "," "]
[null,null,null,null,null," "," "," "," "]
[null,null,null,null,null," "," "," "," "]
[null,null,null,null,null," "," "," "," "]
[null,null,null,null,null," "," "," "," "]
[null,null,null,null,null," "," "," "," "]
[null,null,null,null,null," "," "," "," "]
[null,null,null,null,null,{"$f":"IF(A2755>0,B2755/100,\" \")","v":" "},{"$f":"IF(A2755>0,C2755/100,\" \")","v":" "},{"$f":"IF(A2755>0,D2755/100,\" \")","v":" "},{"$f":"IF(A2755>0,E2755/100,\" \")","v":" "}]
[null,null,null,null,null," "," "," "," "]
[null,null,null,null,null," "," "," "," "]
[null,null,null,null,null," "," "," "," "]
[null,null,null,null,null," "," "," "," "]
[null,null,null,null,null," "," "," "," "]
[null,null,null,null,null," "," "," "," "]
[null,null,null,null,null," "," "," "," "]
[null,null,null,null,null," "," "," "," "]
[null,null,null,null,null," "," "," "," "]
[null,null,null,null,null," "," "," "," "]
[null,null,null,null,null," "," "," "," "]
[null,null,null,null,null," "," "," "," "]
[null,null,null,null,null," "," "," "," "]
[null,null,null,null,null," "," "," "," "]
[null,null,null,null,null," "," "," "," "]
[null,null,null,null,null," "," "," "," "]
[null,null,null,null,null," "," "," "," "]
[null,null,null,null,null," "," "," "," "]
[null,null,null,null,null," "," "," "," "]
[null,null,null,null,null," "," "," "," "]
[null,null,null,null,null," "," "," "," "]
[null,null,null,null,null," "," "," "," "]
[null,null,null,null,null," "," "," "," "]
[null,null,null,null,null," "," "," "," "]
[null,null,null,null,null," "," "," "," "]
[null,null,null,null,null," "," "," "," "]
[null,null,null,null,null," "," "," "," "]
[null,null,null,null,null," "," "," "," "]
[null,null,null,null,null," "," "," "," "]
[null,null,null,null,null," "," "," "," "]
[null,null,null,null,null," "," "," "," "]
[null,null,null,null,null," "," "," "," "]
[null,null,null,null,null," "," "," "," "]
[null,null,null,null,null," "," "," "," "]
[null,null,null,null,null," "," "," "," "]
[null,null,null,null,null," "," "," "," "]
[null,null,null,null,null," "," "," "," "]
[null,null,null,null,null," "," "," "," "]
[null,null,null,null,null," "," "," "," "]
[null,null,null,null,null," "," "," "," "]
[null,null,null,null,null," "," "," "," "]
[null,null,null,null,null," "," "," "," "]
[null,null,null,null,null," "," "," "," "]
[null,null,null,null,null," "," "," "," "]
[null,null,null,null,null," "," "," "," "]
[null,null,null,null,null," "," "," "," "]
[null,null,null,null,null," "," "," "," "]
[null,null,null,null,null," "," "," "," "]
[null,null,null,null,null," "," "," "," "]
[null,null,null,null,null," "," "," "," "]
[null,null,null,null,null," "," "," "," "]
[null,null,null,null,null," "," "," "," "]
[null,null,null,null,null," "," "," "," "]
[null,null,null,null,null," "," "," "," "]
[null,null,null,null,null," "," "," "," "]
[null,null,null,null,null," "," "," "," "]
[null,null,null,null,null," "," "," "," "]
[null,null,null,null,null," "," "," "," "]
[null,null,null,null,null," "," "," "," "]
[null,null,null,null,null," "," "," "," "]
[null,null,null,null,null," "," "," "," "]
[null,null,null,null,null," "," "," "," "]
[null,null,null,null,null," "," "," "," "]
[null,null,null,null,null,{"$f":"IF(A2819>0,B2819/100,\" \")","v":" "},{"$f":"IF(A2819>0,C2819/100,\" \")","v":" "},{"$f":"IF(A2819>0,D2819/100,\" \")","v":" "},{"$f":"IF(A2819>0,E2819/100,\" \")","v":" "}]
[null,null,null,null,null," "," "," "," "]
[null,null,null,null,null," "," "," "," "]
[null,null,null,null,null," "," "," "," "]
[null,null,null,null,null," "," "," "," "]
[null,null,null,null,null," "," "," "," "]
[null,null,null,null,null," "," "," "," "]
[null,null,null,null,null," "," "," "," "]
[null,null,null,null,null," "," "," "," "]
[null,null,null,null,null," "," "," "," "]
[null,null,null,null,null," "," "," "," "]
[null,null,null,null,null," "," "," "," "]
[null,null,null,null,null," "," "," "," "]
[null,null,null,null,null," "," "," "," "]
[null,null,null,null,null," "," "," "," "]
[null,null,null,null,null," "," "," "," "]
[null,null,null,null,null," "," "," "," "]
[null,null,null,null,null," "," "," "," "]
[null,null,null,null,null," "," "," "," "]
[null,null,null,null,null," "," "," "," "]
[null,null,null,null,null," "," "," "," "]
[null,null,null,null,null," "," "," "," "]
[null,null,null,null,null," "," "," "," "]
[null,null,null,null,null," "," "," "," "]
[null,null,null,null,null," "," "," "," "]
[null,null,null,null,null," "," "," "," "]
[null,null,null,null,null," "," "," "," "]
[null,null,null,null,null," "," "," "," "]
[null,null,null,null,null," "," "," "," "]
[null,null,null,null,null," "," "," "," "]
[null,null,null,null,null," "," "," "," "]
[null,null,null,null,null," "," "," "," "]
[null,null,null,null,null," "," "," "," "]
[null,null,null,null,null," "," "," "," "]
[null,null,null,null,null," "," "," "," "]
[null,null,null,null,null," "," "," "," "]
[null,null,null,null,null," "," "," "," "]
[null,null,null,null,null," "," "," "," "]
[null,null,null,null,null," "," "," "," "]
[null,null,null,null,null," "," "," "," "]
[null,null,null,null,null," "," "," "," "]
[null,null,null,null,null," "," "," "," "]
[null,null,null,null,null," "," "," "," "]
[null,null,null,null,null," "," "," "," "]
[null,null,null,null,null," "," "," "," "]
[null,null,null,null,null," "," "," "," "]
[null,null,null,null,null," "," "," "," "]
[null,null,null,null,null," "," "," "," "]
[null,null,null,null,null," "," "," "," "]
[null,null,null,null,null," "," "," "," "]
[null,null,null,null,null," "," "," "," "]
[null,null,null,null,null," "," "," "," "]
[null,null,null,null,null," "," "," "," "]
[null,null,null,null,null," "," "," "," "]
[null,null,null,null,null," "," "," "," "]
[null,null,null,null,null," "," "," "," "]
[null,null,null,null,null," "," "," "," "]
[null,null,null,null,null," "," "," "," "]
[null,null,null,null,null," "," "," "," "]
[null,null,null,null,null," "," "," "," "]
[null,null,null,null,null," "," "," "," "]
[null,null,null,null,null," "," "," "," "]
[null,null,null,null,null," "," "," "," "]
[null,null,null,null,null," "," "," "," "]
[null,null,null,null,null,{"$f":"IF(A2883>0,B2883/100,\" \")","v":" "},{"$f":"IF(A2883>0,C2883/100,\" \")","v":" "},{"$f":"IF(A2883>0,D2883/100,\" \")","v":" "},{"$f":"IF(A2883>0,E2883/100,\" \")","v":" "}]
[null,null,null,null,null," "," "," "," "]
[null,null,null,null,null," "," "," "," "]
[null,null,null,null,null," "," "," "," "]
[null,null,null,null,null," "," "," "," "]
[null,null,null,null,null," "," "," "," "]
[null,null,null,null,null," "," "," "," "]
[null,null,null,null,null," "," "," "," "]
[null,null,null,null,null," "," "," "," "]
[null,null,null,null,null," "," "," "," "]
[null,null,null,null,null," "," "," "," "]
[null,null,null,null,null," "," "," "," "]
[null,null,null,null,null," "," "," "," "]
[null,null,null,null,null," "," "," "," "]
[null,null,null,null,null," "," "," "," "]
[null,null,null,null,null," "," "," "," "]
[null,null,null,null,null," "," "," "," "]
[null,null,null,null,null," "," "," "," "]
[null,null,null,null,null," "," "," "," "]
[null,null,null,null,null," "," "," "," "]
[null,null,null,null,null," "," "," "," "]
[null,null,null,null,null," "," "," "," "]
[null,null,null,null,null," "," "," "," "]
[null,null,null,null,null," "," "," "," "]
[null,null,null,null,null," "," "," "," "]
[null,null,null,null,null," "," "," "," "]
[null,null,null,null,null," "," "," "," "]
[null,null,null,null,null," "," "," "," "]
[null,null,null,null,null," "," "," "," "]
[null,null,null,null,null," "," "," "," "]
[null,null,null,null,null," "," "," "," "]
[null,null,null,null,null," "," "," "," "]
[null,null,null,null,null," "," "," "," "]
[null,null,null,null,null," "," "," "," "]
[null,null,null,null,null," "," "," "," "]
[null,null,null,null,null," "," "," "," "]
[null,null,null,null,null," "," "," "," "]
[null,null,null,null,null," "," "," "," "]
[null,null,null,null,null," "," "," "," "]
[null,null,null,null,null," "," "," "," "]
[null,null,null,null,null," "," "," "," "]
[null,null,null,null,null," "," "," "," "]
[null,null,null,null,null," "," "," "," "]
[null,null,null,null,null," "," "," "," "]
[null,null,null,null,null," "," "," "," "]
[null,null,null,null,null," "," "," "," "]
[null,null,null,null,null," "," "," "," "]
[null,null,null,null,null," "," "," "," "]
[null,null,null,null,null," "," "," "," "]
[null,null,null,null,null," "," "," "," "]
[null,null,null,null,null," "," "," "," "]
[null,null,null,null,null," "," "," "," "]
[null,null,null,null,null," "," "," "," "]
[null,null,null,null,null," "," "," "," "]
[null,null,null,null,null," "," "," "," "]
[null,null,null,null,null," "," "," "," "]
[null,null,null,null,null," "," "," "," "]
[null,null,null,null,null," "," "," "," "]
[null,null,null,null,null," "," "," "," "]
[null,null,null,null,null," "," "," "," "]
[null,null,null,null,null," "," "," "," "]
[null,null,null,null,null," "," "," "," "]
[null,null,null,null,null," "," "," "," "]
[null,null,null,null,null," "," "," "," "]
[null,null,null,null,null,{"$f":"IF(A2947>0,B2947/100,\" \")","v":" "},{"$f":"IF(A2947>0,C2947/100,\" \")","v":" "},{"$f":"IF(A2947>0,D2947/100,\" \")","v":" "},{"$f":"IF(A2947>0,E2947/100,\" \")","v":" "}]
[null,null,null,null,null," "," "," "," "]
[null,null,null,null,null," "," "," "," "]
[null,null,null,null,null," "," "," "," "]
[null,null,null,null,null," "," "," "," "]
[null,null,null,null,null," "," "," "," "]
[null,null,null,null,null," "," "," "," "]
[null,null,null,null,null," "," "," "," "]
[null,null,null,null,null," "," "," "," "]
[null,null,null,null,null," "," "," "," "]
[null,null,null,null,null," "," "," "," "]
[null,null,null,null,null," "," "," "," "]
[null,null,null,null,null," "," "," "," "]
[null,null,null,null,null," "," "," "," "]
[null,null,null,null,null," "," "," "," "]
[null,null,null,null,null," "," "," "," "]
[null,null,null,null,null," "," "," "," "]
[null,null,null,null,null," "," "," "," "]
[null,null,null,null,null," "," "," "," "]
[null,null,null,null,null," "," "," "," "]
[null,null,null,null,null," "," "," "," "]
[null,null,null,null,null," "," "," "," "]
[null,null,null,null,null," "," "," "," "]
[null,null,null,null,null," "," "," "," "]
[null,null,null,null,null," "," "," "," "]
[null,null,null,null,null," "," "," "," "]
[null,null,null,null,null," "," "," "," "]
[null,null,null,null,null," "," "," "," "]
[null,null,null,null,null," "," "," "," "]
[null,null,null,null,null," "," "," "," "]
[null,null,null,null,null," "," "," "," "]
[null,null,null,null,null," "," "," "," "]
[null,null,null,null,null," "," "," "," "]
[null,null,null,null,null," "," "," "," "]
[null,null,null,null,null," "," "," "," "]
[null,null,null,null,null," "," "," "," "]
[null,null,null,null,null," "," "," "," "]
[null,null,null,null,null," "," "," "," "]
[null,null,null,null,null," "," "," "," "]
[null,null,null,null,null," "," "," "," "]
[null,null,null,null,null," "," "," "," "]
[null,null,null,null,null," "," "," "," "]
[null,null,null,null,null," "," "," "," "]
[null,null,null,null,null," "," "," "," "]
[null,null,null,null,null," "," "," "," "]
[null,null,null,null,null," "," "," "," "]
[null,null,null,null,null," "," "," "," "]
[null,null,null,null,null," "," "," "," "]
[null,null,null,null,null," "," "," "," "]
[null,null,null,null,null," "," "," "," "]
[null,null,null,null,null," "," "," "," "]
[null,null,null,null,null," "," "," "," "]
[null,null,null,null,null," "," "," "," "]
[null,null,null,null,null," "," "," "," "]
[null,null,null,null,null," "," "," "," "]
[null,null,null,null,null," "," "," "," "]
[null,null,null,null,null," "," "," "," "]
[null,null,null,null,null," "," "," "," "]
[null,null,null,null,null," "," "," "," "]
[null,null,null,null,null," "," "," "," "]
[null,null,null,null,null," "," "," "," "]
[null,null,null,null,null," "," "," "," "]
[null,null,null,null,null," "," "," "," "]
[null,null,null,null,null," "," "," "," "]
[null,null,null,null,null,{"$f":"IF(A3011>0,B3011/100,\" \")","v":" "},{"$f":"IF(A3011>0,C3011/100,\" \")","v":" "},{"$f":"IF(A3011>0,D3011/100,\" \")","v":" "},{"$f":"IF(A3011>0,E3011/100,\" \")","v":" "}]
[null,null,null,null,null," "," "," "," "]
[null,null,null,null,null," "," "," "," "]
[null,null,null,null,null," "," "," "," "]
[null,null,null,null,null," "," "," "," "]
[null,null,null,null,null," "," "," "," "]
[null,null,null,null,null," "," "," "," "]
[null,null,null,null,null," "," "," "," "]
[null,null,null,null,null," "," "," "," "]
[null,null,null,null,null," "," "," "," "]
[null,null,null,null,null," "," "," "," "]
[null,null,null,null,null," "," "," "," "]
[null,null,null,null,null," "," "," "," "]
[null,null,null,null,null," "," "," "," "]
[null,null,null,null,null," "," "," "," "]
[null,null,null,null,null," "," "," "," "]
[null,null,null,null,null," "," "," "," "]
[null,null,null,null,null," "," "," "," "]
[null,null,null,null,null," "," "," "," "]
[null,null,null,null,null," "," "," "," "]
[null,null,null,null,null," "," "," "," "]
[null,null,null,null,null," "," "," "," "]
[null,null,null,null,null," "," "," "," "]
[null,null,null,null,null," "," "," "," "]
[null,null,null,null,null," "," "," "," "]
[null,null,null,null,null," "," "," "," "]
[null,null,null,null,null," "," "," "," "]
[null,null,null,null,null," "," "," "," "]
[null,null,null,null,null," "," "," "," "]
[null,null,null,null,null," "," "," "," "]
[null,null,null,null,null," "," "," "," "]
[null,null,null,null,null," "," "," "," "]
[null,null,null,null,null," "," "," "," "]
[null,null,null,null,null," "," "," "," "]
[null,null,null,null,null," "," "," "," "]
[null,null,null,null,null," "," "," "," "]
[null,null,null,null,null," "," "," "," "]
[null,null,null,null,null," "," "," "," "]
[null,null,null,null,null," "," "," "," "]
[null,null,null,null,null," "," "," "," "]
[null,null,null,null,null," "," "," "," "]
[null,null,null,null,null," "," "," "," "]
[null,null,null,null,null," "," "," "," "]
[null,null,null,null,null," "," "," "," "]
[null,null,null,null,null," "," "," "," "]
[null,null,null,null,null," "," "," "," "]
[null,null,null,null,null," "," "," "," "]
[null,null,null,null,null," "," "," "," "]
[null,null,null,null,null," "," "," "," "]
[null,null,null,null,null," "," "," "," "]
[null,null,null,null,null," "," "," "," "]
[null,null,null,null,null," "," "," "," "]
[null,null,null,null,null," "," "," "," "]
[null,null,null,null,null," "," "," "," "]
[null,null,null,null,null," "," "," "," "]
[null,null,null,null,null," "," "," "," "]
[null,null,null,null,null," "," "," "," "]
[null,null,null,null,null," "," "," "," "]
[null,null,null,null,null," "," "," "," "]
[null,null,null,null,null," "," "," "," "]
[null,null,null,null,null," "," "," "," "]
[null,null,null,null,null," "," "," "," "]
[null,null,null,null,null," "," "," "," "]
[null,null,null,null,null," "," "," "," "]
[null,null,null,null,null,{"$f":"IF(A3075>0,B3075/100,\" \")","v":" "},{"$f":"IF(A3075>0,C3075/100,\" \")","v":" "},{"$f":"IF(A3075>0,D3075/100,\" \")","v":" "},{"$f":"IF(A3075>0,E3075/100,\" \")","v":" "}]
[null,null,null,null,null," "," "," "," "]
[null,null,null,null,null," "," "," "," "]
[null,null,null,null,null," "," "," "," "]
[null,null,null,null,null," "," "," "," "]
[null,null,null,null,null," "," "," "," "]
[null,null,null,null,null," "," "," "," "]
[null,null,null,null,null," "," "," "," "]
[null,null,null,null,null," "," "," "," "]
[null,null,null,null,null," "," "," "," "]
[null,null,null,null,null," "," "," "," "]
[null,null,null,null,null," "," "," "," "]
[null,null,null,null,null," "," "," "," "]
[null,null,null,null,null," "," "," "," "]
[null,null,null,null,null," "," "," "," "]
[null,null,null,null,null," "," "," "," "]
[null,null,null,null,null," "," "," "," "]
[null,null,null,null,null," "," "," "," "]
[null,null,null,null,null," "," "," "," "]
[null,null,null,null,null," "," "," "," "]
[null,null,null,null,null," "," "," "," "]
[null,null,null,null,null," "," "," "," "]
[null,null,null,null,null," "," "," "," "]
[null,null,null,null,null," "," "," "," "]
[null,null,null,null,null," "," "," "," "]
[null,null,null,null,null," "," "," "," "]
[null,null,null,null,null," "," "," "," "]
[null,null,null,null,null," "," "," "," "]
[null,null,null,null,null," "," "," "," "]
[null,null,null,null,null," "," "," "," "]
[null,null,null,null,null," "," "," "," "]
[null,null,null,null,null," "," "," "," "]
[null,null,null,null,null," "," "," "," "]
[null,null,null,null,null," "," "," "," "]
[null,null,null,null,null," "," "," "," "]
[null,null,null,null,null," "," "," "," "]
[null,null,null,null,null," "," "," "," "]
[null,null,null,null,null," "," "," "," "]
[null,null,null,null,null," "," "," "," "]
[null,null,null,null,null," "," "," "," "]
[null,null,null,null,null," "," "," "," "]
[null,null,null,null,null," "," "," "," "]
[null,null,null,null,null," "," "," "," "]
[null,null,null,null,null," "," "," "," "]
[null,null,null,null,null," "," "," "," "]
[null,null,null,null,null," "," "," "," "]
[null,null,null,null,null," "," "," "," "]
[null,null,null,null,null," "," "," "," "]
[null,null,null,null,null," "," "," "," "]
[null,null,null,null,null," "," "," "," "]
[null,null,null,null,null," "," "," "," "]
[null,null,null,null,null," "," "," "," "]
[null,null,null,null,null," "," "," "," "]
[null,null,null,null,null," "," "," "," "]
[null,null,null,null,null," "," "," "," "]
[null,null,null,null,null," "," "," "," "]
[null,null,null,null,null," "," "," "," "]
[null,null,null,null,null," "," "," "," "]
[null,null,null,null,null," "," "," "," "]
[null,null,null,null,null," "," "," "," "]
[null,null,null,null,null," "," "," "," "]
[null,null,null,null,null," "," "," "," "]
[null,null,null,null,null," "," "," "," "]
[null,null,null,null,null," "," "," "," "]
[null,null,null,null,null,{"$f":"IF(A3139>0,B3139/100,\" \")","v":" "},{"$f":"IF(A3139>0,C3139/100,\" \")","v":" "},{"$f":"IF(A3139>0,D3139/100,\" \")","v":" "},{"$f":"IF(A3139>0,E3139/100,\" \")","v":" "}]
[null,null,null,null,null," "," "," "," "]
[null,null,null,null,null," "," "," "," "]
[null,null,null,null,null," "," "," "," "]
[null,null,null,null,null," "," "," "," "]
[null,null,null,null,null," "," "," "," "]
[null,null,null,null,null," "," "," "," "]
[null,null,null,null,null," "," "," "," "]
[null,null,null,null,null," "," "," "," "]
[null,null,null,null,null," "," "," "," "]
[null,null,null,null,null," "," "," "," "]
[null,null,null,null,null," "," "," "," "]
[null,null,null,null,null," "," "," "," "]
[null,null,null,null,null," "," "," "," "]
[null,null,null,null,null," "," "," "," "]
[null,null,null,null,null," "," "," "," "]
[null,null,null,null,null," "," "," "," "]
[null,null,null,null,null," "," "," "," "]
[null,null,null,null,null," "," "," "," "]
[null,null,null,null,null," "," "," "," "]
[null,null,null,null,null," "," "," "," "]
[null,null,null,null,null," "," "," "," "]
[null,null,null,null,null," "," "," "," "]
[null,null,null,null,null," "," "," "," "]
[null,null,null,null,null," "," "," "," "]
[null,null,null,null,null," "," "," "," "]
[null,null,null,null,null," "," "," "," "]
[null,null,null,null,null," "," "," "," "]
[null,null,null,null,null," "," "," "," "]
[null,null,null,null,null," "," "," "," "]
[null,null,null,null,null," "," "," "," "]
[null,null,null,null,null," "," "," "," "]
[null,null,null,null,null," "," "," "," "]
[null,null,null,null,null," "," "," "," "]
[null,null,null,null,null," "," "," "," "]
[null,null,null,null,null," "," "," "," "]
[null,null,null,null,null," "," "," "," "]
[null,null,null,null,null," "," "," "," "]
[null,null,null,null,null," "," "," "," "]
[null,null,null,null,null," "," "," "," "]
[null,null,null,null,null," "," "," "," "]
[null,null,null,null,null," "," "," "," "]
[null,null,null,null,null," "," "," "," "]
[null,null,null,null,null," "," "," "," "]
[null,null,null,null,null," "," "," "," "]
[null,null,null,null,null," "," "," "," "]
[null,null,null,null,null," "," "," "," "]
[null,null,null,null,null," "," "," "," "]
[null,null,null,null,null," "," "," "," "]
[null,null,null,null,null," "," "," "," "]
[null,null,null,null,null," "," "," "," "]
[null,null,null,null,null," "," "," "," "]
[null,null,null,null,null," "," "," "," "]
[null,null,null,null,null," "," "," "," "]
[null,null,null,null,null," "," "," "," "]
[null,null,null,null,null," "," "," "," "]
[null,null,null,null,null," "," "," "," "]
[null,null,null,null,null," "," "," "," "]
[null,null,null,null,null," "," "," "," "]
[null,null,null,null,null," "," "," "," "]
[null,null,null,null,null," "," "," "," "]
[null,null,null,null,null," "," "," "," "]
[null,null,null,null,null," "," "," "," "]
[null,null,null,null,null," "," "," "," "]
[null,null,null,null,null,{"$f":"IF(A3203>0,B3203/100,\" \")","v":" "},{"$f":"IF(A3203>0,C3203/100,\" \")","v":" "},{"$f":"IF(A3203>0,D3203/100,\" \")","v":" "},{"$f":"IF(A3203>0,E3203/100,\" \")","v":" "}]
[null,null,null,null,null," "," "," "," "]
[null,null,null,null,null," "," "," "," "]
[null,null,null,null,null," "," "," "," "]
[null,null,null,null,null," "," "," "," "]
[null,null,null,null,null," "," "," "," "]
[null,null,null,null,null," "," "," "," "]
[null,null,null,null,null," "," "," "," "]
[null,null,null,null,null," "," "," "," "]
[null,null,null,null,null," "," "," "," "]
[null,null,null,null,null," "," "," "," "]
[null,null,null,null,null," "," "," "," "]
[null,null,null,null,null," "," "," "," "]
[null,null,null,null,null," "," "," "," "]
[null,null,null,null,null," "," "," "," "]
[null,null,null,null,null," "," "," "," "]
[null,null,null,null,null," "," "," "," "]
[null,null,null,null,null," "," "," "," "]
[null,null,null,null,null," "," "," "," "]
[null,null,null,null,null," "," "," "," "]
[null,null,null,null,null," "," "," "," "]
[null,null,null,null,null," "," "," "," "]
[null,null,null,null,null," "," "," "," "]
[null,null,null,null,null," "," "," "," "]
[null,null,null,null,null," "," "," "," "]
[null,null,null,null,null," "," "," "," "]
[null,null,null,null,null," "," "," "," "]
[null,null,null,null,null," "," "," "," "]
[null,null,null,null,null," "," "," "," "]
[null,null,null,null,null," "," "," "," "]
[null,null,null,null,null," "," "," "," "]
[null,null,null,null,null," "," "," "," "]
[null,null,null,null,null," "," "," "," "]
[null,null,null,null,null," "," "," "," "]
[null,null,null,null,null," "," "," "," "]
[null,null,null,null,null," "," "," "," "]
[null,null,null,null,null," "," "," "," "]
[null,null,null,null,null," "," "," "," "]
[null,null,null,null,null," "," "," "," "]
[null,null,null,null,null," "," "," "," "]
[null,null,null,null,null," "," "," "," "]
[null,null,null,null,null," "," "," "," "]
[null,null,null,null,null," "," "," "," "]
[null,null,null,null,null," "," "," "," "]
[null,null,null,null,null," "," "," "," "]
[null,null,null,null,null," "," "," "," "]
[null,null,null,null,null," "," "," "," "]
[null,null,null,null,null," "," "," "," "]
[null,null,null,null,null," "," "," "," "]
[null,null,null,null,null," "," "," "," "]
[null,null,null,null,null," "," "," "," "]
[null,null,null,null,null," "," "," "," "]
[null,null,null,null,null," "," "," "," "]
[null,null,null,null,null," "," "," "," "]
[null,null,null,null,null," "," "," "," "]
[null,null,null,null,null," "," "," "," "]
[null,null,null,null,null," "," "," "," "]
[null,null,null,null,null," "," "," "," "]
[null,null,null,null,null," "," "," "," "]
[null,null,null,null,null," "," "," "," "]
[null,null,null,null,null," "," "," "," "]
[null,null,null,null,null," "," "," "," "]
[null,null,null,null,null," "," "," "," "]
[null,null,null,null,null," "," "," "," "]
[null,null,null,null,null,{"$f":"IF(A3267>0,B3267/100,\" \")","v":" "},{"$f":"IF(A3267>0,C3267/100,\" \")","v":" "},{"$f":"IF(A3267>0,D3267/100,\" \")","v":" "},{"$f":"IF(A3267>0,E3267/100,\" \")","v":" "}]
[null,null,null,null,null," "," "," "," "]
[null,null,null,null,null," "," "," "," "]
[null,null,null,null,null," "," "," "," "]
[null,null,null,null,null," "," "," "," "]
[null,null,null,null,null," "," "," "," "]
[null,null,null,null,null," "," "," "," "]
[null,null,null,null,null," "," "," "," "]
[null,null,null,null,null," "," "," "," "]
[null,null,null,null,null," "," "," "," "]
[null,null,null,null,null," "," "," "," "]
[null,null,null,null,null," "," "," "," "]
[null,null,null,null,null," "," "," "," "]
[null,null,null,null,null," "," "," "," "]
[null,null,null,null,null," "," "," "," "]
[null,null,null,null,null," "," "," "," "]
[null,null,null,null,null," "," "," "," "]
[null,null,null,null,null," "," "," "," "]
[null,null,null,null,null," "," "," "," "]
[null,null,null,null,null," "," "," "," "]
[null,null,null,null,null," "," "," "," "]
[null,null,null,null,null," "," "," "," "]
[null,null,null,null,null," "," "," "," "]
[null,null,null,null,null," "," "," "," "]
[null,null,null,null,null," "," "," "," "]
[null,null,null,null,null," "," "," "," "]
[null,null,null,null,null," "," "," "," "]
[null,null,null,null,null," "," "," "," "]
[null,null,null,null,null," "," "," "," "]
[null,null,null,null,null," "," "," "," "]
[null,null,null,null,null," "," "," "," "]
[null,null,null,null,null," "," "," "," "]
[null,null,null,null,null," "," "," "," "]
[null,null,null,null,null," "," "," "," "]
[null,null,null,null,null," "," "," "," "]
[null,null,null,null,null," "," "," "," "]
[null,null,null,null,null," "," "," "," "]
[null,null,null,null,null," "," "," "," "]
[null,null,null,null,null," "," "," "," "]
[null,null,null,null,null," "," "," "," "]
[null,null,null,null,null," "," "," "," "]
[null,null,null,null,null," "," "," "," "]
[null,null,null,null,null," "," "," "," "]
[null,null,null,null,null," "," "," "," "]
[null,null,null,null,null," "," "," "," "]
[null,null,null,null,null," "," "," "," "]
[null,null,null,null,null," "," "," "," "]
[null,null,null,null,null," "," "," "," "]
[null,null,null,null,null," "," "," "," "]
[null,null,null,null,null," "," "," "," "]
[null,null,null,null,null," "," "," "," "]
[null,null,null,null,null," "," "," "," "]
[null,null,null,null,null," "," "," "," "]
[null,null,null,null,null," "," "," "," "]
[null,null,null,null,null," "," "," "," "]
[null,null,null,null,null," "," "," "," "]
[null,null,null,null,null," "," "," "," "]
[null,null,null,null,null," "," "," "," "]
[null,null,null,null,null," "," "," "," "]
[null,null,null,null,null," "," "," "," "]
[null,null,null,null,null," "," "," "," "]
[null,null,null,null,null," "," "," "," "]
[null,null,null,null,null," "," "," "," "]
[null,null,null,null,null," "," "," "," "]
[null,null,null,null,null,{"$f":"IF(A3331>0,B3331/100,\" \")","v":" "},{"$f":"IF(A3331>0,C3331/100,\" \")","v":" "},{"$f":"IF(A3331>0,D3331/100,\" \")","v":" "},{"$f":"IF(A3331>0,E3331/100,\" \")","v":" "}]
[null,null,null,null,null," "," "," "," "]
[null,null,null,null,null," "," "," "," "]
[null,null,null,null,null," "," "," "," "]
[null,null,null,null,null," "," "," "," "]
[null,null,null,null,null," "," "," "," "]
[null,null,null,null,null," "," "," "," "]
[null,null,null,null,null," "," "," "," "]
[null,null,null,null,null," "," "," "," "]
[null,null,null,null,null," "," "," "," "]
[null,null,null,null,null," "," "," "," "]
[null,null,null,null,null," "," "," "," "]
[null,null,null,null,null," "," "," "," "]
[null,null,null,null,null," "," "," "," "]
[null,null,null,null,null," "," "," "," "]
[null,null,null,null,null," "," "," "," "]
[null,null,null,null,null," "," "," "," "]
[null,null,null,null,null," "," "," "," "]
[null,null,null,null,null," "," "," "," "]
[null,null,null,null,null," "," "," "," "]
[null,null,null,null,null," "," "," "," "]
[null,null,null,null,null," "," "," "," "]
[null,null,null,null,null," "," "," "," "]
[null,null,null,null,null," "," "," "," "]
[null,null,null,null,null," "," "," "," "]
[null,null,null,null,null," "," "," "," "]
[null,null,null,null,null," "," "," "," "]
[null,null,null,null,null," "," "," "," "]
[null,null,null,null,null," "," "," "," "]
[null,null,null,null,null," "," "," "," "]
[null,null,null,null,null," "," "," "," "]
[null,null,null,null,null," "," "," "," "]
[null,null,null,null,null," "," "," "," "]
[null,null,null,null,null," "," "," "," "]
[null,null,null,null,null," "," "," "," "]
[null,null,null,null,null," "," "," "," "]
[null,null,null,null,null," "," "," "," "]
[null,null,null,null,null," "," "," "," "]
[null,null,null,null,null," "," "," "," "]
[null,null,null,null,null," "," "," "," "]
[null,null,null,null,null," "," "," "," "]
[null,null,null,null,null," "," "," "," "]
[null,null,null,null,null," "," "," "," "]
[null,null,null,null,null," "," "," "," "]
[null,null,null,null,null," "," "," "," "]
[null,null,null,null,null," "," "," "," "]
[null,null,null,null,null," "," "," "," "]
[null,null,null,null,null," "," "," "," "]
[null,null,null,null,null," "," "," "," "]
[null,null,null,null,null," "," "," "," "]
[null,null,null,null,null," "," "," "," "]
[null,null,null,null,null," "," "," "," "]
[null,null,null,null,null," "," "," "," "]
[null,null,null,null,null," "," "," "," "]
[null,null,null,null,null," "," "," "," "]
[null,null,null,null,null," "," "," "," "]
[null,null,null,null,null," "," "," "," "]
[null,null,null,null,null," "," "," "," "]
[null,null,null,null,null," "," "," "," "]
[null,null,null,null,null," "," "," "," "]
[null,null,null,null,null," "," "," "," "]
[null,null,null,null,null," "," "," "," "]
[null,null,null,null,null," "," "," "," "]
[null,null,null,null,null," "," "," "," "]
[null,null,null,null,null,{"$f":"IF(A3395>0,B3395/100,\" \")","v":" "},{"$f":"IF(A3395>0,C3395/100,\" \")","v":" "},{"$f":"IF(A3395>0,D3395/100,\" \")","v":" "},{"$f":"IF(A3395>0,E3395/100,\" \")","v":" "}]
[null,null,null,null,null," "," "," "," "]
[null,null,null,null,null," "," "," "," "]
[null,null,null,null,null," "," "," "," "]
[null,null,null,null,null," "," "," "," "]
[null,null,null,null,null," "," "," "," "]
[null,null,null,null,null," "," "," "," "]
[null,null,null,null,null," "," "," "," "]
[null,null,null,null,null," "," "," "," "]
[null,null,null,null,null," "," "," "," "]
[null,null,null,null,null," "," "," "," "]
[null,null,null,null,null," "," "," "," "]
[null,null,null,null,null," "," "," "," "]
[null,null,null,null,null," "," "," "," "]
[null,null,null,null,null," "," "," "," "]
[null,null,null,null,null," "," "," "," "]
[null,null,null,null,null," "," "," "," "]
[null,null,null,null,null," "," "," "," "]
[null,null,null,null,null," "," "," "," "]
[null,null,null,null,null," "," "," "," "]
[null,null,null,null,null," "," "," "," "]
[null,null,null,null,null," "," "," "," "]
[null,null,null,null,null," "," "," "," "]
[null,null,null,null,null," "," "," "," "]
[null,null,null,null,null," "," "," "," "]
[null,null,null,null,null," "," "," "," "]
[null,null,null,null,null," "," "," "," "]
[null,null,null,null,null," "," "," "," "]
[null,null,null,null,null," "," "," "," "]
[null,null,null,null,null," "," "," "," "]
[null,null,null,null,null," "," "," "," "]
[null,null,null,null,null," "," "," "," "]
[null,null,null,null,null," "," "," "," "]
[null,null,null,null,null," "," "," "," "]
[null,null,null,null,null," "," "," "," "]
[null,null,null,null,null," "," "," "," "]
[null,null,null,null,null," "," "," "," "]
[null,null,null,null,null," "," "," "," "]
[null,null,null,null,null," "," "," "," "]
[null,null,null,null,null," "," "," "," "]
[null,null,null,null,null," "," "," "," "]
[null,null,null,null,null," "," "," "," "]
[null,null,null,null,null," "," "," "," "]
[null,null,null,null,null," "," "," "," "]
[null,null,null,null,null," "," "," "," "]
[null,null,null,null,null," "," "," "," "]
[null,null,null,null,null," "," "," "," "]
[null,null,null,null,null," "," "," "," "]
[null,null,null,null,null," "," "," "," "]
[null,null,null,null,null," "," "," "," "]
[null,null,null,null,null," "," "," "," "]
[null,null,null,null,null," "," "," "," "]
[null,null,null,null,null," "," "," "," "]
[null,null,null,null,null," "," "," "," "]
[null,null,null,null,null," "," "," "," "]
[null,null,null,null,null," "," "," "," "]
[null,null,null,null,null," "," "," "," "]
[null,null,null,null,null," "," "," "," "]
[null,null,null,null,null," "," "," "," "]
[null,null,null,null,null," "," "," "," "]
[null,null,null,null,null," "," "," "," "]
[null,null,null,null,null," "," "," "," "]
[null,null,null,null,null," "," "," "," "]
[null,null,null,null,null," "," "," "," "]
[null,null,null,null,null,{"$f":"IF(A3459>0,B3459/100,\" \")","v":" "},{"$f":"IF(A3459>0,C3459/100,\" \")","v":" "},{"$f":"IF(A3459>0,D3459/100,\" \")","v":" "},{"$f":"IF(A3459>0,E3459/100,\" \")","v":" "}]
[null,null,null,null,null," "," "," "," "]
[null,null,null,null,null," "," "," "," "]
[null,null,null,null,null," "," "," "," "]
[null,null,null,null,null," "," "," "," "]
[null,null,null,null,null," "," "," "," "]
[null,null,null,null,null," "," "," "," "]
[null,null,null,null,null," "," "," "," "]
[null,null,null,null,null," "," "," "," "]
[null,null,null,null,null," "," "," "," "]
[null,null,null,null,null," "," "," "," "]
[null,null,null,null,null," "," "," "," "]
[null,null,null,null,null," "," "," "," "]
[null,null,null,null,null," "," "," "," "]
[null,null,null,null,null," "," "," "," "]
[null,null,null,null,null," "," "," "," "]
[null,null,null,null,null," "," "," "," "]
[null,null,null,null,null," "," "," "," "]
[null,null,null,null,null," "," "," "," "]
[null,null,null,null,null," "," "," "," "]
[null,null,null,null,null," "," "," "," "]
[null,null,null,null,null," "," "," "," "]
[null,null,null,null,null," "," "," "," "]
[null,null,null,null,null," "," "," "," "]
[null,null,null,null,null," "," "," "," "]
[null,null,null,null,null," "," "," "," "]
[null,null,null,null,null," "," "," "," "]
[null,null,null,null,null," "," "," "," "]
[null,null,null,null,null," "," "," "," "]
[null,null,null,null,null," "," "," "," "]
[null,null,null,null,null," "," "," "," "]
[null,null,null,null,null," "," "," "," "]
[null,null,null,null,null," "," "," "," "]
[null,null,null,null,null," "," "," "," "]
[null,null,null,null,null," "," "," "," "]
[null,null,null,null,null," "," "," "," "]
[null,null,null,null,null," "," "," "," "]
[null,null,null,null,null," "," "," "," "]
[null,null,null,null,null," "," "," "," "]
[null,null,null,null,null," "," "," "," "]
[null,null,null,null,null," "," "," "," "]
[null,null,null,null,null," "," "," "," "]
[null,null,null,null,null," "," "," "," "]
[null,null,null,null,null," "," "," "," "]
[null,null,null,null,null," "," "," "," "]
[null,null,null,null,null," "," "," "," "]
[null,null,null,null,null," "," "," "," "]
[null,null,null,null,null," "," "," "," "]
[null,null,null,null,null," "," "," "," "]
[null,null,null,null,null," "," "," "," "]
[null,null,null,null,null," "," "," "," "]
[null,null,null,null,null," "," "," "," "]
[null,null,null,null,null," "," "," "," "]
[null,null,null,null,null," "," "," "," "]
[null,null,null,null,null," "," "," "," "]
[null,null,null,null,null," "," "," "," "]
[null,null,null,null,null," "," "," "," "]
[null,null,null,null,null," "," "," "," "]
[null,null,null,null,null," "," "," "," "]
[null,null,null,null,null," "," "," "," "]
[null,null,null,null,null," "," "," "," "]
[null,null,null,null,null," "," "," "," "]
[null,null,null,null,null," "," "," "," "]
[null,null,null,null,null," "," "," "," "]
[null,null,null,null,null,{"$f":"IF(A3523>0,B3523/100,\" \")","v":" "},{"$f":"IF(A3523>0,C3523/100,\" \")","v":" "},{"$f":"IF(A3523>0,D3523/100,\" \")","v":" "},{"$f":"IF(A3523>0,E3523/100,\" \")","v":" "}]
[null,null,null,null,null," "," "," "," "]
[null,null,null,null,null," "," "," "," "]
[null,null,null,null,null," "," "," "," "]
[null,null,null,null,null," "," "," "," "]
[null,null,null,null,null," "," "," "," "]
[null,null,null,null,null," "," "," "," "]
[null,null,null,null,null," "," "," "," "]
[null,null,null,null,null," "," "," "," "]
[null,null,null,null,null," "," "," "," "]
[null,null,null,null,null," "," "," "," "]
[null,null,null,null,null," "," "," "," "]
[null,null,null,null,null," "," "," "," "]
[null,null,null,null,null," "," "," "," "]
[null,null,null,null,null," "," "," "," "]
[null,null,null,null,null," "," "," "," "]
[null,null,null,null,null," "," "," "," "]
[null,null,null,null,null," "," "," "," "]
[null,null,null,null,null," "," "," "," "]
[null,null,null,null,null," "," "," "," "]
[null,null,null,null,null," "," "," "," "]
[null,null,null,null,null," "," "," "," "]
[null,null,null,null,null," "," "," "," "]
[null,null,null,null,null," "," "," "," "]
[null,null,null,null,null," "," "," "," "]
[null,null,null,null,null," "," "," "," "]
[null,null,null,null,null," "," "," "," "]
[null,null,null,null,null," "," "," "," "]
[null,null,null,null,null," "," "," "," "]
[null,null,null,null,null," "," "," "," "]
[null,null,null,null,null," "," "," "," "]
[null,null,null,null,null," "," "," "," "]
[null,null,null,null,null," "," "," "," "]
[null,null,null,null,null," "," "," "," "]
[null,null,null,null,null," "," "," "," "]
[null,null,null,null,null," "," "," "," "]
[null,null,null,null,null," "," "," "," "]
[null,null,null,null,null," "," "," "," "]
[null,null,null,null,null," "," "," "," "]
[null,null,null,null,null," "," "," "," "]
[null,null,null,null,null," "," "," "," "]
[null,null,null,null,null," "," "," "," "]
[null,null,null,null,null," "," "," "," "]
[null,null,null,null,null," "," "," "," "]
[null,null,null,null,null," "," "," "," "]
[null,null,null,null,null," "," "," "," "]
[null,null,null,null,null," "," "," "," "]
[null,null,null,null,null," "," "," "," "]
[null,null,null,null,null," "," "," "," "]
[null,null,null,null,null," "," "," "," "]
[null,null,null,null,null," "," "," "," "]
[null,null,null,null,null," "," "," "," "]
[null,null,null,null,null," "," "," "," "]
[null,null,null,null,null," "," "," "," "]
[null,null,null,null,null," "," "," "," "]
[null,null,null,null,null," "," "," "," "]
[null,null,null,null,null," "," "," "," "]
[null,null,null,null,null," "," "," "," "]
[null,null,null,null,null," "," "," "," "]
[null,null,null,null,null," "," "," "," "]
[null,null,null,null,null," "," "," "," "]
[null,null,null,null,null," "," "," "," "]
[null,null,null,null,null," "," "," "," "]
[null,null,null,null,null," "," "," "," "]
[null,null,null,null,null,{"$f":"IF(A3587>0,B3587/100,\" \")","v":" "},{"$f":"IF(A3587>0,C3587/100,\" \")","v":" "},{"$f":"IF(A3587>0,D3587/100,\" \")","v":" "},{"$f":"IF(A3587>0,E3587/100,\" \")","v":" "}]
[null,null,null,null,null," "," "," "," "]
[null,null,null,null,null," "," "," "," "]
[null,null,null,null,null," "," "," "," "]
[null,null,null,null,null," "," "," "," "]
[null,null,null,null,null," "," "," "," "]
[null,null,null,null,null," "," "," "," "]
[null,null,null,null,null," "," "," "," "]
[null,null,null,null,null," "," "," "," "]
[null,null,null,null,null," "," "," "," "]
[null,null,null,null,null," "," "," "," "]
[null,null,null,null,null," "," "," "," "]
[null,null,null,null,null," "," "," "," "]
[null,null,null,null,null," "," "," "," "]
[null,null,null,null,null," "," "," "," "]
[null,null,null,null,null," "," "," "," "]
[null,null,null,null,null," "," "," "," "]
[null,null,null,null,null," "," "," "," "]
[null,null,null,null,null," "," "," "," "]
[null,null,null,null,null," "," "," "," "]
[null,null,null,null,null," "," "," "," "]
[null,null,null,null,null," "," "," "," "]
[null,null,null,null,null," "," "," "," "]
[null,null,null,null,null," "," "," "," "]
[null,null,null,null,null," "," "," "," "]
[null,null,null,null,null," "," "," "," "]
[null,null,null,null,null," "," "," "," "]
[null,null,null,null,null," "," "," "," "]
[null,null,null,null,null," "," "," "," "]
[null,null,null,null,null," "," "," "," "]
[null,null,null,null,null," "," "," "," "]
[null,null,null,null,null," "," "," "," "]
[null,null,null,null,null," "," "," "," "]
[null,null,null,null,null," "," "," "," "]
[null,null,null,null,null," "," "," "," "]
[null,null,null,null,null," "," "," "," "]
[null,null,null,null,null," "," "," "," "]
[null,null,null,null,null," "," "," "," "]
[null,null,null,null,null," "," "," "," "]
[null,null,null,null,null," "," "," "," "]
[null,null,null,null,null," "," "," "," "]
[null,null,null,null,null," "," "," "," "]
[null,null,null,null,null," "," "," "," "]
[null,null,null,null,null," "," "," "," "]
[null,null,null,null,null," "," "," "," "]
[null,null,null,null,null," "," "," "," "]
[null,null,null,null,null," "," "," "," "]
[null,null,null,null,null," "," "," "," "]
[null,null,null,null,null," "," "," "," "]
[null,null,null,null,null," "," "," "," "]
[null,null,null,null,null," "," "," "," "]
[null,null,null,null,null," "," "," "," "]
[null,null,null,null,null," "," "," "," "]
[null,null,null,null,null," "," "," "," "]
[null,null,null,null,null," "," "," "," "]
[null,null,null,null,null," "," "," "," "]
[null,null,null,null,null," "," "," "," "]
[null,null,null,null,null," "," "," "," "]
[null,null,null,null,null," "," "," "," "]
[null,null,null,null,null," "," "," "," "]
[null,null,null,null,null," "," "," "," "]
[null,null,null,null,null," "," "," "," "]
[null,null,null,null,null," "," "," "," "]
[null,null,null,null,null," "," "," "," "]
[null,null,null,null,null,{"$f":"IF(A3651>0,B3651/100,\" \")","v":" "},{"$f":"IF(A3651>0,C3651/100,\" \")","v":" "},{"$f":"IF(A3651>0,D3651/100,\" \")","v":" "},{"$f":"IF(A3651>0,E3651/100,\" \")","v":" "}]
[null,null,null,null,null," "," "," "," "]
[null,null,null,null,null," "," "," "," "]
[null,null,null,null,null," "," "," "," "]
[null,null,null,null,null," "," "," "," "]
[null,null,null,null,null," "," "," "," "]
[null,null,null,null,null," "," "," "," "]
[null,null,null,null,null," "," "," "," "]
[null,null,null,null,null," "," "," "," "]
[null,null,null,null,null," "," "," "," "]
[null,null,null,null,null," "," "," "," "]
[null,null,null,null,null," "," "," "," "]
[null,null,null,null,null," "," "," "," "]
[null,null,null,null,null," "," "," "," "]
[null,null,null,null,null," "," "," "," "]
[null,null,null,null,null," "," "," "," "]
[null,null,null,null,null," "," "," "," "]
[null,null,null,null,null," "," "," "," "]
[null,null,null,null,null," "," "," "," "]
[null,null,null,null,null," "," "," "," "]
[null,null,null,null,null," "," "," "," "]
[null,null,null,null,null," "," "," "," "]
[null,null,null,null,null," "," "," "," "]
[null,null,null,null,null," "," "," "," "]
[null,null,null,null,null," "," "," "," "]
[null,null,null,null,null," "," "," "," "]
[null,null,null,null,null," "," "," "," "]
[null,null,null,null,null," "," "," "," "]
[null,null,null,null,null," "," "," "," "]
[null,null,null,null,null," "," "," "," "]
[null,null,null,null,null," "," "," "," "]
[null,null,null,null,null," "," "," "," "]
[null,null,null,null,null," "," "," "," "]
[null,null,null,null,null," "," "," "," "]
[null,null,null,null,null," "," "," "," "]
[null,null,null,null,null," "," "," "," "]
[null,null,null,null,null," "," "," "," "]
[null,null,null,null,null," "," "," "," "]
[null,null,null,null,null," "," "," "," "]
[null,null,null,null,null," "," "," "," "]
[null,null,null,null,null," "," "," "," "]
[null,null,null,null,null," "," "," "," "]
[null,null,null,null,null," "," "," "," "]
[null,null,null,null,null," "," "," "," "]
[null,null,null,null,null," "," "," "," "]
[null,null,null,null,null," "," "," "," "]
[null,null,null,null,null," "," "," "," "]
[null,null,null,null,null," "," "," "," "]
[null,null,null,null,null," "," "," "," "]
[null,null,null,null,null," "," "," "," "]
[null,null,null,null,null," "," "," "," "]
[null,null,null,null,null," "," "," "," "]
[null,null,null,null,null," "," "," "," "]
[null,null,null,null,null," "," "," "," "]
[null,null,null,null,null," "," "," "," "]
[null,null,null,null,null," "," "," "," "]
[null,null,null,null,null," "," "," "," "]
[null,null,null,null,null," "," "," "," "]
[null,null,null,null,null," "," "," "," "]
[null,null,null,null,null," "," "," "," "]
[null,null,null,null,null," "," "," "," "]
[null,null,null,null,null," "," "," "," "]
[null,null,null,null,null," "," "," "," "]
[null,null,null,null,null," "," "," "," "]
[null,null,null,null,null,{"$f":"IF(A3715>0,B3715/100,\" \")","v":" "},{"$f":"IF(A3715>0,C3715/100,\" \")","v":" "},{"$f":"IF(A3715>0,D3715/100,\" \")","v":" "},{"$f":"IF(A3715>0,E3715/100,\" \")","v":" "}]
[null,null,null,null,null," "," "," "," "]
[null,null,null,null,null," "," "," "," "]
[null,null,null,null,null," "," "," "," "]
[null,null,null,null,null," "," "," "," "]
[null,null,null,null,null," "," "," "," "]
[null,null,null,null,null," "," "," "," "]
[null,null,null,null,null," "," "," "," "]
[null,null,null,null,null," "," "," "," "]
[null,null,null,null,null," "," "," "," "]
[null,null,null,null,null," "," "," "," "]
[null,null,null,null,null," "," "," "," "]
[null,null,null,null,null," "," "," "," "]
[null,null,null,null,null," "," "," "," "]
[null,null,null,null,null," "," "," "," "]
[null,null,null,null,null," "," "," "," "]
[null,null,null,null,null," "," "," "," "]
[null,null,null,null,null," "," "," "," "]
[null,null,null,null,null," "," "," "," "]
[null,null,null,null,null," "," "," "," "]
[null,null,null,null,null," "," "," "," "]
[null,null,null,null,null," "," "," "," "]
[null,null,null,null,null," "," "," "," "]
[null,null,null,null,null," "," "," "," "]
[null,null,null,null,null," "," "," "," "]
[null,null,null,null,null," "," "," "," "]
[null,null,null,null,null," "," "," "," "]
[null,null,null,null,null," "," "," "," "]
[null,null,null,null,null," "," "," "," "]
[null,null,null,null,null," "," "," "," "]
[null,null,null,null,null," "," "," "," "]
[null,null,null,null,null," "," "," "," "]
[null,null,null,null,null," "," "," "," "]
[null,null,null,null,null," "," "," "," "]
[null,null,null,null,null," "," "," "," "]
[null,null,null,null,null," "," "," "," "]
[null,null,null,null,null," "," "," "," "]
[null,null,null,null,null," "," "," "," "]
[null,null,null,null,null," "," "," "," "]
[null,null,null,null,null," "," "," "," "]
[null,null,null,null,null," "," "," "," "]
[null,null,null,null,null," "," "," "," "]
[null,null,null,null,null," "," "," "," "]
[null,null,null,null,null," "," "," "," "]
[null,null,null,null,null," "," "," "," "]
[null,null,null,null,null," "," "," "," "]
[null,null,null,null,null," "," "," "," "]
[null,null,null,null,null," "," "," "," "]
[null,null,null,null,null," "," "," "," "]
[null,null,null,null,null," "," "," "," "]
[null,null,null,null,null," "," "," "," "]
[null,null,null,null,null," "," "," "," "]
[null,null,null,null,null," "," "," "," "]
[null,null,null,null,null," "," "," "," "]
[null,null,null,null,null," "," "," "," "]
[null,null,null,null,null," "," "," "," "]
[null,null,null,null,null," "," "," "," "]
[null,null,null,null,null," "," "," "," "]
[null,null,null,null,null," "," "," "," "]
[null,null,null,null,null," "," "," "," "]
[null,null,null,null,null," "," "," "," "]
[null,null,null,null,null," "," "," "," "]
[null,null,null,null,null," "," "," "," "]
[null,null,null,null,null," "," "," "," "]
[null,null,null,null,null,{"$f":"IF(A3779>0,B3779/100,\" \")","v":" "},{"$f":"IF(A3779>0,C3779/100,\" \")","v":" "},{"$f":"IF(A3779>0,D3779/100,\" \")","v":" "},{"$f":"IF(A3779>0,E3779/100,\" \")","v":" "}]
[null,null,null,null,null," "," "," "," "]
[null,null,null,null,null," "," "," "," "]
[null,null,null,null,null," "," "," "," "]
[null,null,null,null,null," "," "," "," "]
[null,null,null,null,null," "," "," "," "]
[null,null,null,null,null," "," "," "," "]
[null,null,null,null,null," "," "," "," "]
[null,null,null,null,null," "," "," "," "]
[null,null,null,null,null," "," "," "," "]
[null,null,null,null,null," "," "," "," "]
[null,null,null,null,null," "," "," "," "]
[null,null,null,null,null," "," "," "," "]
[null,null,null,null,null," "," "," "," "]
[null,null,null,null,null," "," "," "," "]
[null,null,null,null,null," "," "," "," "]
[null,null,null,null,null," "," "," "," "]
[null,null,null,null,null," "," "," "," "]
[null,null,null,null,null," "," "," "," "]
[null,null,null,null,null," "," "," "," "]
[null,null,null,null,null," "," "," "," "]
[null,null,null,null,null," "," "," "," "]
[null,null,null,null,null," "," "," "," "]
[null,null,null,null,null," "," "," "," "]
[null,null,null,null,null," "," "," "," "]
[null,null,null,null,null," "," "," "," "]
[null,null,null,null,null," "," "," "," "]
[null,null,null,null,null," "," "," "," "]
[null,null,null,null,null," "," "," "," "]
[null,null,null,null,null," "," "," "," "]
[null,null,null,null,null," "," "," "," "]
[null,null,null,null,null," "," "," "," "]
[null,null,null,null,null," "," "," "," "]
[null,null,null,null,null," "," "," "," "]
[null,null,null,null,null," "," "," "," "]
[null,null,null,null,null," "," "," "," "]
[null,null,null,null,null," "," "," "," "]
[null,null,null,null,null," "," "," "," "]
[null,null,null,null,null," "," "," "," "]
[null,null,null,null,null," "," "," "," "]
[null,null,null,null,null," "," "," "," "]
[null,null,null,null,null," "," "," "," "]
[null,null,null,null,null," "," "," "," "]
[null,null,null,null,null," "," "," "," "]
[null,null,null,null,null," "," "," "," "]
[null,null,null,null,null," "," "," "," "]
[null,null,null,null,null," "," "," "," "]
[null,null,null,null,null," "," "," "," "]
[null,null,null,null,null," "," "," "," "]
[null,null,null,null,null," "," "," "," "]
[null,null,null,null,null," "," "," "," "]
[null,null,null,null,null," "," "," "," "]
[null,null,null,null,null," "," "," "," "]
[null,null,null,null,null," "," "," "," "]
[null,null,null,null,null," "," "," "," "]
[null,null,null,null,null," "," "," "," "]
[null,null,null,null,null," "," "," "," "]
[null,null,null,null,null," "," "," "," "]
[null,null,null,null,null," "," "," "," "]
[null,null,null,null,null," "," "," "," "]
[null,null,null,null,null," "," "," "," "]
[null,null,null,null,null," "," "," "," "]
[null,null,null,null,null," "," "," "," "]
[null,null,null,null,null," "," "," "," "]
[null,null,null,null,null,{"$f":"IF(A3843>0,B3843/100,\" \")","v":" "},{"$f":"IF(A3843>0,C3843/100,\" \")","v":" "},{"$f":"IF(A3843>0,D3843/100,\" \")","v":" "},{"$f":"IF(A3843>0,E3843/100,\" \")","v":" "}]
[null,null,null,null,null," "," "," "," "]
[null,null,null,null,null," "," "," "," "]
[null,null,null,null,null," "," "," "," "]
[null,null,null,null,null," "," "," "," "]
[null,null,null,null,null," "," "," "," "]
[null,null,null,null,null," "," "," "," "]
[null,null,null,null,null," "," "," "," "]
[null,null,null,null,null," "," "," "," "]
[null,null,null,null,null," "," "," "," "]
[null,null,null,null,null," "," "," "," "]
[null,null,null,null,null," "," "," "," "]
[null,null,null,null,null," "," "," "," "]
[null,null,null,null,null," "," "," "," "]
[null,null,null,null,null," "," "," "," "]
[null,null,null,null,null," "," "," "," "]
[null,null,null,null,null," "," "," "," "]
[null,null,null,null,null," "," "," "," "]
[null,null,null,null,null," "," "," "," "]
[null,null,null,null,null," "," "," "," "]
[null,null,null,null,null," "," "," "," "]
[null,null,null,null,null," "," "," "," "]
[null,null,null,null,null," "," "," "," "]
[null,null,null,null,null," "," "," "," "]
[null,null,null,null,null," "," "," "," "]
[null,null,null,null,null," "," "," "," "]
[null,null,null,null,null," "," "," "," "]
[null,null,null,null,null," "," "," "," "]
[null,null,null,null,null," "," "," "," "]
[null,null,null,null,null," "," "," "," "]
[null,null,null,null,null," "," "," "," "]
[null,null,null,null,null," "," "," "," "]
[null,null,null,null,null," "," "," "," "]
[null,null,null,null,null," "," "," "," "]
[null,null,null,null,null," "," "," "," "]
[null,null,null,null,null," "," "," "," "]
[null,null,null,null,null," "," "," "," "]
[null,null,null,null,null," "," "," "," "]
[null,null,null,null,null," "," "," "," "]
[null,null,null,null,null," "," "," "," "]
[null,null,null,null,null," "," "," "," "]
[null,null,null,null,null," "," "," "," "]
[null,null,null,null,null," "," "," "," "]
[null,null,null,null,null," "," "," "," "]
[null,null,null,null,null," "," "," "," "]
[null,null,null,null,null," "," "," "," "]
[null,null,null,null,null," "," "," "," "]
[null,null,null,null,null," "," "," "," "]
[null,null,null,null,null," "," "," "," "]
[null,null,null,null,null," "," "," "," "]
[null,null,null,null,null," "," "," "," "]
[null,null,null,null,null," "," "," "," "]
[null,null,null,null,null," "," "," "," "]
[null,null,null,null,null," "," "," "," "]
[null,null,null,null,null," "," "," "," "]
[null,null,null,null,null," "," "," "," "]
[null,null,null,null,null," "," "," "," "]
[null,null,null,null,null," "," "," "," "]
[null,null,null,null,null," "," "," "," "]
[null,null,null,null,null," "," "," "," "]
[null,null,null,null,null," "," "," "," "]
[null,null,null,null,null," "," "," "," "]
[null,null,null,null,null," "," "," "," "]
[null,null,null,null,null," "," "," "," "]
[null,null,null,null,null,{"$f":"IF(A3907>0,B3907/100,\" \")","v":" "},{"$f":"IF(A3907>0,C3907/100,\" \")","v":" "},{"$f":"IF(A3907>0,D3907/100,\" \")","v":" "},{"$f":"IF(A3907>0,E3907/100,\" \")","v":" "}]
[null,null,null,null,null," "," "," "," "]
[null,null,null,null,null," "," "," "," "]
[null,null,null,null,null," "," "," "," "]
[null,null,null,null,null," "," "," "," "]
[null,null,null,null,null," "," "," "," "]
[null,null,null,null,null," "," "," "," "]
[null,null,null,null,null," "," "," "," "]
[null,null,null,null,null," "," "," "," "]
[null,null,null,null,null," "," "," "," "]
[null,null,null,null,null," "," "," "," "]
[null,null,null,null,null," "," "," "," "]
[null,null,null,null,null," "," "," "," "]
[null,null,null,null,null," "," "," "," "]
[null,null,null,null,null," "," "," "," "]
[null,null,null,null,null," "," "," "," "]
[null,null,null,null,null," "," "," "," "]
[null,null,null,null,null," "," "," "," "]
[null,null,null,null,null," "," "," "," "]
[null,null,null,null,null," "," "," "," "]
[null,null,null,null,null," "," "," "," "]
[null,null,null,null,null," "," "," "," "]
[null,null,null,null,null," "," "," "," "]
[null,null,null,null,null," "," "," "," "]
[null,null,null,null,null," "," "," "," "]
[null,null,null,null,null," "," "," "," "]
[null,null,null,null,null," "," "," "," "]
[null,null,null,null,null," "," "," "," "]
[null,null,null,null,null," "," "," "," "]
[null,null,null,null,null," "," "," "," "]
[null,null,null,null,null," "," "," "," "]
[null,null,null,null,null," "," "," "," "]
[null,null,null,null,null," "," "," "," "]
[null,null,null,null,null," "," "," "," "]
[null,null,null,null,null," "," "," "," "]
[null,null,null,null,null," "," "," "," "]
[null,null,null,null,null," "," "," "," "]
[null,null,null,null,null," "," "," "," "]
[null,null,null,null,null," "," "," "," "]
[null,null,null,null,null," "," "," "," "]
[null,null,null,null,null," "," "," "," "]
[null,null,null,null,null," "," "," "," "]
[null,null,null,null,null," "," "," "," "]
[null,null,null,null,null," "," "," "," "]
[null,null,null,null,null," "," "," "," "]
[null,null,null,null,null," "," "," "," "]
[null,null,null,null,null," "," "," "," "]
[null,null,null,null,null," "," "," "," "]
[null,null,null,null,null," "," "," "," "]
[null,null,null,null,null," "," "," "," "]
[null,null,null,null,null," "," "," "," "]
[null,null,null,null,null," "," "," "," "]
[null,null,null,null,null," "," "," "," "]
[null,null,null,null,null," "," "," "," "]
[null,null,null,null,null," "," "," "," "]
[null,null,null,null,null," "," "," "," "]
[null,null,null,null,null," "," "," "," "]
[null,null,null,null,null," "," "," "," "]
[null,null,null,null,null," "," "," "," "]
[null,null,null,null,null," "," "," "," "]
[null,null,null,null,null," "," "," "," "]
[null,null,null,null,null," "," "," "," "]
[null,null,null,null,null," "," "," "," "]
[null,null,null,null,null," "," "," "," "]
[null,null,null,null,null,{"$f":"IF(A3971>0,B3971/100,\" \")","v":" "},{"$f":"IF(A3971>0,C3971/100,\" \")","v":" "},{"$f":"IF(A3971>0,D3971/100,\" \")","v":" "},{"$f":"IF(A3971>0,E3971/100,\" \")","v":" "}]
[null,null,null,null,null," "," "," "," "]
[null,null,null,null,null," "," "," "," "]
[null,null,null,null,null," "," "," "," "]
[null,null,null,null,null," "," "," "," "]
[null,null,null,null,null," "," "," "," "]
[null,null,null,null,null," "," "," "," "]
[null,null,null,null,null," "," "," "," "]
[null,null,null,null,null," "," "," "," "]
[null,null,null,null,null," "," "," "," "]
[null,null,null,null,null," "," "," "," "]
[null,null,null,null,null," "," "," "," "]
[null,null,null,null,null," "," "," "," "]
[null,null,null,null,null," "," "," "," "]
[null,null,null,null,null," "," "," "," "]
[null,null,null,null,null," "," "," "," "]
[null,null,null,null,null," "," "," "," "]
[null,null,null,null,null," "," "," "," "]
[null,null,null,null,null," "," "," "," "]
[null,null,null,null,null," "," "," "," "]
[null,null,null,null,null," "," "," "," "]
[null,null,null,null,null," "," "," "," "]
[null,null,null,null,null," "," "," "," "]
[null,null,null,null,null," "," "," "," "]
[null,null,null,null,null," "," "," "," "]
[null,null,null,null,null," "," "," "," "]
[null,null,null,null,null," "," "," "," "]
[null,null,null,null,null," "," "," "," "]
[null,null,null,null,null," "," "," "," "]
[null,null,null,null,null," "," "," "," "]
[null,null,null,null,null," "," "," "," "]
[null,null,null,null,null," "," "," "," "]
[null,null,null,null,null," "," "," "," "]
[null,null,null,null,null," "," "," "," "]
[null,null,null,null,null," "," "," "," "]
[null,null,null,null,null," "," "," "," "]
[null,null,null,null,null," "," "," "," "]
[null,null,null,null,null," "," "," "," "]
[null,null,null,null,null," "," "," "," "]
[null,null,null,null,null," "," "," "," "]
[null,null,null,null,null," "," "," "," "]
[null,null,null,null,null," "," "," "," "]
[null,null,null,null,null," "," "," "," "]
[null,null,null,null,null," "," "," "," "]
[null,null,null,null,null," "," "," "," "]
[null,null,null,null,null," "," "," "," "]
[null,null,null,null,null," "," "," "," "]
[null,null,null,null,null," "," "," "," "]
[null,null,null,null,null," "," "," "," "]
[null,null,null,null,null," "," "," "," "]
[null,null,null,null,null," "," "," "," "]
[null,null,null,null,null," "," "," "," "]
[null,null,null,null,null," "," "," "," "]
[null,null,null,null,null," "," "," "," "]
[null,null,null,null,null," "," "," "," "]
[null,null,null,null,null," "," "," "," "]
[null,null,null,null,null," "," "," "," "]
[null,null,null,null,null," "," "," "," "]
[null,null,null,null,null," "," "," "," "]
[null,null,null,null,null," "," "," "," "]
[null,null,null,null,null," "," "," "," "]
[null,null,null,null,null," "," "," "," "]
[null,null,null,null,null," "," "," "," "]
[null,null,null,null,null," "," "," "," "]
[null,null,null,null,null,{"$f":"IF(A4035>0,B4035/100,\" \")","v":" "},{"$f":"IF(A4035>0,C4035/100,\" \")","v":" "},{"$f":"IF(A4035>0,D4035/100,\" \")","v":" "},{"$f":"IF(A4035>0,E4035/100,\" \")","v":" "}]
[null,null,null,null,null," "," "," "," "]
[null,null,null,null,null," "," "," "," "]
[null,null,null,null,null," "," "," "," "]
[null,null,null,null,null," "," "," "," "]
[null,null,null,null,null," "," "," "," "]
[null,null,null,null,null," "," "," "," "]
[null,null,null,null,null," "," "," "," "]
[null,null,null,null,null," "," "," "," "]
[null,null,null,null,null," "," "," "," "]
[null,null,null,null,null," "," "," "," "]
[null,null,null,null,null," "," "," "," "]
[null,null,null,null,null," "," "," "," "]
[null,null,null,null,null," "," "," "," "]
[null,null,null,null,null," "," "," "," "]
[null,null,null,null,null," "," "," "," "]
[null,null,null,null,null," "," "," "," "]
[null,null,null,null,null," "," "," "," "]
[null,null,null,null,null," "," "," "," "]
[null,null,null,null,null," "," "," "," "]
[null,null,null,null,null," "," "," "," "]
[null,null,null,null,null," "," "," "," "]
[null,null,null,null,null," "," "," "," "]
[null,null,null,null,null," "," "," "," "]
[null,null,null,null,null," "," "," "," "]
[null,null,null,null,null," "," "," "," "]
[null,null,null,null,null," "," "," "," "]
[null,null,null,null,null," "," "," "," "]
[null,null,null,null,null," "," "," "," "]
[null,null,null,null,null," "," "," "," "]
[null,null,null,null,null," "," "," "," "]
[null,null,null,null,null," "," "," "," "]
[null,null,null,null,null," "," "," "," "]
[null,null,null,null,null," "," "," "," "]
[null,null,null,null,null," "," "," "," "]
[null,null,null,null,null," "," "," "," "]
[null,null,null,null,null," "," "," "," "]
[null,null,null,null,null," "," "," "," "]
[null,null,null,null,null," "," "," "," "]
[null,null,null,null,null," "," "," "," "]
[null,null,null,null,null," "," "," "," "]
[null,null,null,null,null," "," "," "," "]
[null,null,null,null,null," "," "," "," "]
[null,null,null,null,null," "," "," "," "]
[null,null,null,null,null," "," "," "," "]
[null,null,null,null,null," "," "," "," "]
[null,null,null,null,null," "," "," "," "]
[null,null,null,null,null," "," "," "," "]
[null,null,null,null,null," "," "," "," "]
[null,null,null,null,null," "," "," "," "]
[null,null,null,null,null," "," "," "," "]
[null,null,null,null,null," "," "," "," "]
[null,null,null,null,null," "," "," "," "]
[null,null,null,null,null," "," "," "," "]
[null,null,null,null,null," "," "," "," "]
[null,null,null,null,null," "," "," "," "]
[null,null,null,null,null," "," "," "," "]
[null,null,null,null,null," "," "," "," "]
[null,null,null,null,null," "," "," "," "]
[null,null,null,null,null," "," "," "," "]
[null,null,null,null,null," "," "," "," "]
[null,null,null,null,null," "," "," "," "]
[null,null,null,null,null," "," "," "," "]
[null,null,null,null,null," "," "," "," "]
[null,null,null,null,null,{"$f":"IF(A4099>0,B4099/100,\" \")","v":" "},{"$f":"IF(A4099>0,C4099/100,\" \")","v":" "},{"$f":"IF(A4099>0,D4099/100,\" \")","v":" "},{"$f":"IF(A4099>0,E4099/100,\" \")","v":" "}]
[null,null,null,null,null," "," "," "," "]
[null,null,null,null,null," "," "," "," "]
[null,null,null,null,null," "," "," "," "]
[null,null,null,null,null," "," "," "," "]
[null,null,null,null,null," "," "," "," "]
[null,null,null,null,null," "," "," "," "]
[null,null,null,null,null," "," "," "," "]
[null,null,null,null,null," "," "," "," "]
[null,null,null,null,null," "," "," "," "]
[null,null,null,null,null," "," "," "," "]
[null,null,null,null,null," "," "," "," "]
[null,null,null,null,null," "," "," "," "]
[null,null,null,null,null," "," "," "," "]
[null,null,null,null,null," "," "," "," "]
[null,null,null,null,null," "," "," "," "]
[null,null,null,null,null," "," "," "," "]
[null,null,null,null,null," "," "," "," "]
[null,null,null,null,null," "," "," "," "]
[null,null,null,null,null," "," "," "," "]
[null,null,null,null,null," "," "," "," "]
[null,null,null,null,null," "," "," "," "]
[null,null,null,null,null," "," "," "," "]
[null,null,null,null,null," "," "," "," "]
[null,null,null,null,null," "," "," "," "]
[null,null,null,null,null," "," "," "," "]
[null,null,null,null,null," "," "," "," "]
[null,null,null,null,null," "," "," "," "]
[null,null,null,null,null," "," "," "," "]
[null,null,null,null,null," "," "," "," "]
[null,null,null,null,null," "," "," "," "]
[null,null,null,null,null," "," "," "," "]
[null,null,null,null,null," "," "," "," "]
[null,null,null,null,null," "," "," "," "]
[null,null,null,null,null," "," "," "," "]
[null,null,null,null,null," "," "," "," "]
[null,null,null,null,null," "," "," "," "]
[null,null,null,null,null," "," "," "," "]
[null,null,null,null,null," "," "," "," "]
[null,null,null,null,null," "," "," "," "]
[null,null,null,null,null," "," "," "," "]
[null,null,null,null,null," "," "," "," "]
[null,null,null,null,null," "," "," "," "]
[null,null,null,null,null," "," "," "," "]
[null,null,null,null,null," "," "," "," "]
[null,null,null,null,null," "," "," "," "]
[null,null,null,null,null," "," "," "," "]
[null,null,null,null,null," "," "," "," "]
[null,null,null,null,null," "," "," "," "]
[null,null,null,null,null," "," "," "," "]
[null,null,null,null,null," "," "," "," "]
[null,null,null,null,null," "," "," "," "]
[null,null,null,null,null," "," "," "," "]
[null,null,null,null,null," "," "," "," "]
[null,null,null,null,null," "," "," "," "]
[null,null,null,null,null," "," "," "," "]
[null,null,null,null,null," "," "," "," "]
[null,null,null,null,null," "," "," "," "]
[null,null,null,null,null," "," "," "," "]
[null,null,null,null,null," "," "," "," "]
[null,null,null,null,null," "," "," "," "]
[null,null,null,null,null," "," "," "," "]
[null,null,null,null,null," "," "," "," "]
[null,null,null,null,null," "," "," "," "]
[null,null,null,null,null,{"$f":"IF(A4163>0,B4163/100,\" \")","v":" "},{"$f":"IF(A4163>0,C4163/100,\" \")","v":" "},{"$f":"IF(A4163>0,D4163/100,\" \")","v":" "},{"$f":"IF(A4163>0,E4163/100,\" \")","v":" "}]
[null,null,null,null,null," "," "," "," "]
[null,null,null,null,null," "," "," "," "]
[null,null,null,null,null," "," "," "," "]
[null,null,null,null,null," "," "," "," "]
[null,null,null,null,null," "," "," "," "]
[null,null,null,null,null," "," "," "," "]
[null,null,null,null,null," "," "," "," "]
[null,null,null,null,null," "," "," "," "]
[null,null,null,null,null," "," "," "," "]
[null,null,null,null,null," "," "," "," "]
[null,null,null,null,null," "," "," "," "]
[null,null,null,null,null," "," "," "," "]
[null,null,null,null,null," "," "," "," "]
[null,null,null,null,null," "," "," "," "]
[null,null,null,null,null," "," "," "," "]
[null,null,null,null,null," "," "," "," "]
[null,null,null,null,null," "," "," "," "]
[null,null,null,null,null," "," "," "," "]
[null,null,null,null,null," "," "," "," "]
[null,null,null,null,null," "," "," "," "]
[null,null,null,null,null," "," "," "," "]
[null,null,null,null,null," "," "," "," "]
[null,null,null,null,null," "," "," "," "]
[null,null,null,null,null," "," "," "," "]
[null,null,null,null,null," "," "," "," "]
[null,null,null,null,null," "," "," "," "]
[null,null,null,null,null," "," "," "," "]
[null,null,null,null,null," "," "," "," "]
[null,null,null,null,null," "," "," "," "]
[null,null,null,null,null," "," "," "," "]
[null,null,null,null,null," "," "," "," "]
[null,null,null,null,null," "," "," "," "]
[null,null,null,null,null," "," "," "," "]
[null,null,null,null,null," "," "," "," "]
[null,null,null,null,null," "," "," "," "]
[null,null,null,null,null," "," "," "," "]
[null,null,null,null,null," "," "," "," "]
[null,null,null,null,null," "," "," "," "]
[null,null,null,null,null," "," "," "," "]
[null,null,null,null,null," "," "," "," "]
[null,null,null,null,null," "," "," "," "]
[null,null,null,null,null," "," "," "," "]
[null,null,null,null,null," "," "," "," "]
[null,null,null,null,null," "," "," "," "]
[null,null,null,null,null," "," "," "," "]
[null,null,null,null,null," "," "," "," "]
[null,null,null,null,null," "," "," "," "]
[null,null,null,null,null," "," "," "," "]
[null,null,null,null,null," "," "," "," "]
[null,null,null,null,null," "," "," "," "]
[null,null,null,null,null," "," "," "," "]
[null,null,null,null,null," "," "," "," "]
[null,null,null,null,null," "," "," "," "]
[null,null,null,null,null," "," "," "," "]
[null,null,null,null,null," "," "," "," "]
[null,null,null,null,null," "," "," "," "]
[null,null,null,null,null," "," "," "," "]
[null,null,null,null,null," "," "," "," "]
[null,null,null,null,null," "," "," "," "]
[null,null,null,null,null," "," "," "," "]
[null,null,null,null,null," "," "," "," "]
[null,null,null,null,null," "," "," "," "]
[null,null,null,null,null," "," "," "," "]
[null,null,null,null,null,{"$f":"IF(A4227>0,B4227/100,\" \")","v":" "},{"$f":"IF(A4227>0,C4227/100,\" \")","v":" "},{"$f":"IF(A4227>0,D4227/100,\" \")","v":" "},{"$f":"IF(A4227>0,E4227/100,\" \")","v":" "}]
[null,null,null,null,null," "," "," "," "]
[null,null,null,null,null," "," "," "," "]
[null,null,null,null,null," "," "," "," "]
[null,null,null,null,null," "," "," "," "]
[null,null,null,null,null," "," "," "," "]
[null,null,null,null,null," "," "," "," "]
[null,null,null,null,null," "," "," "," "]
[null,null,null,null,null," "," "," "," "]
[null,null,null,null,null," "," "," "," "]
[null,null,null,null,null," "," "," "," "]
[null,null,null,null,null," "," "," "," "]
[null,null,null,null,null," "," "," "," "]
[null,null,null,null,null," "," "," "," "]
[null,null,null,null,null," "," "," "," "]
[null,null,null,null,null," "," "," "," "]
[null,null,null,null,null," "," "," "," "]
[null,null,null,null,null," "," "," "," "]
[null,null,null,null,null," "," "," "," "]
[null,null,null,null,null," "," "," "," "]
[null,null,null,null,null," "," "," "," "]
[null,null,null,null,null," "," "," "," "]
[null,null,null,null,null," "," "," "," "]
[null,null,null,null,null," "," "," "," "]
[null,null,null,null,null," "," "," "," "]
[null,null,null,null,null," "," "," "," "]
[null,null,null,null,null," "," "," "," "]
[null,null,null,null,null," "," "," "," "]
[null,null,null,null,null," "," "," "," "]
[null,null,null,null,null," "," "," "," "]
[null,null,null,null,null," "," "," "," "]
[null,null,null,null,null," "," "," "," "]
[null,null,null,null,null," "," "," "," "]
[null,null,null,null,null," "," "," "," "]
[null,null,null,null,null," "," "," "," "]
[null,null,null,null,null," "," "," "," "]
[null,null,null,null,null," "," "," "," "]
[null,null,null,null,null," "," "," "," "]
[null,null,null,null,null," "," "," "," "]
[null,null,null,null,null," "," "," "," "]
[null,null,null,null,null," "," "," "," "]
[null,null,null,null,null," "," "," "," "]
[null,null,null,null,null," "," "," "," "]
[null,null,null,null,null," "," "," "," "]
[null,null,null,null,null," "," "," "," "]
[null,null,null,null,null," "," "," "," "]
[null,null,null,null,null," "," "," "," "]
[null,null,null,null,null," "," "," "," "]
[null,null,null,null,null," "," "," "," "]
[null,null,null,null,null," "," "," "," "]
[null,null,null,null,null," "," "," "," "]
[null,null,null,null,null," "," "," "," "]
[null,null,null,null,null," "," "," "," "]
[null,null,null,null,null," "," "," "," "]
[null,null,null,null,null," "," "," "," "]
[null,null,null,null,null," "," "," "," "]
[null,null,null,null,null," "," "," "," "]
[null,null,null,null,null," "," "," "," "]
[null,null,null,null,null," "," "," "," "]
[null,null,null,null,null," "," "," "," "]
[null,null,null,null,null," "," "," "," "]
[null,null,null,null,null," "," "," "," "]
[null,null,null,null,null," "," "," "," "]
[null,null,null,null,null," "," "," "," "]
[null,null,null,null,null,{"$f":"IF(A4291>0,B4291/100,\" \")","v":" "},{"$f":"IF(A4291>0,C4291/100,\" \")","v":" "},{"$f":"IF(A4291>0,D4291/100,\" \")","v":" "},{"$f":"IF(A4291>0,E4291/100,\" \")","v":" "}]
[null,null,null,null,null," "," "," "," "]
[null,null,null,null,null," "," "," "," "]
[null,null,null,null,null," "," "," "," "]
[null,null,null,null,null," "," "," "," "]
[null,null,null,null,null," "," "," "," "]
[null,null,null,null,null," "," "," "," "]
[null,null,null,null,null," "," "," "," "]
[null,null,null,null,null," "," "," "," "]
[null,null,null,null,null," "," "," "," "]
[null,null,null,null,null," "," "," "," "]
[null,null,null,null,null," "," "," "," "]
[null,null,null,null,null," "," "," "," "]
[null,null,null,null,null," "," "," "," "]
[null,null,null,null,null," "," "," "," "]
[null,null,null,null,null," "," "," "," "]
[null,null,null,null,null," "," "," "," "]
[null,null,null,null,null," "," "," "," "]
[null,null,null,null,null," "," "," "," "]
[null,null,null,null,null," "," "," "," "]
[null,null,null,null,null," "," "," "," "]
[null,null,null,null,null," "," "," "," "]
[null,null,null,null,null," "," "," "," "]
[null,null,null,null,null," "," "," "," "]
[null,null,null,null,null," "," "," "," "]
[null,null,null,null,null," "," "," "," "]
[null,null,null,null,null," "," "," "," "]
[null,null,null,null,null," "," "," "," "]
[null,null,null,null,null," "," "," "," "]
[null,null,null,null,null," "," "," "," "]
[null,null,null,null,null," "," "," "," "]
[null,null,null,null,null," "," "," "," "]
[null,null,null,null,null," "," "," "," "]
[null,null,null,null,null," "," "," "," "]
[null,null,null,null,null," "," "," "," "]
[null,null,null,null,null," "," "," "," "]
[null,null,null,null,null," "," "," "," "]
[null,null,null,null,null," "," "," "," "]
[null,null,null,null,null," "," "," "," "]
[null,null,null,null,null," "," "," "," "]
[null,null,null,null,null," "," "," "," "]
[null,null,null,null,null," "," "," "," "]
[null,null,null,null,null," "," "," "," "]
[null,null,null,null,null," "," "," "," "]
[null,null,null,null,null," "," "," "," "]
[null,null,null,null,null," "," "," "," "]
[null,null,null,null,null," "," "," "," "]
[null,null,null,null,null," "," "," "," "]
[null,null,null,null,null," "," "," "," "]
[null,null,null,null,null," "," "," "," "]
[null,null,null,null,null," "," "," "," "]
[null,null,null,null,null," "," "," "," "]
[null,null,null,null,null," "," "," "," "]
[null,null,null,null,null," "," "," "," "]
[null,null,null,null,null," "," "," "," "]
[null,null,null,null,null," "," "," "," "]
[null,null,null,null,null," "," "," "," "]
[null,null,null,null,null," "," "," "," "]
[null,null,null,null,null," "," "," "," "]
[null,null,null,null,null," "," "," "," "]
[null,null,null,null,null," "," "," "," "]
[null,null,null,null,null," "," "," "," "]
[null,null,null,null,null," "," "," "," "]
[null,null,null,null,null," "," "," "," "]
[null,null,null,null,null,{"$f":"IF(A4355>0,B4355/100,\" \")","v":" "},{"$f":"IF(A4355>0,C4355/100,\" \")","v":" "},{"$f":"IF(A4355>0,D4355/100,\" \")","v":" "},{"$f":"IF(A4355>0,E4355/100,\" \")","v":" "}]
[null,null,null,null,null," "," "," "," "]
[null,null,null,null,null," "," "," "," "]
[null,null,null,null,null," "," "," "," "]
[null,null,null,null,null," "," "," "," "]
[null,null,null,null,null," "," "," "," "]
[null,null,null,null,null," "," "," "," "]
[null,null,null,null,null," "," "," "," "]
[null,null,null,null,null," "," "," "," "]
[null,null,null,null,null," "," "," "," "]
[null,null,null,null,null," "," "," "," "]
[null,null,null,null,null," "," "," "," "]
[null,null,null,null,null," "," "," "," "]
[null,null,null,null,null," "," "," "," "]
[null,null,null,null,null," "," "," "," "]
[null,null,null,null,null," "," "," "," "]
[null,null,null,null,null," "," "," "," "]
[null,null,null,null,null," "," "," "," "]
[null,null,null,null,null," "," "," "," "]
[null,null,null,null,null," "," "," "," "]
[null,null,null,null,null," "," "," "," "]
[null,null,null,null,null," "," "," "," "]
[null,null,null,null,null," "," "," "," "]
[null,null,null,null,null," "," "," "," "]
[null,null,null,null,null," "," "," "," "]
[null,null,null,null,null," "," "," "," "]
[null,null,null,null,null," "," "," "," "]
[null,null,null,null,null," "," "," "," "]
[null,null,null,null,null," "," "," "," "]
[null,null,null,null,null," "," "," "," "]
[null,null,null,null,null," "," "," "," "]
[null,null,null,null,null," "," "," "," "]
[null,null,null,null,null," "," "," "," "]
[null,null,null,null,null," "," "," "," "]
[null,null,null,null,null," "," "," "," "]
[null,null,null,null,null," "," "," "," "]
[null,null,null,null,null," "," "," "," "]
[null,null,null,null,null," "," "," "," "]
[null,null,null,null,null," "," "," "," "]
[null,null,null,null,null," "," "," "," "]
[null,null,null,null,null," "," "," "," "]
[null,null,null,null,null," "," "," "," "]
[null,null,null,null,null," "," "," "," "]
[null,null,null,null,null," "," "," "," "]
[null,null,null,null,null," "," "," "," "]
[null,null,null,null,null," "," "," "," "]
[null,null,null,null,null," "," "," "," "]
[null,null,null,null,null," "," "," "," "]
[null,null,null,null,null," "," "," "," "]
[null,null,null,null,null," "," "," "," "]
[null,null,null,null,null," "," "," "," "]
[null,null,null,null,null," "," "," "," "]
[null,null,null,null,null," "," "," "," "]
[null,null,null,null,null," "," "," "," "]
[null,null,null,null,null," "," "," "," "]
[null,null,null,null,null," "," "," "," "]
[null,null,null,null,null," "," "," "," "]
[null,null,null,null,null," "," "," "," "]
[null,null,null,null,null," "," "," "," "]
[null,null,null,null,null," "," "," "," "]
[null,null,null,null,null," "," "," "," "]
[null,null,null,null,null," "," "," "," "]
[null,null,null,null,null," "," "," "," "]
[null,null,null,null,null," "," "," "," "]
[null,null,null,null,null,{"$f":"IF(A4419>0,B4419/100,\" \")","v":" "},{"$f":"IF(A4419>0,C4419/100,\" \")","v":" "},{"$f":"IF(A4419>0,D4419/100,\" \")","v":" "},{"$f":"IF(A4419>0,E4419/100,\" \")","v":" "}]
[null,null,null,null,null," "," "," "," "]
[null,null,null,null,null," "," "," "," "]
[null,null,null,null,null," "," "," "," "]
[null,null,null,null,null," "," "," "," "]
[null,null,null,null,null," "," "," "," "]
[null,null,null,null,null," "," "," "," "]
[null,null,null,null,null," "," "," "," "]
[null,null,null,null,null," "," "," "," "]
[null,null,null,null,null," "," "," "," "]
[null,null,null,null,null," "," "," "," "]
[null,null,null,null,null," "," "," "," "]
[null,null,null,null,null," "," "," "," "]
[null,null,null,null,null," "," "," "," "]
[null,null,null,null,null," "," "," "," "]
[null,null,null,null,null," "," "," "," "]
[null,null,null,null,null," "," "," "," "]
[null,null,null,null,null," "," "," "," "]
[null,null,null,null,null," "," "," "," "]
[null,null,null,null,null," "," "," "," "]
[null,null,null,null,null," "," "," "," "]
[null,null,null,null,null," "," "," "," "]
[null,null,null,null,null," "," "," "," "]
[null,null,null,null,null," "," "," "," "]
[null,null,null,null,null," "," "," "," "]
[null,null,null,null,null," "," "," "," "]
[null,null,null,null,null," "," "," "," "]
[null,null,null,null,null," "," "," "," "]
[null,null,null,null,null," "," "," "," "]
[null,null,null,null,null," "," "," "," "]
[null,null,null,null,null," "," "," "," "]
[null,null,null,null,null," "," "," "," "]
[null,null,null,null,null," "," "," "," "]
[null,null,null,null,null," "," "," "," "]
[null,null,null,null,null," "," "," "," "]
[null,null,null,null,null," "," "," "," "]
[null,null,null,null,null," "," "," "," "]
[null,null,null,null,null," "," "," "," "]
[null,null,null,null,null," "," "," "," "]
[null,null,null,null,null," "," "," "," "]
[null,null,null,null,null," "," "," "," "]
[null,null,null,null,null," "," "," "," "]
[null,null,null,null,null," "," "," "," "]
[null,null,null,null,null," "," "," "," "]
[null,null,null,null,null," "," "," "," "]
[null,null,null,null,null," "," "," "," "]
[null,null,null,null,null," "," "," "," "]
[null,null,null,null,null," "," "," "," "]
[null,null,null,null,null," "," "," "," "]
[null,null,null,null,null," "," "," "," "]
[null,null,null,null,null," "," "," "," "]
[null,null,null,null,null," "," "," "," "]
[null,null,null,null,null," "," "," "," "]
[null,null,null,null,null," "," "," "," "]
[null,null,null,null,null," "," "," "," "]
[null,null,null,null,null," "," "," "," "]
[null,null,null,null,null," "," "," "," "]
[null,null,null,null,null," "," "," "," "]
[null,null,null,null,null," "," "," "," "]
[null,null,null,null,null," "," "," "," "]
[null,null,null,null,null," "," "," "," "]
[null,null,null,null,null," "," "," "," "]
[null,null,null,null,null," "," "," "," "]
[null,null,null,null,null," "," "," "," "]
[null,null,null,null,null,{"$f":"IF(A4483>0,B4483/100,\" \")","v":" "},{"$f":"IF(A4483>0,C4483/100,\" \")","v":" "},{"$f":"IF(A4483>0,D4483/100,\" \")","v":" "},{"$f":"IF(A4483>0,E4483/100,\" \")","v":" "}]
[null,null,null,null,null," "," "," "," ",null,null,null,"Fama French Regression"]
[null,null,null,null,null," "," "," "," ",null,null,null,"SUMMARY OUTPUT"]
[null,null,null,null,null," "," "," "," "]
[null,null,null,null,null," "," "," "," "]
[null,null,null,null,null," "," "," "," "]
[null,null,null,null,null," "," "," "," "]
[null,null,null,null,null," "," "," "," "]
[null,null,null,null,null," "," "," "," "]
[null,null,null,null,null," "," "," "," "]
[null,null,null,null,null," "," "," "," "]
[null,null,null,null,null," "," "," "," "]
[null,null,null,null,null," "," "," "," "]
[null,null,null,null,null," "," "," "," "]
[null,null,null,null,null," "," "," "," "]
[null,null,null,null,null," "," "," "," "]
[null,null,null,null,null," "," "," "," "]
[null,null,null,null,null," "," "," "," "]
[null,null,null,null,null," "," "," "," "]
[null,null,null,null,null," "," "," "," "]
[null,null,null,null,null," "," "," "," "]
[null,null,null,null,null," "," "," "," "]
[null,null,null,null,null," "," "," "," "]
[null,null,null,null,null," "," "," "," "]
[null,null,null,null,null," "," "," "," "]
[null,null,null,null,null," "," "," "," ",null,null,null,"CAPM Regression"]
[null,null,null,null,null," "," "," "," ",null,null,null,"SUMMARY OUTPUT"]
[null,null,null,null,null," "," "," "," "]
[null,null,null,null,null," "," "," "," "]
[null,null,null,null,null," "," "," "," "]
[null,null,null,null,null," "," "," "," "]
[null,null,null,null,null," "," "," "," "]
[null,null,null,null,null," "," "," "," "]
[null,null,null,null,null," "," "," "," "]
[null,null,null,null,null," "," "," "," "]
[null,null,null,null,null," "," "," "," "]
[null,null,null,null,null," "," "," "," "]
[null,null,null,null,null," "," "," "," "]
[null,null,null,null,null," "," "," "," "]
[null,null,null,null,null," "," "," "," "]
[null,null,null,null,null," "," "," "," "]
[null,null,null,null,null," "," "," "," "]
[null,null,null,null,null," "," "," "," "]
[null,null,null,null,null," "," "," "," "]
[null,null,null,null,null," "," "," "," "]
[null,null,null,null,null," "," "," "," "]
[null,null,null,null,null," "," "," "," "]
[null,null,null,null,null," "," "," "," "]
[null,null,null,null,null," "," "," "," "]
[null,null,null,null,null," "," "," "," "]
[null,null,null,null,null," "," "," "," "]
[null,null,null,null,null," "," "," "," "]
[null,null,null,null,null," "," "," "," ",null,null,null,"Monthly Ave",{"$f":"AVERAGE(F2:F5000)","v":{"$error":"#VALUE!"}},{"$f":"AVERAGE(G2:G5000)","v":{"$error":"#DIV/0!"}},{"$f":"AVERAGE(H2:H5000)","v":{"$error":"#DIV/0!"}}]
[null,null,null,null,null," "," "," "," ",null,null,null,"Annualized Ave",{"$f":"(1+N4535)^52-1","v":{"$error":"#VALUE!"}},{"$f":"(1+O4535)^52-1","v":{"$error":"#DIV/0!"}},{"$error":"#DIV/0!"}]
[null,null,null,null,null," "," "," "," ",null,null,null,"Current Rf",null,null,null,{"$f":"VLOOKUP(LARGE(A4578:A5001,1),A3527:I5001,9)","v":{"$error":"#NUM!"}}]
[null,null,null,null,null," "," "," "," ",null,null,null,"Annualized Rf",null,null,null,{"$f":"(1+Q4537)^52-1","v":{"$error":"#NUM!"}}]
[null,null,null,null,null," "," "," "," "]
[null,null,null,null,null," "," "," "," "]
[null,null,null,null,null," "," "," "," "]
[null,null,null,null,null," "," "," "," "]
[null,null,null,null,null," "," "," "," "]
[null,null,null,null,null," "," "," "," "]
[null,null,null,null,null," "," "," "," "]
[null,null,null,null,null," "," "," "," "]
[null,null,null,null,null,{"$f":"IF(A4547>0,B4547/100,\" \")","v":" "},{"$f":"IF(A4547>0,C4547/100,\" \")","v":" "},{"$f":"IF(A4547>0,D4547/100,\" \")","v":" "},{"$f":"IF(A4547>0,E4547/100,\" \")","v":" "}]
[null,null,null,null,null," "," "," "," "]
[null,null,null,null,null," "," "," "," "]
[null,null,null,null,null," "," "," "," "]
[null,null,null,null,null," "," "," "," "]
[null,null,null,null,null," "," "," "," "]
[null,null,null,null,null," "," "," "," "]
[null,null,null,null,null," "," "," "," "]
[null,null,null,null,null," "," "," "," "]
[null,null,null,null,null," "," "," "," "]
[null,null,null,null,null," "," "," "," "]
[null,null,null,null,null," "," "," "," "]
[null,null,null,null,null," "," "," "," "]
[null,null,null,null,null," "," "," "," "]
[null,null,null,null,null," "," "," "," "]
[null,null,null,null,null," "," "," "," "]
[null,null,null,null,null," "," "," "," "]
[null,null,null,null,null," "," "," "," "]
[null,null,null,null,null," "," "," "," "]
[null,null,null,null,null," "," "," "," "]
[null,null,null,null,null," "," "," "," "]
[null,null,null,null,null," "," "," "," "]
[null,null,null,null,null," "," "," "," "]
[null,null,null,null,null," "," "," "," "]
[null,null,null,null,null," "," "," "," "]
[null,null,null,null,null," "," "," "," "]
[null,null,null,null,null," "," "," "," "]
[null,null,null,null,null," "," "," "," "]
[null,null,null,null,null," "," "," "," "]
[null,null,null,null,null," "," "," "," "]
[null,null,null,null,null," "," "," "," "]
[null,null,null,null,null," "," "," "," "]
[null,null,null,null,null," "," "," "," "]
[null,null,null,null,null," "," "," "," "]
[null,null,null,null,null," "," "," "," "]
[null,null,null,null,null," "," "," "," "]
[null,null,null,null,null," "," "," "," "]
[null,null,null,null,null," "," "," "," "]
[null,null,null,null,null," "," "," "," "]
[null,null,null,null,null," "," "," "," "]
[null,null,null,null,null," "," "," "," "]
[null,null,null,null,null," "," "," "," "]
[null,null,null,null,null," "," "," "," "]
[null,null,null,null,null," "," "," "," "]
[null,null,null,null,null," "," "," "," "]
[null,null,null,null,null," "," "," "," "]
[null,null,null,null,null," "," "," "," "]
[null,null,null,null,null," "," "," "," "]
[null,null,null,null,null," "," "," "," "]
[null,null,null,null,null," "," "," "," "]
[null,null,null,null,null," "," "," "," "]
[null,null,null,null,null," "," "," "," "]
[null,null,null,null,null," "," "," "," "]
[null,null,null,null,null," "," "," "," "]
[null,null,null,null,null," "," "," "," "]
[null,null,null,null,null," "," "," "," "]
[null,null,null,null,null," "," "," "," "]
[null,null,null,null,null," "," "," "," "]
[null,null,null,null,null," "," "," "," "]
[null,null,null,null,null," "," "," "," "]
[null,null,null,null,null," "," "," "," "]
[null,null,null,null,null," "," "," "," "]
[null,null,null,null,null," "," "," "," "]
[null,null,null,null,null," "," "," "," "]
[null,null,null,null,null,{"$f":"IF(A4611>0,B4611/100,\" \")","v":" "},{"$f":"IF(A4611>0,C4611/100,\" \")","v":" "},{"$f":"IF(A4611>0,D4611/100,\" \")","v":" "},{"$f":"IF(A4611>0,E4611/100,\" \")","v":" "}]
[null,null,null,null,null," "," "," "," "]
[null,null,null,null,null," "," "," "," "]
[null,null,null,null,null," "," "," "," "]
[null,null,null,null,null," "," "," "," "]
[null,null,null,null,null," "," "," "," "]
[null,null,null,null,null," "," "," "," "]
[null,null,null,null,null," "," "," "," "]
[null,null,null,null,null," "," "," "," "]
[null,null,null,null,null," "," "," "," "]
[null,null,null,null,null," "," "," "," "]
[null,null,null,null,null," "," "," "," "]
[null,null,null,null,null," "," "," "," "]
[null,null,null,null,null," "," "," "," "]
[null,null,null,null,null," "," "," "," "]
[null,null,null,null,null," "," "," "," "]
[null,null,null,null,null," "," "," "," "]
[null,null,null,null,null," "," "," "," "]
[null,null,null,null,null," "," "," "," "]
[null,null,null,null,null," "," "," "," "]
[null,null,null,null,null," "," "," "," "]
[null,null,null,null,null," "," "," "," "]
[null,null,null,null,null," "," "," "," "]
[null,null,null,null,null," "," "," "," "]
[null,null,null,null,null," "," "," "," "]
[null,null,null,null,null," "," "," "," "]
[null,null,null,null,null," "," "," "," "]
[null,null,null,null,null," "," "," "," "]
[null,null,null,null,null," "," "," "," "]
[null,null,null,null,null," "," "," "," "]
[null,null,null,null,null," "," "," "," "]
[null,null,null,null,null," "," "," "," "]
[null,null,null,null,null," "," "," "," "]
[null,null,null,null,null," "," "," "," "]
[null,null,null,null,null," "," "," "," "]
[null,null,null,null,null," "," "," "," "]
[null,null,null,null,null," "," "," "," "]
[null,null,null,null,null," "," "," "," "]
[null,null,null,null,null," "," "," "," "]
[null,null,null,null,null," "," "," "," "]
[null,null,null,null,null," "," "," "," "]
[null,null,null,null,null," "," "," "," "]
[null,null,null,null,null," "," "," "," "]
[null,null,null,null,null," "," "," "," "]
[null,null,null,null,null," "," "," "," "]
[null,null,null,null,null," "," "," "," "]
[null,null,null,null,null," "," "," "," "]
[null,null,null,null,null," "," "," "," "]
[null,null,null,null,null," "," "," "," "]
[null,null,null,null,null," "," "," "," "]
[null,null,null,null,null," "," "," "," "]
[null,null,null,null,null," "," "," "," "]
[null,null,null,null,null," "," "," "," "]
[null,null,null,null,null," "," "," "," "]
[null,null,null,null,null," "," "," "," "]
[null,null,null,null,null," "," "," "," "]
[null,null,null,null,null," "," "," "," "]
[null,null,null,null,null," "," "," "," "]
[null,null,null,null,null," "," "," "," "]
[null,null,null,null,null," "," "," "," "]
[null,null,null,null,null," "," "," "," "]
[null,null,null,null,null," "," "," "," "]
[null,null,null,null,null," "," "," "," "]
[null,null,null,null,null," "," "," "," "]
[null,null,null,null,null,{"$f":"IF(A4675>0,B4675/100,\" \")","v":" "},{"$f":"IF(A4675>0,C4675/100,\" \")","v":" "},{"$f":"IF(A4675>0,D4675/100,\" \")","v":" "},{"$f":"IF(A4675>0,E4675/100,\" \")","v":" "}]
[null,null,null,null,null," "," "," "," "]
[null,null,null,null,null," "," "," "," "]
[null,null,null,null,null," "," "," "," "]
[null,null,null,null,null," "," "," "," "]
[null,null,null,null,null," "," "," "," "]
[null,null,null,null,null," "," "," "," "]
[null,null,null,null,null," "," "," "," "]
[null,null,null,null,null," "," "," "," "]
[null,null,null,null,null," "," "," "," "]
[null,null,null,null,null," "," "," "," "]
[null,null,null,null,null," "," "," "," "]
[null,null,null,null,null," "," "," "," "]
[null,null,null,null,null," "," "," "," "]
[null,null,null,null,null," "," "," "," "]
[null,null,null,null,null," "," "," "," "]
[null,null,null,null,null," "," "," "," "]
[null,null,null,null,null," "," "," "," "]
[null,null,null,null,null," "," "," "," "]
[null,null,null,null,null," "," "," "," "]
[null,null,null,null,null," "," "," "," "]
[null,null,null,null,null," "," "," "," "]
[null,null,null,null,null," "," "," "," "]
[null,null,null,null,null," "," "," "," "]
[null,null,null,null,null," "," "," "," "]
[null,null,null,null,null," "," "," "," "]
[null,null,null,null,null,{"$f":"IF(A4701>0,B4701/100,\" \")","v":" "},{"$f":"IF(A4701>0,C4701/100,\" \")","v":" "},{"$f":"IF(A4701>0,D4701/100,\" \")","v":" "},{"$f":"IF(A4701>0,E4701/100,\" \")","v":" "}]
[null,null,null,null,null," "," "," "," "]
[null,null,null,null,null," "," "," "," "]
[null,null,null,null,null," "," "," "," "]
[null,null,null,null,null," "," "," "," "]
[null,null,null,null,null," "," "," "," "]
[null,null,null,null,null," "," "," "," "]
[null,null,null,null,null," "," "," "," "]
[null,null,null,null,null," "," "," "," "]
[null,null,null,null,null," "," "," "," "]
[null,null,null,null,null," "," "," "," "]
[null,null,null,null,null," "," "," "," "]
[null,null,null,null,null," "," "," "," "]
[null,null,null,null,null," "," "," "," "]
[null,null,null,null,null," "," "," "," "]
[null,null,null,null,null," "," "," "," "]
[null,null,null,null,null," "," "," "," "]
[null,null,null,null,null," "," "," "," "]
[null,null,null,null,null," "," "," "," "]
[null,null,null,null,null," "," "," "," "]
[null,null,null,null,null," "," "," "," "]
[null,null,null,null,null," "," "," "," "]
[null,null,null,null,null," "," "," "," "]
[null,null,null,null,null," "," "," "," "]
[null,null,null,null,null," "," "," "," "]
[null,null,null,null,null," "," "," "," "]
[null,null,null,null,null," "," "," "," "]
[null,null,null,null,null," "," "," "," "]
[null,null,null,null,null," "," "," "," "]
[null,null,null,null,null," "," "," "," "]
[null,null,null,null,null," "," "," "," "]
[null,null,null,null,null," "," "," "," "]
[null,null,null,null,null," "," "," "," "]
[null,null,null,null,null," "," "," "," "]
[null,null,null,null,null," "," "," "," "]
[null,null,null,null,null," "," "," "," "]
[null,null,null,null,null," "," "," "," "]
[null,null,null,null,null," "," "," "," "]
[null,null,null,null,null," "," "," "," "]
[null,null,null,null,null," "," "," "," "]
[null,null,null,null,null," "," "," "," "]
[null,null,null,null,null," "," "," "," "]
[null,null,null,null,null," "," "," "," "]
[null,null,null,null,null," "," "," "," "]
[null,null,null,null,null," "," "," "," "]
[null,null,null,null,null," "," "," "," "]
[null,null,null,null,null," "," "," "," "]
[null,null,null,null,null," "," "," "," "]
[null,null,null,null,null," "," "," "," "]
[null,null,null,null,null," "," "," "," "]
[null,null,null,null,null," "," "," "," "]
[null,null,null,null,null," "," "," "," "]
[null,null,null,null,null," "," "," "," "]
[null,null,null,null,null," "," "," "," "]
[null,null,null,null,null," "," "," "," "]
[null,null,null,null,null," "," "," "," "]
[null,null,null,null,null," "," "," "," "]
[null,null,null,null,null," "," "," "," "]
[null,null,null,null,null," "," "," "," "]
[null,null,null,null,null," "," "," "," "]
[null,null,null,null,null," "," "," "," "]
[null,null,null,null,null," "," "," "," "]
[null,null,null,null,null," "," "," "," "]
[null,null,null,null,null," "," "," "," "]
[null,null,null,null,null,{"$f":"IF(A4765>0,B4765/100,\" \")","v":" "},{"$f":"IF(A4765>0,C4765/100,\" \")","v":" "},{"$f":"IF(A4765>0,D4765/100,\" \")","v":" "},{"$f":"IF(A4765>0,E4765/100,\" \")","v":" "}]
[null,null,null,null,null," "," "," "," "]
[null,null,null,null,null," "," "," "," "]
[null,null,null,null,null," "," "," "," "]
[null,null,null,null,null," "," "," "," "]
[null,null,null,null,null," "," "," "," "]
[null,null,null,null,null," "," "," "," "]
[null,null,null,null,null," "," "," "," "]
[null,null,null,null,null," "," "," "," "]
[null,null,null,null,null," "," "," "," "]
[null,null,null,null,null," "," "," "," "]
[null,null,null,null,null," "," "," "," "]
[null,null,null,null,null," "," "," "," "]
[null,null,null,null,null," "," "," "," "]
[null,null,null,null,null," "," "," "," "]
[null,null,null,null,null," "," "," "," "]
[null,null,null,null,null," "," "," "," "]
[null,null,null,null,null," "," "," "," "]
[null,null,null,null,null," "," "," "," "]
[null,null,null,null,null," "," "," "," "]
[null,null,null,null,null," "," "," "," "]
[null,null,null,null,null," "," "," "," "]
[null,null,null,null,null," "," "," "," "]
[null,null,null,null,null," "," "," "," "]
[null,null,null,null,null," "," "," "," "]
[null,null,null,null,null," "," "," "," "]
[null,null,null,null,null," "," "," "," "]
[null,null,null,null,null," "," "," "," "]
[null,null,null,null,null," "," "," "," "]
[null,null,null,null,null," "," "," "," "]
[null,null,null,null,null," "," "," "," "]
[null,null,null,null,null," "," "," "," "]
[null,null,null,null,null," "," "," "," "]
[null,null,null,null,null," "," "," "," "]
[null,null,null,null,null," "," "," "," "]
[null,null,null,null,null," "," "," "," "]
[null,null,null,null,null," "," "," "," "]
[null,null,null,null,null," "," "," "," "]
[null,null,null,null,null," "," "," "," "]
[null,null,null,null,null," "," "," "," "]
[null,null,null,null,null," "," "," "," "]
[null,null,null,null,null," "," "," "," "]
[null,null,null,null,null," "," "," "," "]
[null,null,null,null,null," "," "," "," "]
[null,null,null,null,null," "," "," "," "]
[null,null,null,null,null," "," "," "," "]
[null,null,null,null,null," "," "," "," "]
[null,null,null,null,null," "," "," "," "]
[null,null,null,null,null," "," "," "," "]
[null,null,null,null,null," "," "," "," "]
[null,null,null,null,null," "," "," "," "]
[null,null,null,null,null," "," "," "," "]
[null,null,null,null,null," "," "," "," "]
[null,null,null,null,null," "," "," "," "]
[null,null,null,null,null," "," "," "," "]
[null,null,null,null,null," "," "," "," "]
[null,null,null,null,null," "," "," "," "]
[null,null,null,null,null," "," "," "," "]
[null,null,null,null,null," "," "," "," "]
[null,null,null,null,null," "," "," "," "]
[null,null,null,null,null," "," "," "," "]
[null,null,null,null,null," "," "," "," "]
[null,null,null,null,null," "," "," "," "]
[null,null,null,null,null," "," "," "," "]
[null,null,null,null,null,{"$f":"IF(A4829>0,B4829/100,\" \")","v":" "},{"$f":"IF(A4829>0,C4829/100,\" \")","v":" "},{"$f":"IF(A4829>0,D4829/100,\" \")","v":" "},{"$f":"IF(A4829>0,E4829/100,\" \")","v":" "}]
[null,null,null,null,null," "," "," "," "]
[null,null,null,null,null," "," "," "," "]
[null,null,null,null,null," "," "," "," "]
[null,null,null,null,null," "," "," "," "]
[null,null,null,null,null," "," "," "," "]
[null,null,null,null,null," "," "," "," "]
[null,null,null,null,null," "," "," "," "]
[null,null,null,null,null," "," "," "," "]
[null,null,null,null,null," "," "," "," "]
[null,null,null,null,null," "," "," "," "]
[null,null,null,null,null," "," "," "," "]
[null,null,null,null,null," "," "," "," "]
[null,null,null,null,null," "," "," "," "]
[null,null,null,null,null," "," "," "," "]
[null,null,null,null,null," "," "," "," "]
[null,null,null,null,null," "," "," "," "]
[null,null,null,null,null," "," "," "," "]
[null,null,null,null,null," "," "," "," "]
[null,null,null,null,null," "," "," "," "]
[null,null,null,null,null," "," "," "," "]
[null,null,null,null,null," "," "," "," "]
[null,null,null,null,null," "," "," "," "]
[null,null,null,null,null," "," "," "," "]
[null,null,null,null,null," "," "," "," "]
[null,null,null,null,null," "," "," "," "]
[null,null,null,null,null," "," "," "," "]
[null,null,null,null,null," "," "," "," "]
[null,null,null,null,null," "," "," "," "]
[null,null,null,null,null," "," "," "," "]
[null,null,null,null,null," "," "," "," "]
[null,null,null,null,null," "," "," "," "]
[null,null,null,null,null," "," "," "," "]
[null,null,null,null,null," "," "," "," "]
[null,null,null,null,null," "," "," "," "]
[null,null,null,null,null," "," "," "," "]
[null,null,null,null,null," "," "," "," "]
[null,null,null,null,null," "," "," "," "]
[null,null,null,null,null," "," "," "," "]
[null,null,null,null,null," "," "," "," "]
[null,null,null,null,null," "," "," "," "]
[null,null,null,null,null," "," "," "," "]
[null,null,null,null,null," "," "," "," "]
[null,null,null,null,null," "," "," "," "]
[null,null,null,null,null," "," "," "," "]
[null,null,null,null,null," "," "," "," "]
[null,null,null,null,null," "," "," "," "]
[null,null,null,null,null," "," "," "," "]
[null,null,null,null,null," "," "," "," "]
[null,null,null,null,null," "," "," "," "]
[null,null,null,null,null," "," "," "," "]
[null,null,null,null,null," "," "," "," "]
[null,null,null,null,null," "," "," "," "]
[null,null,null,null,null," "," "," "," "]
[null,null,null,null,null," "," "," "," "]
[null,null,null,null,null," "," "," "," "]
[null,null,null,null,null," "," "," "," "]
[null,null,null,null,null," "," "," "," "]
[null,null,null,null,null," "," "," "," "]
[null,null,null,null,null," "," "," "," "]
[null,null,null,null,null," "," "," "," "]
[null,null,null,null,null," "," "," "," "]
[null,null,null,null,null," "," "," "," "]
[null,null,null,null,null," "," "," "," "]
[null,null,null,null,null,{"$f":"IF(A4893>0,B4893/100,\" \")","v":" "},{"$f":"IF(A4893>0,C4893/100,\" \")","v":" "},{"$f":"IF(A4893>0,D4893/100,\" \")","v":" "},{"$f":"IF(A4893>0,E4893/100,\" \")","v":" "}]
[null,null,null,null,null," "," "," "," "]
[null,null,null,null,null," "," "," "," "]
[null,null,null,null,null," "," "," "," "]
[null,null,null,null,null," "," "," "," "]
[null,null,null,null,null," "," "," "," "]
[null,null,null,null,null," "," "," "," "]
[null,null,null,null,null," "," "," "," "]
[null,null,null,null,null," "," "," "," "]
[null,null,null,null,null," "," "," "," "]
[null,null,null,null,null," "," "," "," "]
[null,null,null,null,null," "," "," "," "]
[null,null,null,null,null," "," "," "," "]
[null,null,null,null,null," "," "," "," "]
[null,null,null,null,null," "," "," "," "]
[null,null,null,null,null," "," "," "," "]
[null,null,null,null,null," "," "," "," "]
[null,null,null,null,null," "," "," "," "]
[null,null,null,null,null," "," "," "," "]
[null,null,null,null,null," "," "," "," "]
[null,null,null,null,null," "," "," "," "]
[null,null,null,null,null," "," "," "," "]
[null,null,null,null,null," "," "," "," "]
[null,null,null,null,null," "," "," "," "]
[null,null,null,null,null," "," "," "," "]
[null,null,null,null,null," "," "," "," "]
[null,null,null,null,null," "," "," "," "]
[null,null,null,null,null," "," "," "," "]
[null,null,null,null,null," "," "," "," "]
[null,null,null,null,null," "," "," "," "]
[null,null,null,null,null," "," "," "," "]
[null,null,null,null,null," "," "," "," "]
[null,null,null,null,null," "," "," "," "]
[null,null,null,null,null," "," "," "," "]
[null,null,null,null,null," "," "," "," "]
[null,null,null,null,null," "," "," "," "]
[null,null,null,null,null," "," "," "," "]
[null,null,null,null,null," "," "," "," "]
[null,null,null,null,null," "," "," "," "]
[null,null,null,null,null," "," "," "," "]
[null,null,null,null,null," "," "," "," "]
[null,null,null,null,null," "," "," "," "]
[null,null,null,null,null," "," "," "," "]
[null,null,null,null,null," "," "," "," "]
[null,null,null,null,null," "," "," "," "]
[null,null,null,null,null," "," "," "," "]
[null,null,null,null,null," "," "," "," "]
[null,null,null,null,null," "," "," "," "]
[null,null,null,null,null," "," "," "," "]
[null,null,null,null,null," "," "," "," "]
[null,null,null,null,null," "," "," "," "]
[null,null,null,null,null," "," "," "," "]
[null,null,null,null,null," "," "," "," "]
[null,null,null,null,null," "," "," "," "]
[null,null,null,null,null," "," "," "," "]
[null,null,null,null,null," "," "," "," "]
[null,null,null,null,null," "," "," "," "]
[null,null,null,null,null," "," "," "," "]
[null,null,null,null,null," "," "," "," "]
[null,null,null,null,null," "," "," "," "]
[null,null,null,null,null," "," "," "," "]
[null,null,null,null,null," "," "," "," "]
[null,null,null,null,null," "," "," "," "]
[null,null,null,null,null," "," "," "," "]
[null,null,null,null,null,{"$f":"IF(A4957>0,B4957/100,\" \")","v":" "},{"$f":"IF(A4957>0,C4957/100,\" \")","v":" "},{"$f":"IF(A4957>0,D4957/100,\" \")","v":" "},{"$f":"IF(A4957>0,E4957/100,\" \")","v":" "}]
[null,null,null,null,null," "," "," "," "]
[null,null,null,null,null," "," "," "," "]
[null,null,null,null,null," "," "," "," "]
[null,null,null,null,null," "," "," "," "]
[null,null,null,null,null," "," "," "," "]
[null,null,null,null,null," "," "," "," "]
[null,null,null,null,null," "," "," "," "]
[null,null,null,null,null," "," "," "," "]
[null,null,null,null,null," "," "," "," "]
[null,null,null,null,null," "," "," "," "]
[null,null,null,null,null," "," "," "," "]
[null,null,null,null,null," "," "," "," "]
[null,null,null,null,null," "," "," "," "]
[null,null,null,null,null," "," "," "," "]
[null,null,null,null,null," "," "," "," "]
[null,null,null,null,null," "," "," "," "]
[null,null,null,null,null," "," "," "," "]
[null,null,null,null,null," "," "," "," "]
[null,null,null,null,null," "," "," "," "]
[null,null,null,null,null," "," "," "," "]
[null,null,null,null,null," "," "," "," "]
[null,null,null,null,null," "," "," "," "]
[null,null,null,null,null," "," "," "," "]
[null,null,null,null,null," "," "," "," "]
[null,null,null,null,null," "," "," "," "]
[null,null,null,null,null," "," "," "," "]
[null,null,null,null,null," "," "," "," "]
[null,null,null,null,null," "," "," "," "]
[null,null,null,null,null," "," "," "," "]
[null,null,null,null,null," "," "," "," "]
[null,null,null,null,null," "," "," "," "]
[null,null,null,null,null," "," "," "," "]
[null,null,null,null,null," "," "," "," "]
[null,null,null,null,null," "," "," "," "]
[null,null,null,null,null," "," "," "," "]
[null,null,null,null,null," "," "," "," "]
[null,null,null,null,null," "," "," "," "]
[null,null,null,null,null," "," "," "," "]
[null,null,null,null,null," "," "," "," "]
[null,null,null,null,null," "," "," "," "]
[null,null,null,null,null," "," "," "," "]
[null,null,null,null,null," "," "," "," "]
[null,null,null,null,null," "," "," "," "]